TRANSACTION REF,BODY NAME,SERVICE LABEL,SERVICE CODE,EXPENDITURE CATEGORY,EXPENDITURE CODE,PAYMENT DATE,AMOUNT,SUPPLIER NAME,LOCAL/NOT LOCAL,SUPPLIER ID
DD,NORTH HERTFORDSHIRE DISTRICT COUNCIL,FINANCE,NHDC,BANK CHARGES,4439,14/04/2020,570.88,BARCLAYCARD,NOT LOCAL,DD SUPPLIER
DD,NORTH HERTFORDSHIRE DISTRICT COUNCIL,FINANCE,NHDC,UTILITY,4571,20/04/2020,980.41,BOTTOMLINE,NOT LOCAL,DD SUPPLIER
DD,NORTH HERTFORDSHIRE DISTRICT COUNCIL,FINANCE,NHDC,BANK CHARGES,4439,16/04/2020,171.36,CARDNET,NOT LOCAL,DD SUPPLIER
DD,NORTH HERTFORDSHIRE DISTRICT COUNCIL,FINANCE,NHDC,BANK CHARGES,4439,15/04/2020,"3,152.41",CARDNET,NOT LOCAL,DD SUPPLIER
DD,NORTH HERTFORDSHIRE DISTRICT COUNCIL,FINANCE,NHDC,BANK CHARGES,4439,01/04/2020,19.00,CARDNET,NOT LOCAL,DD SUPPLIER
DD,NORTH HERTFORDSHIRE DISTRICT COUNCIL,FINANCE,NHDC,BANK CHARGES,4439,24/04/2020,39.00,CARDNET,NOT LOCAL,DD SUPPLIER
DD,NORTH HERTFORDSHIRE DISTRICT COUNCIL,FINANCE,NHDC,BANK CHARGES,4439,22/04/2020,396.75,CARDNET,NOT LOCAL,DD SUPPLIER
DD,NORTH HERTFORDSHIRE DISTRICT COUNCIL,FINANCE,NHDC,BANK CHARGES,4439,06/04/2020,462.75,CARDNET,NOT LOCAL,DD SUPPLIER
DD,NORTH HERTFORDSHIRE DISTRICT COUNCIL,FINANCE,NHDC,BANK CHARGES,4439,16/04/2020,100.00,CARDNET,NOT LOCAL,DD SUPPLIER
DD,NORTH HERTFORDSHIRE DISTRICT COUNCIL,FINANCE,NHDC,BANK CHARGES,4439,16/04/2020,100.00,CARDNET,NOT LOCAL,DD SUPPLIER
DD,NORTH HERTFORDSHIRE DISTRICT COUNCIL,FINANCE,NHDC,BANK CHARGES,4439,17/04/2020,412.38,CARDNET,NOT LOCAL,DD SUPPLIER
DD,NORTH HERTFORDSHIRE DISTRICT COUNCIL,FINANCE,NHDC,UTILITY,2440,22/04/2020,"8,296.48",CASTLE WATER LTD,NOT LOCAL,DD SUPPLIER
DD,NORTH HERTFORDSHIRE DISTRICT COUNCIL,FINANCE,NHDC,DBS CHECKS,4468,21/04/2020,240.00,DBS DIRECT DEBITS,NOT LOCAL,DD SUPPLIER
DD,NORTH HERTFORDSHIRE DISTRICT COUNCIL,FINANCE,NHDC,BANK CHARGES,4439,16/04/2020,37.90,FDMS,NOT LOCAL,DD SUPPLIER
DD,NORTH HERTFORDSHIRE DISTRICT COUNCIL,FINANCE,NHDC,BANK CHARGES,4439,16/04/2020,37.90,FDMS,NOT LOCAL,DD SUPPLIER
DD,NORTH HERTFORDSHIRE DISTRICT COUNCIL,FINANCE,NHDC,BANK CHARGES,4439,16/04/2020,37.90,FDMS,NOT LOCAL,DD SUPPLIER
DD,NORTH HERTFORDSHIRE DISTRICT COUNCIL,FINANCE,NHDC,BANK CHARGES,4439,16/04/2020,37.90,FDMS,NOT LOCAL,DD SUPPLIER
DD,NORTH HERTFORDSHIRE DISTRICT COUNCIL,FINANCE,NHDC,UTILITY,44561,21/04/2020,167.86,INTELLISOFTWARE,NOT LOCAL,DD SUPPLIER
DD,NORTH HERTFORDSHIRE DISTRICT COUNCIL,FINANCE,NHDC,LAND SEARCHES,4435,15/04/2020,9.00,LAND REGISTRY,NOT LOCAL,DD SUPPLIER
DD,NORTH HERTFORDSHIRE DISTRICT COUNCIL,FINANCE,NHDC,LAND SEARCHES,4435,15/04/2020,15.00,LAND REGISTRY,NOT LOCAL,DD SUPPLIER
DD,NORTH HERTFORDSHIRE DISTRICT COUNCIL,FINANCE,NHDC,LAND SEARCHES,4435,07/04/2020,24.00,LAND REGISTRY,NOT LOCAL,DD SUPPLIER
DD,NORTH HERTFORDSHIRE DISTRICT COUNCIL,FINANCE,NHDC,LAND SEARCHES,4435,21/04/2020,32.00,LAND REGISTRY,NOT LOCAL,DD SUPPLIER
DD,NORTH HERTFORDSHIRE DISTRICT COUNCIL,FINANCE,NHDC,LAND SEARCHES,4435,21/04/2020,48.00,LAND REGISTRY,NOT LOCAL,DD SUPPLIER
DD,NORTH HERTFORDSHIRE DISTRICT COUNCIL,FINANCE,NHDC,LAND SEARCHES,4435,14/04/2020,51.00,LAND REGISTRY,NOT LOCAL,DD SUPPLIER
DD,NORTH HERTFORDSHIRE DISTRICT COUNCIL,FINANCE,NHDC,CREDIT CARD CHARGES,4017,16/04/2020,20.40,PAYTEK ADMIN SVS,NOT LOCAL,DD SUPPLIER
DD,NORTH HERTFORDSHIRE DISTRICT COUNCIL,FINANCE,NHDC,CREDIT CARD CHARGES,4017,16/04/2020,20.40,PAYTEK ADMIN SVS,NOT LOCAL,DD SUPPLIER
DD,NORTH HERTFORDSHIRE DISTRICT COUNCIL,FINANCE,NHDC,CREDIT CARD CHARGES,4017,16/04/2020,20.40,PAYTEK ADMIN SVS,NOT LOCAL,DD SUPPLIER
DD,NORTH HERTFORDSHIRE DISTRICT COUNCIL,FINANCE,NHDC,CREDIT CARD CHARGES,4017,16/04/2020,20.40,PAYTEK ADMIN SVS,NOT LOCAL,DD SUPPLIER
DD,NORTH HERTFORDSHIRE DISTRICT COUNCIL,FINANCE,NHDC,POSTAGE,4560,22/04/2020,"2,053.44",ROYAL MAIL WEST TE,NOT LOCAL,DD SUPPLIER
DD,NORTH HERTFORDSHIRE DISTRICT COUNCIL,FINANCE,NHDC,BANK CHARGES,4439,09/04/2020,413.11,SAN UK ACC RECEIVE,NOT LOCAL,DD SUPPLIER
DD,NORTH HERTFORDSHIRE DISTRICT COUNCIL,FINANCE,NHDC,UTILITY,4018,07/04/2020,31.80,TALKTALK BUSINESS,NOT LOCAL,DD SUPPLIER
DD,NORTH HERTFORDSHIRE DISTRICT COUNCIL,FINANCE,NHDC,UTILITY,3018,27/04/2020,38.60,UK FUELS LTD,NOT LOCAL,DD SUPPLIER
DD,NORTH HERTFORDSHIRE DISTRICT COUNCIL,FINANCE,NHDC,UTILITY,3018,06/04/2020,40.34,UK FUELS LTD,NOT LOCAL,DD SUPPLIER
DD,NORTH HERTFORDSHIRE DISTRICT COUNCIL,FINANCE,NHDC,UTILITY,3018,14/04/2020,114.03,UK FUELS LTD,NOT LOCAL,DD SUPPLIER
DD,NORTH HERTFORDSHIRE DISTRICT COUNCIL,FINANCE,NHDC,UTILITY,3018,20/04/2020,118.58,UK FUELS LTD,NOT LOCAL,DD SUPPLIER
DD,NORTH HERTFORDSHIRE DISTRICT COUNCIL,FINANCE,NHDC,UTILITY,2230,06/04/2020,"21,902.06",WEST MERCIA ENERGY,NOT LOCAL,DD SUPPLIER
DD,NORTH HERTFORDSHIRE DISTRICT COUNCIL,FINANCE,NHDC,UTILITY,4561,22/04/2020,"1,046.09",WINDSOR TELECOM PL,NOT LOCAL,DD SUPPLIER
DD,NORTH HERTFORDSHIRE DISTRICT COUNCIL,FINANCE,NHDC,UTILITY,4561,22/04/2020,229.45,WIRELESS LOGIC LTD,NOT LOCAL,DD SUPPLIER
0000139645,NORTH HERTFORDSHIRE DISTRICT COUNCIL,COMMUNITY DEVELOPMENT,NHDC,GRANTS,11910006825,31/03/2020,"2,052.00",GREENCARE,LOCAL,002510000
0000139646,NORTH HERTFORDSHIRE DISTRICT COUNCIL,COMMUNITY DEVELOPMENT,NHDC,GRANTS,11910006826,31/03/2020,"2,500.00",ST THOMAS CHURCH,LOCAL,002510000
0000139647,NORTH HERTFORDSHIRE DISTRICT COUNCIL,COMMUNITY DEVELOPMENT,NHDC,GRANTS,11910006826,31/03/2020,"2,500.00",6TH PLATOON LG,LOCAL,002510000
0000139648,NORTH HERTFORDSHIRE DISTRICT COUNCIL,COMMUNITY DEVELOPMENT,NHDC,GRANTS,14590004836,31/03/2020,"2,650.00",NORTH HERTS CVS,LOCAL,002510000
0000139649,NORTH HERTFORDSHIRE DISTRICT COUNCIL,COMMUNITY DEVELOPMENT,NHDC,GRANTS,11930006819,14/04/2020,"1,000.00",REED CRICKET CLUB,LOCAL,002510000
0000139652,NORTH HERTFORDSHIRE DISTRICT COUNCIL,COMMUNITY DEVELOPMENT,NHDC,GRANTS,54100030836,15/04/2020,"11,720.00",LETCHWORTH CENTRE HEALTHY LIVING,LOCAL,002510000
0070009837,NORTH HERTFORDSHIRE DISTRICT COUNCIL,ENVIRONMENTAL HEALTH,NHDC,DFG,55106020850,14/04/2020,"16,500.00",SETTLE GROUP,LOCAL,002478400
0070009838,NORTH HERTFORDSHIRE DISTRICT COUNCIL,ENVIRONMENTAL HEALTH,NHDC,DFG,55106020850,14/04/2020,"16,500.00",SETTLE GROUP,LOCAL,002478400
0070009848,NORTH HERTFORDSHIRE DISTRICT COUNCIL,ACTIVE COMMUNITIES,NHDC,FITNESS INSTR,12960004924,21/04/2020,12.00,MRS M THOMAS,LOCAL,002771300
0070011239,NORTH HERTFORDSHIRE DISTRICT COUNCIL,ELECTORAL SERVICES,NHDC,HALL HIRE,11811004449,31/03/2020,255.00,TILEHOUSE STREET BAPTIST CHURCH,LOCAL,000848400
0070011409,NORTH HERTFORDSHIRE DISTRICT COUNCIL,GROUNDS MAINTENANCE,NHDC,TREE WORKS,12310012018,07/04/2020,460.00,RGS TREES AND LANDSCAPING,LOCAL,002273800
0070011486,NORTH HERTFORDSHIRE DISTRICT COUNCIL,ELECTORAL SERVICES,NHDC,HALL HIRE,11811004449,31/03/2020,550.00,ST MICHAELS CHURCH HALL,LOCAL,002002300
0070011612,NORTH HERTFORDSHIRE DISTRICT COUNCIL,ELECTORAL SERVICES,NHDC,HALL HIRE,11811004449,31/03/2020,160.00,WALLINGTON VILLAGE HALL,LOCAL,002370600
0070011666,NORTH HERTFORDSHIRE DISTRICT COUNCIL,PROPERTY SERVICES,NHDC,TELEPHONE SYSTEM,12590004018,31/03/2020,128.30,OPEN LINK TECHNOLOGY LIMITED,NOT LOCAL,002463800
0070011768,NORTH HERTFORDSHIRE DISTRICT COUNCIL,ELECTORAL SERVICES,NHDC,HALL HIRE,11811004449,31/03/2020,220.00,KELSHALL VILLAGE HALL,LOCAL,001367400
0070011930,NORTH HERTFORDSHIRE DISTRICT COUNCIL,ACTIVE COMMUNITIES,NHDC,FITNESS INSTR,12960004924,21/04/2020,120.00,MRS M THOMAS,LOCAL,002771300
0070012049,NORTH HERTFORDSHIRE DISTRICT COUNCIL,WASTE MANAGEMENT,NHDC,CLEANING,14500004420,07/04/2020,"12,873.60",DANFO (UK) LIMITED,NOT LOCAL,002544500
0070012189,NORTH HERTFORDSHIRE DISTRICT COUNCIL,WASTE MANAGEMENT,NHDC,CLEANING,14500004420,07/04/2020,"-12,873.60",DANFO (UK) LIMITED,NOT LOCAL,002544500
0070012197,NORTH HERTFORDSHIRE DISTRICT COUNCIL,ELECTORAL SERVICES,NHDC,HALL HIRE,11811004449,31/03/2020,600.00,THE NEW TESTAMENT CHURCH OF GOD,LOCAL,002013800
0070012198,NORTH HERTFORDSHIRE DISTRICT COUNCIL,PROPERTY SERVICES,NHDC,TELEPHONE SYSTEM,12590004018,31/03/2020,73.79,OPEN LINK TECHNOLOGY LIMITED,NOT LOCAL,002463800
0070012207,NORTH HERTFORDSHIRE DISTRICT COUNCIL,STRATEGIC HOUSING,NHDC,EMERGENCY B&B,13072042336,31/03/2020,96.00,PRIMROSE ESTATES T/A ALEXANDRA GUESTHOUS,NOT LOCAL,002684500
0070012233,NORTH HERTFORDSHIRE DISTRICT COUNCIL,PAYROLL,NHDC,PAYROLL SERVICES,11050004566,07/04/2020,"1,764.00",SERCO LIMITED,NOT LOCAL,002646700
0070012274,NORTH HERTFORDSHIRE DISTRICT COUNCIL,NORTH HERTS MUSEUM,NHDC,UTILITY,14425002441,31/03/2020,163.20,ANGLIAN WATER BUSINESS,NOT LOCAL,002734300
0070012286,NORTH HERTFORDSHIRE DISTRICT COUNCIL,IT,NHDC,WEB DEVELOPMENT,11161674571,31/03/2020,"98,535.16",IDOX SOFTWARE LIMITED,NOT LOCAL,002066300
0070012356,NORTH HERTFORDSHIRE DISTRICT COUNCIL,CARELINE,NHDC,ASSISTIVE TECHNO,43204704417,31/03/2020,"12,375.00",PROVIDE CIC,NOT LOCAL,002763400
0070012393,NORTH HERTFORDSHIRE DISTRICT COUNCIL,MANAGEMENT SUPPORT,NHDC,SEARCH FEES,11110041860,31/03/2020,"1,531.20",IMPERIAL CIVIL ENFORCEMENT SOLUTIONS LTD,NOT LOCAL,002550200
0070012404,NORTH HERTFORDSHIRE DISTRICT COUNCIL,WASTE MANAGEMENT,NHDC,BABY GOODS,12720004928,31/03/2020,25.00,CLOSE PARENT LIMITED,NOT LOCAL,002701200
0070012405,NORTH HERTFORDSHIRE DISTRICT COUNCIL,WASTE MANAGEMENT,NHDC,BABY GOODS,12720004928,31/03/2020,25.00,CLOSE PARENT LIMITED,NOT LOCAL,002701200
0070012422,NORTH HERTFORDSHIRE DISTRICT COUNCIL,REVENUES,NHDC,POSTAL SERVICES,11130004560,31/03/2020,360.90,DX NETWORK SERVICES LIMITED,NOT LOCAL,002378000
0070012429,NORTH HERTFORDSHIRE DISTRICT COUNCIL,ELECTORAL SERVICES,NHDC,GRANTS,11811004449,31/03/2020,289.00,GREAT ASHBY COMMUNITY CENTRE MGT ASSOC,NOT LOCAL,002370400
0070012437,NORTH HERTFORDSHIRE DISTRICT COUNCIL,NORTH HERTS MUSEUM,NHDC,CONSULTANCY,14425002010,31/03/2020,"1,518.83",STEVENAGE BOROUGH COUNCIL,NOT LOCAL,000218900
0070012469,NORTH HERTFORDSHIRE DISTRICT COUNCIL,GROUNDS MAINTENANCE,NHDC,GRANTS,14310005910,31/03/2020,"3,000.00",LETCHWORTH GARDEN CITY BOWLS CLUB,LOCAL,002518700
0070012479,NORTH HERTFORDSHIRE DISTRICT COUNCIL,MANAGEMENT SUPPORT,NHDC,SCANNING SERVICE,11110055145,31/03/2020,"10,200.00", NORTHGATE PUBLIC SERVICES (UK) LTD,NOT LOCAL,002410500
0070012491,NORTH HERTFORDSHIRE DISTRICT COUNCIL,ELECTORAL SERVICES,NHDC,HALL HIRE,11811004449,31/03/2020,272.00,ST THOMAS PCC,LOCAL,002156300
0070012495,NORTH HERTFORDSHIRE DISTRICT COUNCIL,ELECTORAL SERVICES,NHDC,ELECTORAL SERVIC,11811094370,31/03/2020,985.32,CIVICA ELECTION SERVICES,NOT LOCAL,002276800
0070012496,NORTH HERTFORDSHIRE DISTRICT COUNCIL,PROPERTY SERVICES,NHDC,LIFT MAINTENANCE,12207212014,31/03/2020,120.00,SPECIALIST LIFT SERVICES LIMITED,NOT LOCAL,002774700
0070012497,NORTH HERTFORDSHIRE DISTRICT COUNCIL,PROPERTY SERVICES,NHDC,LIFT MAINTENANCE,11321872014,31/03/2020,180.00,SPECIALIST LIFT SERVICES LIMITED,NOT LOCAL,002774700
0070012498,NORTH HERTFORDSHIRE DISTRICT COUNCIL,PROPERTY SERVICES,NHDC,SECURITY,12207224428,31/03/2020,547.06,ARENA SECURITY LTD,LOCAL,000014000
0070012499,NORTH HERTFORDSHIRE DISTRICT COUNCIL,PROPERTY SERVICES,NHDC,LIFT MAINTENANCE,12207222014,31/03/2020,360.00,SPECIALIST LIFT SERVICES LIMITED,NOT LOCAL,002774700
0070012500,NORTH HERTFORDSHIRE DISTRICT COUNCIL,NORTH HERTS MUSEUM,NHDC,LIFT MAINTENANCE,14425002014,31/03/2020,315.00,SPECIALIST LIFT SERVICES LIMITED,NOT LOCAL,002774700
0070012515,NORTH HERTFORDSHIRE DISTRICT COUNCIL,COMMUNICATIONS,NHDC,PAPER SUPPLIES,11460094372,31/03/2020,121.06,ANTALIS UK LIMITED,NOT LOCAL,002251700
0070012529,NORTH HERTFORDSHIRE DISTRICT COUNCIL,PARKING SERVICES,NHDC,PARKING TICKETS,12210014370,31/03/2020,"1,416.00",MODAL INNOVATION T/A THE PARKING SHOP,NOT LOCAL,002402700
0070012538,NORTH HERTFORDSHIRE DISTRICT COUNCIL,PLANNING,NHDC,TRANSLATION,12550014459,31/03/2020,100.80,APPLE TRANSCRIPTION LIMITED,NOT LOCAL,002705200
0070012553,NORTH HERTFORDSHIRE DISTRICT COUNCIL,CARELINE,NHDC,RECRUITMENT,43204701221,31/03/2020,514.13,INTERACTION RECRUITMENT,NOT LOCAL,002044000
0070012562,NORTH HERTFORDSHIRE DISTRICT COUNCIL,PARKING SERVICES,NHDC,TELEPHONE SERVS,12207204430,31/03/2020,"6,515.24",COBALT TELEPHONE TECHNOLOGIES LIMITED,NOT LOCAL,002617600
0070012564,NORTH HERTFORDSHIRE DISTRICT COUNCIL,GROUNDS MAINTENANCE,NHDC,TREE PLANTING,12310002018,31/03/2020,"17,987.16",ENVIRONMENTAL MANAGEMENT GROUP LTD,NOT LOCAL,002765000
0070012572,NORTH HERTFORDSHIRE DISTRICT COUNCIL,DEMOCRATIC SERVICES,NHDC,PHOTOGRAPHER,11800574142,31/03/2020,198.00,NIC COOPER PHOTOGRAPHER,LOCAL,000621900
0070012573,NORTH HERTFORDSHIRE DISTRICT COUNCIL,REVENUES,NHDC,CCARD SERVICES,11701574439,31/03/2020,59.74,INTERCARD LIMITED,NOT LOCAL,002053100
0070012586,NORTH HERTFORDSHIRE DISTRICT COUNCIL,WASTE MANAGEMENT,NHDC,BABY GOODS,12720004928,31/03/2020,25.00,CLOSE PARENT LIMITED,NOT LOCAL,002701200
0070012588,NORTH HERTFORDSHIRE DISTRICT COUNCIL,WASTE MANAGEMENT,NHDC,BABY GOODS,12720004928,31/03/2020,25.00,CLOSE PARENT LIMITED,NOT LOCAL,002701200
0070012589,NORTH HERTFORDSHIRE DISTRICT COUNCIL,WASTE MANAGEMENT,NHDC,BABY GOODS,12720004928,31/03/2020,25.00,CLOSE PARENT LIMITED,NOT LOCAL,002701200
0070012590,NORTH HERTFORDSHIRE DISTRICT COUNCIL,WASTE MANAGEMENT,NHDC,BABY GOODS,12720004928,31/03/2020,25.00,CLOSE PARENT LIMITED,NOT LOCAL,002701200
0070012591,NORTH HERTFORDSHIRE DISTRICT COUNCIL,WASTE MANAGEMENT,NHDC,BABY GOODS,12720004928,31/03/2020,25.00,CLOSE PARENT LIMITED,NOT LOCAL,002701200
0070012592,NORTH HERTFORDSHIRE DISTRICT COUNCIL,WASTE MANAGEMENT,NHDC,BABY GOODS,12720004928,31/03/2020,25.00,CLOSE PARENT LIMITED,NOT LOCAL,002701200
0070012593,NORTH HERTFORDSHIRE DISTRICT COUNCIL,WASTE MANAGEMENT,NHDC,BABY GOODS,12720004928,31/03/2020,25.00,CLOSE PARENT LIMITED,NOT LOCAL,002701200
0070012594,NORTH HERTFORDSHIRE DISTRICT COUNCIL,WASTE MANAGEMENT,NHDC,BABY GOODS,12720004928,31/03/2020,25.00,CLOSE PARENT LIMITED,NOT LOCAL,002701200
0070012595,NORTH HERTFORDSHIRE DISTRICT COUNCIL,WASTE MANAGEMENT,NHDC,BABY GOODS,12720004928,31/03/2020,25.00,CLOSE PARENT LIMITED,NOT LOCAL,002701200
0070012596,NORTH HERTFORDSHIRE DISTRICT COUNCIL,WASTE MANAGEMENT,NHDC,BABY GOODS,12720004928,31/03/2020,25.00,CLOSE PARENT LIMITED,NOT LOCAL,002701200
0070012604,NORTH HERTFORDSHIRE DISTRICT COUNCIL,WASTE MANAGEMENT,NHDC,PRINTING,12710004370,31/03/2020,"1,785.60",TKM CREATIVE SOLUTIONS,NOT LOCAL,002122200
0070012606,NORTH HERTFORDSHIRE DISTRICT COUNCIL,CARELINE,NHDC,ASSISTED LIVING,43204704038,31/03/2020,230.46,INDEPENDENT LIVING SUPPLIES,NOT LOCAL,002694900
0070012612,NORTH HERTFORDSHIRE DISTRICT COUNCIL,IT,NHDC,RECHARGES,11161674571,31/03/2020,"20,799.49",HERTFORDSHIRE COUNTY COUNCIL,NOT LOCAL,000109000
0070012613,NORTH HERTFORDSHIRE DISTRICT COUNCIL,PARKING SERVICES,NHDC,BUILDING SERVICE,12207202010,31/03/2020,756.35,ALLAN PEACOCK STREETLIGHTING,NOT LOCAL,002373100
0070012621,NORTH HERTFORDSHIRE DISTRICT COUNCIL,IT,NHDC,SEARCH FEES,11161674571,31/03/2020,"14,798.27",IMPERIAL CIVIL ENFORCEMENT SOLUTIONS LTD,NOT LOCAL,002550200
0070012628,NORTH HERTFORDSHIRE DISTRICT COUNCIL,ENVIRONMENTAL HEALTH,NHDC,RECRUITMENT,14604351121,31/03/2020,732.00,THE OYSTER PARTNERSHIP LIMITED,NOT LOCAL,002673100
0070012630,NORTH HERTFORDSHIRE DISTRICT COUNCIL,IT,NHDC,DATA DESTRUCTION,11161674573,31/03/2020,477.00,E RECYCLING T/A EURO RECYCLING,NOT LOCAL,002710900
0070012637,NORTH HERTFORDSHIRE DISTRICT COUNCIL,WASTE MANAGEMENT,NHDC,RECYCLING,12720075121,31/03/2020,"119,892.36",PEARCE RECYCLING CO LIMITED,NOT LOCAL,002398600
0070012651,NORTH HERTFORDSHIRE DISTRICT COUNCIL,PROPERTY SERVICES,NHDC,CLEANING PRODUCT,11321872752,31/03/2020,305.24,AVICA UK LIMITED,NOT LOCAL,002676400
0070012652,NORTH HERTFORDSHIRE DISTRICT COUNCIL,HITCHIN TOWN HALL,NHDC,BUILDING SERVICE,11322002010,14/04/2020,84.00, P & J BUILDING MAINTENANCE LIMITED,LOCAL,001300800
0070012654,NORTH HERTFORDSHIRE DISTRICT COUNCIL,IT,NHDC,IT HEALTHCHECK,11161674573,31/03/2020,"8,130.00",NTA MONITOR LIMITED,NOT LOCAL,002719800
0070012663,NORTH HERTFORDSHIRE DISTRICT COUNCIL,IT,NHDC,IT SOFTWARE,11161674573,31/03/2020,"4,416.00",INTERNAL SYSTEMS LIMITED,NOT LOCAL,002024300
0070012666,NORTH HERTFORDSHIRE DISTRICT COUNCIL,CARELINE,NHDC,ALARMS & SENSORS,43204704041,31/03/2020,"8,280.00",DORO CARE LIMITED,NOT LOCAL,002694700
0070012672,NORTH HERTFORDSHIRE DISTRICT COUNCIL,GROUNDS MAINTENANCE,NHDC,TREE PLANTING,14310022016,31/03/2020,"1,118.40",ENVIRONMENTAL MANAGEMENT GROUP LTD,NOT LOCAL,002765000
0070012677,NORTH HERTFORDSHIRE DISTRICT COUNCIL,LEGAL SERVICES,NHDC,RECRUITMENT,11430011121,31/03/2020,"2,441.56",SELLICK PARTNERSHIP,NOT LOCAL,002622600
0070012680,NORTH HERTFORDSHIRE DISTRICT COUNCIL,CARELINE,NHDC,ASSISTED LIVING,43204704038,31/03/2020,846.02,INDEPENDENT LIVING SUPPLIES,NOT LOCAL,002694900
0070012681,NORTH HERTFORDSHIRE DISTRICT COUNCIL,CARELINE,NHDC,ASSISTED LIVING,43204704038,31/03/2020,498.13,INDEPENDENT LIVING SUPPLIES,NOT LOCAL,002694900
0070012683,NORTH HERTFORDSHIRE DISTRICT COUNCIL,CARELINE,NHDC,ASSISTED LIVING,43204704038,31/03/2020,381.60,INDEPENDENT LIVING SUPPLIES,NOT LOCAL,002694900
0070012684,NORTH HERTFORDSHIRE DISTRICT COUNCIL,CARELINE,NHDC,ASSISTED LIVING,43204704436,31/03/2020,131.04,INDEPENDENT LIVING SUPPLIES,NOT LOCAL,002694900
0070012685,NORTH HERTFORDSHIRE DISTRICT COUNCIL,CARELINE,NHDC,ASSISTED LIVING,43204704038,31/03/2020,512.53,INDEPENDENT LIVING SUPPLIES,NOT LOCAL,002694900
0070012687,NORTH HERTFORDSHIRE DISTRICT COUNCIL,CARELINE,NHDC,ASSISTED LIVING,43204704421,31/03/2020,"3,244.28",INDEPENDENT LIVING SUPPLIES,NOT LOCAL,002694900
0070012689,NORTH HERTFORDSHIRE DISTRICT COUNCIL,CARELINE,NHDC,SIM CARDS,43204704037,31/03/2020,300.10,CSL DUALCOM LIMITED,NOT LOCAL,002693300
0070012690,NORTH HERTFORDSHIRE DISTRICT COUNCIL,CARELINE,NHDC,ASSISTED LIVING,43204704436,31/03/2020,326.72,INDEPENDENT LIVING SUPPLIES,NOT LOCAL,002694900
0070012693,NORTH HERTFORDSHIRE DISTRICT COUNCIL,PROPERTY SERVICES,NHDC,TELEPHONE SYSTEM,12590004018,31/03/2020,54.07,OPEN LINK TECHNOLOGY LIMITED,NOT LOCAL,002463800
0070012702,NORTH HERTFORDSHIRE DISTRICT COUNCIL,PARKING SERVICES,NHDC,CAR PARK INCOME,12207205410,31/03/2020,"33,582.09",WM MORRISON SUPERMARKETS  PLC,NOT LOCAL,002231700
0070012703,NORTH HERTFORDSHIRE DISTRICT COUNCIL,IT,NHDC,SOFTWARE,11161674571,31/03/2020,"8,596.17",IDEAGEN GAEL LIMITED,NOT LOCAL,002574800
0070012706,NORTH HERTFORDSHIRE DISTRICT COUNCIL,CARELINE,NHDC,MYSTERY SHOPPERS,43204705520,31/03/2020,655.00,DEFINITIVE RESEARCH,LOCAL,002641500
0070012709,NORTH HERTFORDSHIRE DISTRICT COUNCIL,LEGAL SERVICES,NHDC,LEGAL ADVISE,11430014425,31/03/2020,469.20,WEIGHTMANS LLP,NOT LOCAL,002774500
0070012711,NORTH HERTFORDSHIRE DISTRICT COUNCIL,IT,NHDC,IT SYSTEMS,11161674571,31/03/2020,147.85,PHOENIX SOFTWARE,NOT LOCAL,000989500
0070012720,NORTH HERTFORDSHIRE DISTRICT COUNCIL,MANAGEMENT SUPPORT,NHDC,SCANNING SERVICE,11110055145,31/03/2020,"-10,200.00", NORTHGATE PUBLIC SERVICES (UK) LTD,NOT LOCAL,002410500
0070012721,NORTH HERTFORDSHIRE DISTRICT COUNCIL,IT,NHDC,SCANNING SERVICE,11161674571,31/03/2020,"4,208.90", NORTHGATE PUBLIC SERVICES (UK) LTD,NOT LOCAL,002410500
0070012726,NORTH HERTFORDSHIRE DISTRICT COUNCIL,CARELINE,NHDC,ASSISTED LIVING,43204704038,31/03/2020,409.17,INDEPENDENT LIVING SUPPLIES,NOT LOCAL,002694900
0070012727,NORTH HERTFORDSHIRE DISTRICT COUNCIL,ESTATES,NHDC,RECRUITMENT,11830004425,31/03/2020,"2,075.76",THE OYSTER PARTNERSHIP LIMITED,NOT LOCAL,002673100
0070012728,NORTH HERTFORDSHIRE DISTRICT COUNCIL,PAYROLL,NHDC,CONSULTANCY,11040004425,31/03/2020,780.00,PUBLIC POWER SOLUTIONS,NOT LOCAL,002762400
0070012729,NORTH HERTFORDSHIRE DISTRICT COUNCIL,HR,NHDC,CONSULTANCY,11060034425,07/04/2020,900.00,2J CONSULTING LIMITED,LOCAL,002699100
0070012731,NORTH HERTFORDSHIRE DISTRICT COUNCIL,PROPERTY SERVICES,NHDC,BUILDING SERVICE,11321962010,07/04/2020,868.80, P & J BUILDING MAINTENANCE LIMITED,LOCAL,001300800
0070012732,NORTH HERTFORDSHIRE DISTRICT COUNCIL,CARELINE,NHDC,SUBSCRIPTIONS,43204704789,31/03/2020,660.00,UK TELEHEALTHCARE,NOT LOCAL,002626100
0070012734,NORTH HERTFORDSHIRE DISTRICT COUNCIL,PLANNING,NHDC,SEASONAL DECORATIONS,12310032092,31/03/2020,"1,800.00",STEVENAGE BOROUGH COUNCIL,NOT LOCAL,000218900
0070012735,NORTH HERTFORDSHIRE DISTRICT COUNCIL,CARELINE,NHDC,RECRUITMENT,43204701221,31/03/2020,347.88,INTERACTION RECRUITMENT,NOT LOCAL,002044000
0070012736,NORTH HERTFORDSHIRE DISTRICT COUNCIL,CARELINE,NHDC,ASSISTED LIVING,43204704038,31/03/2020,"1,003.86",INDEPENDENT LIVING SUPPLIES,NOT LOCAL,002694900
0070012743,NORTH HERTFORDSHIRE DISTRICT COUNCIL,PLANNING,NHDC,LP INSPECTION,12520014425,31/03/2020,"9,930.00",THE PLANNING INSPECTORATE,NOT LOCAL,000994700
0070012744,NORTH HERTFORDSHIRE DISTRICT COUNCIL,PLANNING,NHDC,SIGNS,12230002089,31/03/2020,42.00,AUCKLAND MANUFACTURING T/A PGM SIGNS,NOT LOCAL,000821500
0070012745,NORTH HERTFORDSHIRE DISTRICT COUNCIL,COMMUNICATIONS,NHDC,PAPER SUPPLIES,11460094372,14/04/2020,289.44,ANTALIS UK LIMITED,NOT LOCAL,002251700
0070012748,NORTH HERTFORDSHIRE DISTRICT COUNCIL,CHIEF EXECS,NHDC,BUFFETS,11010004140,31/03/2020,82.20,LUNCHMATE,LOCAL,002647200
0070012756,NORTH HERTFORDSHIRE DISTRICT COUNCIL,CARELINE,NHDC,CARELINE SERVICES,43204704428,31/03/2020,"1,476.00",STEVENAGE BOROUGH COUNCIL,NOT LOCAL,000218900
0070012757,NORTH HERTFORDSHIRE DISTRICT COUNCIL,CARELINE,NHDC,ALARMS & SENSORS,43204704037,31/03/2020,"56,880.00",DORO CARE LIMITED,NOT LOCAL,002694700
0070012759,NORTH HERTFORDSHIRE DISTRICT COUNCIL,WASTE MANAGEMENT,NHDC,RECYCLING,12720075121,31/03/2020,"121,077.17",PEARCE RECYCLING CO LIMITED,NOT LOCAL,002398600
0070012764,NORTH HERTFORDSHIRE DISTRICT COUNCIL,HITCHIN TOWN HALL,NHDC,FOOD SUPPLIES,14224254145,07/04/2020,8.97,KENHURST FRESH & FROZEN FOODS LTD,LOCAL,002772900
0070012765,NORTH HERTFORDSHIRE DISTRICT COUNCIL,STRATEGIC HOUSING,NHDC,EMERGENCY B&B,13072042336,31/03/2020,378.00,PRIMROSE ESTATES T/A ALEXANDRA GUESTHOUS,NOT LOCAL,002684500
0070012766,NORTH HERTFORDSHIRE DISTRICT COUNCIL,STRATEGIC HOUSING,NHDC,EMERGENCY B&B,13072042336,31/03/2020,396.00,PRIMROSE ESTATES T/A ALEXANDRA GUESTHOUS,NOT LOCAL,002684500
0070012767,NORTH HERTFORDSHIRE DISTRICT COUNCIL,STRATEGIC HOUSING,NHDC,EMERGENCY B&B,13072042336,31/03/2020,378.00,PRIMROSE ESTATES T/A ALEXANDRA GUESTHOUS,NOT LOCAL,002684500
0070012770,NORTH HERTFORDSHIRE DISTRICT COUNCIL,ENVIRONMENTAL PROTECTION,NHDC,STRAY DOG CONTRA,12687625148,31/03/2020,"2,040.24",SDK ENVIRONMENTAL,NOT LOCAL,002649000
0070012771,NORTH HERTFORDSHIRE DISTRICT COUNCIL,PLANNING,NHDC,BUILDING SERVICE,12310032091,31/03/2020,217.68,ARC ELECTRICAL LIMITED,NOT LOCAL,001282400
0070012772,NORTH HERTFORDSHIRE DISTRICT COUNCIL,PROPERTY SERVICES,NHDC,BUILDING SERVICE,11321942010,31/03/2020,240.00,ARC ELECTRICAL LIMITED,NOT LOCAL,001282400
0070012773,NORTH HERTFORDSHIRE DISTRICT COUNCIL,GROUNDS MAINTENANCE,NHDC,BUILDING SERVICE,14330002010,31/03/2020,"1,092.00",ARC ELECTRICAL LIMITED,NOT LOCAL,001282400
0070012774,NORTH HERTFORDSHIRE DISTRICT COUNCIL,MANAGEMENT SUPPORT,NHDC,RECRUITMENT,11110001221,14/04/2020,603.65,CARLISLE STAFFING PLC T/A TATE,NOT LOCAL,002457700
0070012775,NORTH HERTFORDSHIRE DISTRICT COUNCIL,HR,NHDC,SUBSCRIPTIONS,11060034789,31/03/2020,"6,000.00",LEARNING POOL LIMITED,NOT LOCAL,002573500
0070012777,NORTH HERTFORDSHIRE DISTRICT COUNCIL,LEGAL SERVICES,NHDC,RECRUITMENT,11430011121,31/03/2020,"2,441.56",SELLICK PARTNERSHIP,NOT LOCAL,002622600
0070012778,NORTH HERTFORDSHIRE DISTRICT COUNCIL,REVENUES,NHDC,POSTAL SERVICES,11130004560,31/03/2020,399.60,ROYAL MAIL ANGLIA,NOT LOCAL,001019000
0070012781,NORTH HERTFORDSHIRE DISTRICT COUNCIL,GROUNDS MAINTENANCE,NHDC,TREE SURGERY,12310012018,07/04/2020,"6,660.31",APA CONTRACT SERVICES LTD,NOT LOCAL,002605200
0070012787,NORTH HERTFORDSHIRE DISTRICT COUNCIL,WASTE MANAGEMENT,NHDC,RECYCLING,12720075121,31/03/2020,"-119,892.36",PEARCE RECYCLING CO LIMITED,NOT LOCAL,002398600
0070012788,NORTH HERTFORDSHIRE DISTRICT COUNCIL,COMMUNICATIONS,NHDC,ADVERTISING,12960004371,31/03/2020,"1,314.00",ARCHANT COMMUNITY MEDIA LIMITED,NOT LOCAL,000113500
0070012791,NORTH HERTFORDSHIRE DISTRICT COUNCIL,GROUNDS MAINTENANCE,NHDC,TREE WORKS,12310012018,31/03/2020,160.00,RGS TREES AND LANDSCAPING,LOCAL,002273800
0070012792,NORTH HERTFORDSHIRE DISTRICT COUNCIL,GROUNDS MAINTENANCE,NHDC,TREE WORKS,14320002016,31/03/2020,190.00,RGS TREES AND LANDSCAPING,LOCAL,002273800
0070012794,NORTH HERTFORDSHIRE DISTRICT COUNCIL,PARKING SERVICES,NHDC,TREE WORKS,12207202018,31/03/2020,320.00,RGS TREES AND LANDSCAPING,LOCAL,002273800
0070012795,NORTH HERTFORDSHIRE DISTRICT COUNCIL,GROUNDS MAINTENANCE,NHDC,TREE WORKS,12310012018,31/03/2020,280.00,RGS TREES AND LANDSCAPING,LOCAL,002273800
0070012797,NORTH HERTFORDSHIRE DISTRICT COUNCIL,COMMUNICATIONS,NHDC,TELEPHONY SYSTEM,11480554013,14/04/2020,"1,777.92",BRITANNIC TECHNOLOGIES LIMITED,NOT LOCAL,002709000
0070012798,NORTH HERTFORDSHIRE DISTRICT COUNCIL,WASTE MANAGEMENT,NHDC,PPE EQUIP,12090002052,31/03/2020,135.00,ESSENTIAL SAFETYWEAR LTD,LOCAL,002785000
0070012802,NORTH HERTFORDSHIRE DISTRICT COUNCIL,PARKING SERVICES,NHDC,COURT FEES,12207204424,31/03/2020,"1,200.00",TRAFFIC ENFORCEMENT CENTRE,NOT LOCAL,002435000
0070012806,NORTH HERTFORDSHIRE DISTRICT COUNCIL,STRATEGIC HOUSING,NHDC,EMERGENCY B&B,13072042336,31/03/2020,378.00,PRIMROSE ESTATES T/A ALEXANDRA GUESTHOUS,NOT LOCAL,002684500
0070012807,NORTH HERTFORDSHIRE DISTRICT COUNCIL,STRATEGIC HOUSING,NHDC,EMERGENCY B&B,13072042336,31/03/2020,198.00,PRIMROSE ESTATES T/A ALEXANDRA GUESTHOUS,NOT LOCAL,002684500
0070012809,NORTH HERTFORDSHIRE DISTRICT COUNCIL,WASTE MANAGEMENT,NHDC,WASTE CONTRACT,12090002093,31/03/2020,"462,032.14",URBASER LIMITED,NOT LOCAL,002749500
0070012811,NORTH HERTFORDSHIRE DISTRICT COUNCIL,CARELINE,NHDC,SUBSCRIPTIONS,43204704371,31/03/2020,"1,030.00",WHICH? TRUSTED TRADERS,NOT LOCAL,002728900
0070012812,NORTH HERTFORDSHIRE DISTRICT COUNCIL,CARELINE,NHDC,ASSISTED LIVING,43204704452,31/03/2020,30.00,INDEPENDENT LIVING SUPPLIES,NOT LOCAL,002694900
0070012813,NORTH HERTFORDSHIRE DISTRICT COUNCIL,GROUNDS MAINTENANCE,NHDC,TREE WORKS,14320002016,31/03/2020,190.00,RGS TREES AND LANDSCAPING,LOCAL,002273800
0070012814,NORTH HERTFORDSHIRE DISTRICT COUNCIL,GROUNDS MAINTENANCE,NHDC,TREE WORKS,14310002098,31/03/2020,155.00,RGS TREES AND LANDSCAPING,LOCAL,002273800
0070012815,NORTH HERTFORDSHIRE DISTRICT COUNCIL,GROUNDS MAINTENANCE,NHDC,TREE WORKS,14330002098,31/03/2020,190.00,RGS TREES AND LANDSCAPING,LOCAL,002273800
0070012816,NORTH HERTFORDSHIRE DISTRICT COUNCIL,GROUNDS MAINTENANCE,NHDC,TREE WORKS,14310072016,31/03/2020,180.00,RGS TREES AND LANDSCAPING,LOCAL,002273800
0070012817,NORTH HERTFORDSHIRE DISTRICT COUNCIL,PARKING SERVICES,NHDC,TREE WORKS,12207202018,31/03/2020,180.00,RGS TREES AND LANDSCAPING,LOCAL,002273800
0070012818,NORTH HERTFORDSHIRE DISTRICT COUNCIL,GROUNDS MAINTENANCE,NHDC,TREE WORKS,14320002015,31/03/2020,50.00,RGS TREES AND LANDSCAPING,LOCAL,002273800
0070012819,NORTH HERTFORDSHIRE DISTRICT COUNCIL,GROUNDS MAINTENANCE,NHDC,TREE WORKS,14320002016,31/03/2020,180.00,RGS TREES AND LANDSCAPING,LOCAL,002273800
0070012820,NORTH HERTFORDSHIRE DISTRICT COUNCIL,GROUNDS MAINTENANCE,NHDC,TREE WORKS,14320002016,31/03/2020,400.00,RGS TREES AND LANDSCAPING,LOCAL,002273800
0070012821,NORTH HERTFORDSHIRE DISTRICT COUNCIL,GROUNDS MAINTENANCE,NHDC,TREE WORKS,14310012016,31/03/2020,225.00,RGS TREES AND LANDSCAPING,LOCAL,002273800
0070012822,NORTH HERTFORDSHIRE DISTRICT COUNCIL,PLANNING,NHDC,CONSULTANCY,12520014425,31/03/2020,"2,109.00",LAND USE CONSULTANTS,NOT LOCAL,002573300
0070012824,NORTH HERTFORDSHIRE DISTRICT COUNCIL,GROUNDS MAINTENANCE,NHDC,LIVESTOCK,14310002016,31/03/2020,"4,400.42",MAYDENCROFT FARM,LOCAL,001037400
0070012825,NORTH HERTFORDSHIRE DISTRICT COUNCIL,REVENUES,NHDC,CASH COLLECTION,11140004438,31/03/2020,154.96,G4S CASH SOLUTIONS  (UK) LTD,NOT LOCAL,001278600
0070012826,NORTH HERTFORDSHIRE DISTRICT COUNCIL,GROUNDS MAINTENANCE,NHDC,TREE WORKS,14310002018,31/03/2020,"18,784.67",STEVE DEAR TREE SERVICES LIMITED,NOT LOCAL,002670700
0070012827,NORTH HERTFORDSHIRE DISTRICT COUNCIL,DEMOCRATIC SERVICES,NHDC,EQUIP RENTAL,11800002336,14/04/2020,360.00,ESS HIRE (2016) LIMITED,LOCAL,002445000
0070012828,NORTH HERTFORDSHIRE DISTRICT COUNCIL,IT,NHDC,AUDIO VISUAL EQU,11161674573,31/03/2020,"5,494.80",AUDITEL RENTAL & SERVICE LIMITED,NOT LOCAL,002705600
0070012829,NORTH HERTFORDSHIRE DISTRICT COUNCIL,HITCHIN TOWN HALL,NHDC,RECRUITMENT,14224252752,31/03/2020,462.23,BLUE ARROW LIMITED,NOT LOCAL,002713500
0070012830,NORTH HERTFORDSHIRE DISTRICT COUNCIL,HITCHIN TOWN HALL,NHDC,RECRUITMENT,14224252752,31/03/2020,353.50,BLUE ARROW LIMITED,NOT LOCAL,002713500
0070012831,NORTH HERTFORDSHIRE DISTRICT COUNCIL,WASTE MANAGEMENT,NHDC,WASTE CONTRACT,12090002050,31/03/2020,"31,233.42",URBASER LIMITED,NOT LOCAL,002749500
0070012832,NORTH HERTFORDSHIRE DISTRICT COUNCIL,WASTE MANAGEMENT,NHDC,WASTE CONTRACT,12090002050,31/03/2020,"24,604.67",URBASER LIMITED,NOT LOCAL,002749500
0070012833,NORTH HERTFORDSHIRE DISTRICT COUNCIL,HITCHIN TOWN HALL,NHDC,RECRUITMENT,14224252752,31/03/2020,273.02,BLUE ARROW LIMITED,NOT LOCAL,002713500
0070012834,NORTH HERTFORDSHIRE DISTRICT COUNCIL,HITCHIN TOWN HALL,NHDC,RECRUITMENT,14224252752,31/03/2020,344.88,BLUE ARROW LIMITED,NOT LOCAL,002713500
0070012835,NORTH HERTFORDSHIRE DISTRICT COUNCIL,HITCHIN TOWN HALL,NHDC,RECRUITMENT,14224252752,31/03/2020,604.73,BLUE ARROW LIMITED,NOT LOCAL,002713500
0070012836,NORTH HERTFORDSHIRE DISTRICT COUNCIL,HITCHIN TOWN HALL,NHDC,FILM PRODUCTION,14224254371,31/03/2020,"1,750.00",ATOMIC,LOCAL,002781400
0070012837,NORTH HERTFORDSHIRE DISTRICT COUNCIL,HITCHIN TOWN HALL,NHDC,TRAINING,14224251860,31/03/2020,203.40,INTELLIGENT E-LEARNING LTD T/A FOOD SAFE,NOT LOCAL,002785300
0070012838,NORTH HERTFORDSHIRE DISTRICT COUNCIL,NORTH HERTS MUSEUM,NHDC,OUTDOOR FURNITUR,53106000836,31/03/2020,396.00,A & E LEISURE LIMITED,NOT LOCAL,002781700
0070012839,NORTH HERTFORDSHIRE DISTRICT COUNCIL,ELECTORAL SERVICES,NHDC,ELECTORAL SERVIC,11811004370,31/03/2020,"6,295.10",CIVICA ELECTION SERVICES,NOT LOCAL,002276800
0070012840,NORTH HERTFORDSHIRE DISTRICT COUNCIL,ELECTORAL SERVICES,NHDC,ELECTORAL SERVIC,11811004370,31/03/2020,"17,001.98",CIVICA ELECTION SERVICES,NOT LOCAL,002276800
0070012841,NORTH HERTFORDSHIRE DISTRICT COUNCIL,ELECTORAL SERVICES,NHDC,ELECTORAL SERVIC,11811004370,31/03/2020,"7,156.98",CIVICA ELECTION SERVICES,NOT LOCAL,002276800
0070012842,NORTH HERTFORDSHIRE DISTRICT COUNCIL,ELECTORAL SERVICES,NHDC,ELECTORAL SERVIC,11810004370,31/03/2020,"7,553.26",CIVICA ELECTION SERVICES,NOT LOCAL,002276800
0070012843,NORTH HERTFORDSHIRE DISTRICT COUNCIL,ELECTORAL SERVICES,NHDC,ELECTORAL SERVIC,11811004370,31/03/2020,"31,642.70",CIVICA ELECTION SERVICES,NOT LOCAL,002276800
0070012845,NORTH HERTFORDSHIRE DISTRICT COUNCIL,GROUNDS MAINTENANCE,NHDC,GROUNDS MAINT,12070002015,31/03/2020,"163,704.97",JOHN O'CONNER (GROUNDS MAINTENANCE)LTD,LOCAL,000172200
0070012846,NORTH HERTFORDSHIRE DISTRICT COUNCIL,PLANNING,NHDC,CONSULTANCY,12520034425,31/03/2020,"8,927.96",HYAS ASSOCIATES LIMITED,NOT LOCAL,002747900
0070012847,NORTH HERTFORDSHIRE DISTRICT COUNCIL,PLANNING,NHDC,CONSULTANCY,12520034425,31/03/2020,"1,819.50",HYAS ASSOCIATES LIMITED,NOT LOCAL,002747900
0070012848,NORTH HERTFORDSHIRE DISTRICT COUNCIL,LICENSING,NHDC,TAXI LICENSE PLA,12820009483,31/03/2020,673.08,NEW AUTO LTD T/A MOGO UK,NOT LOCAL,002123000
0070012849,NORTH HERTFORDSHIRE DISTRICT COUNCIL,PROPERTY SERVICES,NHDC,ENGINEERING,51106120836,31/03/2020,"6,000.00",TAYLOR HEATING LTD,NOT LOCAL,002784900
0070012850,NORTH HERTFORDSHIRE DISTRICT COUNCIL,GROUNDS MAINTENANCE,NHDC,GRASS CUTTING,14310092016,31/03/2020,"3,756.00",MAYDENCROFT  LIMITED,LOCAL,002595300
0070012851,NORTH HERTFORDSHIRE DISTRICT COUNCIL,ACTIVE COMMUNITIES,NHDC,CONSULTANCY,14070014371,31/03/2020,"2,804.70",ENGAGE DEEP LTD T/A COMMERCIAL GOV,NOT LOCAL,002783500
0070012852,NORTH HERTFORDSHIRE DISTRICT COUNCIL,ELECTORAL SERVICES,NHDC,HALL HIRE,11811004449,14/04/2020,300.00,KINGS WALDEN VILLAGE HALL,LOCAL,002113200
0070012853,NORTH HERTFORDSHIRE DISTRICT COUNCIL,PLANNING,NHDC,LEGAL ADVICE,12520014434,31/03/2020,"8,880.00",FRANCIS TAYLOR BULDING - CAROLINE DALY,NOT LOCAL,002736800
0070012854,NORTH HERTFORDSHIRE DISTRICT COUNCIL,GROUNDS MAINTENANCE,NHDC,BUILDING SERVICE,14310032016,31/03/2020,762.00,FRANK COOPER & SONS LIMITED,NOT LOCAL,002552200
0070012855,NORTH HERTFORDSHIRE DISTRICT COUNCIL,ESTATES,NHDC,SURVEYS,11310004460,07/04/2020,780.00,RWB GROUP UK LTD,NOT LOCAL,002785200
0070012856,NORTH HERTFORDSHIRE DISTRICT COUNCIL,COMMUNICATIONS,NHDC,COMMUNICATIONS,12960004789,31/03/2020,571.00,GRANICUS,NOT LOCAL,002753700
0070012857,NORTH HERTFORDSHIRE DISTRICT COUNCIL,PLANNING,NHDC,ROAD MARKING,12230002089,31/03/2020,"6,050.45",THREE COUNTIES LINING LIMITED,NOT LOCAL,002075700
0070012858,NORTH HERTFORDSHIRE DISTRICT COUNCIL,CARELINE,NHDC,POSTAL SERVICES,43204704560,31/03/2020,135.36,ROYAL MAIL ANGLIA,NOT LOCAL,001019000
0070012859,NORTH HERTFORDSHIRE DISTRICT COUNCIL,GROUNDS MAINTENANCE,NHDC,TREE WORKS,12310012018,31/03/2020,"2,985.70",STEVE DEAR TREE SERVICES LIMITED,NOT LOCAL,002670700
0070012860,NORTH HERTFORDSHIRE DISTRICT COUNCIL,ENVIRONMENTAL HEALTH,NHDC,RECRUITMENT,14604351121,07/04/2020,"1,188.00",THE OYSTER PARTNERSHIP LIMITED,NOT LOCAL,002673100
0070012861,NORTH HERTFORDSHIRE DISTRICT COUNCIL,ESTATES,NHDC,RECRUITMENT,11830004425,31/03/2020,"1,926.00",THE OYSTER PARTNERSHIP LIMITED,NOT LOCAL,002673100
0070012862,NORTH HERTFORDSHIRE DISTRICT COUNCIL,PLANNING,NHDC,EQUIP RENTAL,12520014425,31/03/2020,"1,782.00",ESS HIRE (2016) LIMITED,LOCAL,002445000
0070012863,NORTH HERTFORDSHIRE DISTRICT COUNCIL,GROUNDS MAINTENANCE,NHDC,TREE SURGERY,14310022016,31/03/2020,"3,024.00",APA CONTRACT SERVICES LTD,NOT LOCAL,002605200
0070012864,NORTH HERTFORDSHIRE DISTRICT COUNCIL,HITCHIN TOWN HALL,NHDC,SPORTS COACH,14224254443,31/03/2020,40.00,BRONTE THORNLEY,LOCAL,002719000
0070012867,NORTH HERTFORDSHIRE DISTRICT COUNCIL,PLANNING,NHDC,SURVEYS,12520014425,31/03/2020,"1,020.00",OPINION RESEARCH SERVICES LIMITED,NOT LOCAL,002575400
0070012868,NORTH HERTFORDSHIRE DISTRICT COUNCIL,GROUNDS MAINTENANCE,NHDC,BUILDING SERVICE,14310002016,21/04/2020,210.00,R P B BUILDING & ROOFING CONTRACTORS,LOCAL,000200700
0070012870,NORTH HERTFORDSHIRE DISTRICT COUNCIL,GROUNDS MAINTENANCE,NHDC,BUILDING SERVICE,14320002016,31/03/2020,150.00,R P B BUILDING & ROOFING CONTRACTORS,LOCAL,000200700
0070012872,NORTH HERTFORDSHIRE DISTRICT COUNCIL,CARELINE,NHDC,RECRUITMENT,43204701221,31/03/2020,542.22,INTERACTION RECRUITMENT,NOT LOCAL,002044000
0070012873,NORTH HERTFORDSHIRE DISTRICT COUNCIL,PROPERTY SERVICES,NHDC,UTILITY,11322252010,31/03/2020,29.28,BRITISH TELECOMMUNICATIONS PLC,NOT LOCAL,000035900
0070012874,NORTH HERTFORDSHIRE DISTRICT COUNCIL,COMMUNITY DEVELOPMENT,NHDC,GRANTS,11730296984,31/03/2020,"2,200.00",HITCHINBRITI,LOCAL,002510000
0070012877,NORTH HERTFORDSHIRE DISTRICT COUNCIL,IT,NHDC,IT SUPPLIES,11161674571,31/03/2020,79.86,SECUREDATA EUROPE LIMITED,NOT LOCAL,002736100
0070012878,NORTH HERTFORDSHIRE DISTRICT COUNCIL,PLANNING,NHDC,LEGAL ADVISE,12520014434,31/03/2020,"5,160.00",FRANCIS TAYLOR BUILDING - MS S ORNSBY,NOT LOCAL,002689700
0070012879,NORTH HERTFORDSHIRE DISTRICT COUNCIL,PLANNING,NHDC,ROAD MARKING,12230002089,31/03/2020,"4,345.20",THREE COUNTIES LINING LIMITED,NOT LOCAL,002075700
0070012880,NORTH HERTFORDSHIRE DISTRICT COUNCIL,PROPERTY SERVICES,NHDC,FIRE SAFETY INST,11321872010,31/03/2020,717.60,FIRST RESPONSE FIRE SAFETY UK LIMITED,NOT LOCAL,002649600
0070012883,NORTH HERTFORDSHIRE DISTRICT COUNCIL,CARELINE,NHDC,ASSISTIVE TECHNO,43204704417,31/03/2020,"13,958.46",PROVIDE CIC,NOT LOCAL,002763400
0070012884,NORTH HERTFORDSHIRE DISTRICT COUNCIL,CARELINE,NHDC,ASSISTED LIVING,43204704436,31/03/2020,12.48,INDEPENDENT LIVING SUPPLIES,NOT LOCAL,002694900
0070012885,NORTH HERTFORDSHIRE DISTRICT COUNCIL,GROUNDS MAINTENANCE,NHDC,PLAYGROUND INSTA,14310002025,31/03/2020,"1,800.00",SLC SOUTHERN LANDSCAPE & CONSTRUCTION,NOT LOCAL,002781100
0070012886,NORTH HERTFORDSHIRE DISTRICT COUNCIL,GROUNDS MAINTENANCE,NHDC,TREE SURGERY,14310022016,31/03/2020,"2,016.00",APA CONTRACT SERVICES LTD,NOT LOCAL,002605200
0070012887,NORTH HERTFORDSHIRE DISTRICT COUNCIL,LEISURE SERVICES,NHDC,LEISURE MANAGEMENT,14094464013,31/03/2020,"1,752.00",STEVENAGE LEISURE LIMITED,NOT LOCAL,002032000
0070012888,NORTH HERTFORDSHIRE DISTRICT COUNCIL,ELECTORAL SERVICES,NHDC,HALL HIRE,11811084449,31/03/2020,350.00,RADWELL VILLAGE HALL,LOCAL,001143800
0070012890,NORTH HERTFORDSHIRE DISTRICT COUNCIL,PLANNING,NHDC,PLANNING CONTRIBUTION,12520005210,31/03/2020,"20,000.00",EAST HERTFORDSHIRE DISTRICT COUNCIL,NOT LOCAL,002024100
0070012891,NORTH HERTFORDSHIRE DISTRICT COUNCIL,PLANNING,NHDC,SURVEYS,12520014425,31/03/2020,"1,620.00",OPINION RESEARCH SERVICES LIMITED,NOT LOCAL,002575400
0070012892,NORTH HERTFORDSHIRE DISTRICT COUNCIL,PLANNING,NHDC,LP EXAMINATION,12520014425,31/03/2020,"1,083.66",CLOUDCOURT LIMITED T/A PO SERVICES,NOT LOCAL,002732800
0070012893,NORTH HERTFORDSHIRE DISTRICT COUNCIL,WASTE MANAGEMENT,NHDC,SHARPS BINS,12710024025,07/04/2020,"1,377.84",MAUSER UK LTD T/A DANIELS HEALTHCARE,NOT LOCAL,002754100
0070012894,NORTH HERTFORDSHIRE DISTRICT COUNCIL,WASTE MANAGEMENT,NHDC,WASTE CONTRACT,12710005125,31/03/2020,"28,800.00",URBASER LIMITED,NOT LOCAL,002749500
0070012896,NORTH HERTFORDSHIRE DISTRICT COUNCIL,WASTE MANAGEMENT,NHDC,WASTE SERVICES,12700005210,31/03/2020,"5,124.00",EAST HERTFORDSHIRE DISTRICT COUNCIL,NOT LOCAL,002024100
0070012897,NORTH HERTFORDSHIRE DISTRICT COUNCIL,WASTE MANAGEMENT,NHDC,REUSABLE NAPPIES,12720004928,31/03/2020,100.00,TOTSBOTS LIMITED,NOT LOCAL,002701000
0070012898,NORTH HERTFORDSHIRE DISTRICT COUNCIL,GROUNDS MAINTENANCE,NHDC,PLAYGROUND INSTA,14310002025,31/03/2020,180.00,CPM PLAYGROUNDS LTD,LOCAL,002026900
0070012899,NORTH HERTFORDSHIRE DISTRICT COUNCIL,ACTIVE COMMUNITIES,NHDC,CYCLE COACHING,14070084443,31/03/2020,200.00,SALLIE BRACEWELL,LOCAL,002715300
0070012901,NORTH HERTFORDSHIRE DISTRICT COUNCIL,CARELINE,NHDC,ASSISTED LIVING,43204704436,31/03/2020,11.60,INDEPENDENT LIVING SUPPLIES,NOT LOCAL,002694900
0070012902,NORTH HERTFORDSHIRE DISTRICT COUNCIL,CARELINE,NHDC,ASSISTED LIVING,43204704038,31/03/2020,249.50,INDEPENDENT LIVING SUPPLIES,NOT LOCAL,002694900
0070012903,NORTH HERTFORDSHIRE DISTRICT COUNCIL,CARELINE,NHDC,ASSISTED LIVING,43204704038,31/03/2020,92.99,INDEPENDENT LIVING SUPPLIES,NOT LOCAL,002694900
0070012904,NORTH HERTFORDSHIRE DISTRICT COUNCIL,FINANCE,NHDC,PLAYGROUND INSTA,71120090945,31/03/2020,-24.00,CPM PLAYGROUNDS LTD,LOCAL,002026900
0070012905,NORTH HERTFORDSHIRE DISTRICT COUNCIL,INSURANCE,NHDC,INSURANCE,11171822856,31/03/2020,894.32,JLT SPECIALITY LIMITED,NOT LOCAL,002668000
0070012907,NORTH HERTFORDSHIRE DISTRICT COUNCIL,STRATEGIC HOUSING,NHDC,GRANTS,13072044784,21/04/2020,"5,500.00",HERTS YOUNG HOMELESS GROUP,NOT LOCAL,002225300
0070012909,NORTH HERTFORDSHIRE DISTRICT COUNCIL,CARELINE,NHDC,ASSISTED LIVING,43204704421,31/03/2020,"2,830.36",INDEPENDENT LIVING SUPPLIES,NOT LOCAL,002694900
0070012910,NORTH HERTFORDSHIRE DISTRICT COUNCIL,COMMUNICATIONS,NHDC,PRINTING,11460014422,31/03/2020,"1,512.00",HERTFORDSHIRE COUNTY COUNCIL,NOT LOCAL,000109000
0070012911,NORTH HERTFORDSHIRE DISTRICT COUNCIL,COMMUNICATIONS,NHDC,PRINTING,11460014422,31/03/2020,"4,824.00",HERTFORDSHIRE COUNTY COUNCIL,NOT LOCAL,000109000
0070012912,NORTH HERTFORDSHIRE DISTRICT COUNCIL,COMMUNICATIONS,NHDC,PRINTING,11460014422,31/03/2020,"3,141.80",HERTFORDSHIRE COUNTY COUNCIL,NOT LOCAL,000109000
0070012913,NORTH HERTFORDSHIRE DISTRICT COUNCIL,HR,NHDC,CHILD PROTEC TRA,11060034425,31/03/2020,540.00,ECP LIMITED,LOCAL,002329700
0070012914,NORTH HERTFORDSHIRE DISTRICT COUNCIL,CARELINE,NHDC,ASSISTED LIVING,43204704038,31/03/2020,290.64,INDEPENDENT LIVING SUPPLIES,NOT LOCAL,002694900
0070012915,NORTH HERTFORDSHIRE DISTRICT COUNCIL,CARELINE,NHDC,ASSISTED LIVING,43204704038,21/04/2020,799.68,INDEPENDENT LIVING SUPPLIES,NOT LOCAL,002694900
0070012917,NORTH HERTFORDSHIRE DISTRICT COUNCIL,CARELINE,NHDC,ASSISTED LIVING,43204704038,21/04/2020,691.79,INDEPENDENT LIVING SUPPLIES,NOT LOCAL,002694900
0070012918,NORTH HERTFORDSHIRE DISTRICT COUNCIL,CARELINE,NHDC,ASSISTED LIVING,43204704038,31/03/2020,290.64,INDEPENDENT LIVING SUPPLIES,NOT LOCAL,002694900
0070012919,NORTH HERTFORDSHIRE DISTRICT COUNCIL,CARELINE,NHDC,ASSISTED LIVING,43204704038,31/03/2020,744.37,INDEPENDENT LIVING SUPPLIES,NOT LOCAL,002694900
0070012920,NORTH HERTFORDSHIRE DISTRICT COUNCIL,ELECTORAL SERVICES,NHDC,ELECTORAL SERVIC,11820004435,14/04/2020,429.73,CIVICA ELECTION SERVICES,NOT LOCAL,002276800
0070012921,NORTH HERTFORDSHIRE DISTRICT COUNCIL,HITCHIN TOWN HALL,NHDC,COACHING,14224254443,31/03/2020,150.00,PATRICIA DAY,LOCAL,002739500
0070012922,NORTH HERTFORDSHIRE DISTRICT COUNCIL,WASTE MANAGEMENT,NHDC,BABY GOODS,12720004928,31/03/2020,25.00,CLOSE PARENT LIMITED,NOT LOCAL,002701200
0070012923,NORTH HERTFORDSHIRE DISTRICT COUNCIL,WASTE MANAGEMENT,NHDC,BABY GOODS,12720004928,31/03/2020,25.00,CLOSE PARENT LIMITED,NOT LOCAL,002701200
0070012924,NORTH HERTFORDSHIRE DISTRICT COUNCIL,WASTE MANAGEMENT,NHDC,BABY GOODS,12720004928,31/03/2020,25.00,CLOSE PARENT LIMITED,NOT LOCAL,002701200
0070012925,NORTH HERTFORDSHIRE DISTRICT COUNCIL,WASTE MANAGEMENT,NHDC,BABY GOODS,12720004928,31/03/2020,25.00,CLOSE PARENT LIMITED,NOT LOCAL,002701200
0070012926,NORTH HERTFORDSHIRE DISTRICT COUNCIL,PROPERTY SERVICES,NHDC,FACILITIES MGMT,11320002010,31/03/2020,"4,901.09",MEARS FACILITIES MANAGEMENT,NOT LOCAL,002763600
0070012927,NORTH HERTFORDSHIRE DISTRICT COUNCIL,CARELINE,NHDC,ASSISTED LIVING,43204704038,21/04/2020,818.16,INDEPENDENT LIVING SUPPLIES,NOT LOCAL,002694900
0070012928,NORTH HERTFORDSHIRE DISTRICT COUNCIL,GROUNDS MAINTENANCE,NHDC,TREE WORKS,12310012018,07/04/2020,"2,292.43",STEVE DEAR TREE SERVICES LIMITED,NOT LOCAL,002670700
0070012931,NORTH HERTFORDSHIRE DISTRICT COUNCIL,PROPERTY SERVICES,NHDC,BUILDING SERVICE,11321872010,31/03/2020,312.48,ARC ELECTRICAL LIMITED,NOT LOCAL,001282400
0070012932,NORTH HERTFORDSHIRE DISTRICT COUNCIL,HITCHIN TOWN HALL,NHDC,BUILDING SERVICE,11322002010,21/04/2020,268.68,ARC ELECTRICAL LIMITED,NOT LOCAL,001282400
0070012933,NORTH HERTFORDSHIRE DISTRICT COUNCIL,CARELINE,NHDC,ASSISTIVE TECHNO,43204704420,31/03/2020,-115.80,PROVIDE CIC,NOT LOCAL,002763400
0070012934,NORTH HERTFORDSHIRE DISTRICT COUNCIL,CARELINE,NHDC,ASSISTED LIVING,43204704452,31/03/2020,11.34,INDEPENDENT LIVING SUPPLIES,NOT LOCAL,002694900
0070012935,NORTH HERTFORDSHIRE DISTRICT COUNCIL,CARELINE,NHDC,ASSISTED LIVING,43204704436,31/03/2020,87.36,INDEPENDENT LIVING SUPPLIES,NOT LOCAL,002694900
0070012936,NORTH HERTFORDSHIRE DISTRICT COUNCIL,PARKING SERVICES,NHDC,TREE WORKS,12207202018,07/04/2020,"4,945.27",STEVE DEAR TREE SERVICES LIMITED,NOT LOCAL,002670700
0070012938,NORTH HERTFORDSHIRE DISTRICT COUNCIL,IT,NHDC,IT SOFTWARE,51165850848,21/04/2020,"4,490.00",INTERNAL SYSTEMS LIMITED,NOT LOCAL,002024300
0070012940,NORTH HERTFORDSHIRE DISTRICT COUNCIL,WASTE MANAGEMENT,NHDC,WASTE SERVICES,12090002052,07/04/2020,147.77,WASTECARE LIMITED,NOT LOCAL,002164700
0070012941,NORTH HERTFORDSHIRE DISTRICT COUNCIL,WASTE MANAGEMENT,NHDC,WASTE CONTRACT,12090002050,31/03/2020,"1,008.00",URBASER LIMITED,NOT LOCAL,002749500
0070012942,NORTH HERTFORDSHIRE DISTRICT COUNCIL,GROUNDS MAINTENANCE,NHDC,ELECTRICAL WORKS,53146810836,31/03/2020,"1,672.87",FIXATEX LIMITED,NOT LOCAL,002785600
0070012943,NORTH HERTFORDSHIRE DISTRICT COUNCIL,GROUNDS MAINTENANCE,NHDC,ELECTRICAL WORKS,53146810836,31/03/2020,"30,775.54",FIXATEX LIMITED,NOT LOCAL,002785600
0070012944,NORTH HERTFORDSHIRE DISTRICT COUNCIL,HITCHIN TOWN HALL,NHDC,INSTALL SOUND SY,14224254012,31/03/2020,26.40,ROSSCO LIMITED,LOCAL,002327700
0070012945,NORTH HERTFORDSHIRE DISTRICT COUNCIL,PROPERTY SERVICES,NHDC,CLEANING PRODUCT,11321872752,31/03/2020,37.44,AVICA UK LIMITED,NOT LOCAL,002676400
0070012946,NORTH HERTFORDSHIRE DISTRICT COUNCIL,CARELINE,NHDC,ASSISTED LIVING,43204704038,21/04/2020,"1,095.59",INDEPENDENT LIVING SUPPLIES,NOT LOCAL,002694900
0070012947,NORTH HERTFORDSHIRE DISTRICT COUNCIL,WASTE MANAGEMENT,NHDC,WASTE PERMITS,12720084370,07/04/2020,203.58,EURO LABEL PRINTERS LTD,NOT LOCAL,002778200
0070012948,NORTH HERTFORDSHIRE DISTRICT COUNCIL,LEGAL SERVICES,NHDC,RECRUITMENT,11430011121,31/03/2020,"2,441.56",SELLICK PARTNERSHIP,NOT LOCAL,002622600
0070012949,NORTH HERTFORDSHIRE DISTRICT COUNCIL,WASTE MANAGEMENT,NHDC,RECYCLING GOODS,12710014025,07/04/2020,"1,347.82",UK CONTAINER MAINTENANCE LIMITED,NOT LOCAL,002773200
0070012950,NORTH HERTFORDSHIRE DISTRICT COUNCIL,COMMUNITY DEVELOPMENT,NHDC,GRANTS,11730306984,14/04/2020,"7,184.88",GROUNDWORK HERTS, LOCAL,000874900
0070012951,NORTH HERTFORDSHIRE DISTRICT COUNCIL,GROUNDS MAINTENANCE,NHDC,GROUNDS MAINT,53146810836,31/03/2020,"3,600.00",GROUNDWORK HERTFORDSHIRE,NOT LOCAL,000874900
0070012952,NORTH HERTFORDSHIRE DISTRICT COUNCIL,PROPERTY SERVICES,NHDC,GRANTS,51106120836,07/04/2020,"15,012.00",ASHTONS RENOVATIONS,LOCAL,002758200
0070012953,NORTH HERTFORDSHIRE DISTRICT COUNCIL,GROUNDS MAINTENANCE,NHDC,GROUNDS MAINT,53146870836,31/03/2020,"4,695.60",GROUNDWORK HERTFORDSHIRE,NOT LOCAL,000874900
0070012954,NORTH HERTFORDSHIRE DISTRICT COUNCIL,MANAGEMENT SUPPORT,NHDC,SCANNING SERVICE,11110055145,07/04/2020,510.00, NORTHGATE PUBLIC SERVICES (UK) LTD,NOT LOCAL,002410500
0070012955,NORTH HERTFORDSHIRE DISTRICT COUNCIL,FINANCE,NHDC,ELECTRICAL WORKS,71120090945,31/03/2020,"-2,129.26",FIXATEX LIMITED,NOT LOCAL,002785600
0070012957,NORTH HERTFORDSHIRE DISTRICT COUNCIL,PARKING SERVICES,NHDC,CAR PARK MACHINE,12207204444,07/04/2020,"1,944.36",FLOWBIRD SMART CITY UK LIMITED,NOT LOCAL,002348100
0070012958,NORTH HERTFORDSHIRE DISTRICT COUNCIL,GROUNDS MAINTENANCE,NHDC,DESIGN SERVICES,14310012016,07/04/2020,972.00,FITZPATRICK WOOLMER DESIGN,NOT LOCAL,002514900
0070012959,NORTH HERTFORDSHIRE DISTRICT COUNCIL,MANAGEMENT SUPPORT,NHDC,STATIONERY,11460024372,21/04/2020,19.10,LYRECO UK LTD,NOT LOCAL,002126700
0070012960,NORTH HERTFORDSHIRE DISTRICT COUNCIL,MANAGEMENT SUPPORT,NHDC,STATIONERY,11460024372,21/04/2020,10.03,LYRECO UK LTD,NOT LOCAL,002126700
0070012961,NORTH HERTFORDSHIRE DISTRICT COUNCIL,MANAGEMENT SUPPORT,NHDC,STATIONERY,11460024372,21/04/2020,8.90,LYRECO UK LTD,NOT LOCAL,002126700
0070012962,NORTH HERTFORDSHIRE DISTRICT COUNCIL,MANAGEMENT SUPPORT,NHDC,STATIONERY,11460024372,21/04/2020,95.87,LYRECO UK LTD,NOT LOCAL,002126700
0070012963,NORTH HERTFORDSHIRE DISTRICT COUNCIL,MANAGEMENT SUPPORT,NHDC,STATIONERY,11460024372,21/04/2020,26.27,LYRECO UK LTD,NOT LOCAL,002126700
0070012964,NORTH HERTFORDSHIRE DISTRICT COUNCIL,MANAGEMENT SUPPORT,NHDC,STATIONERY,11460024372,21/04/2020,28.07,LYRECO UK LTD,NOT LOCAL,002126700
0070012965,NORTH HERTFORDSHIRE DISTRICT COUNCIL,MANAGEMENT SUPPORT,NHDC,STATIONERY,11460024372,21/04/2020,11.76,LYRECO UK LTD,NOT LOCAL,002126700
0070012966,NORTH HERTFORDSHIRE DISTRICT COUNCIL,MANAGEMENT SUPPORT,NHDC,STATIONERY,11460024372,21/04/2020,12.12,LYRECO UK LTD,NOT LOCAL,002126700
0070012967,NORTH HERTFORDSHIRE DISTRICT COUNCIL,STRATEGIC HOUSING,NHDC,EMERGENCY B&B,13072042336,07/04/2020,264.00,PRIMROSE ESTATES T/A ALEXANDRA GUESTHOUS,NOT LOCAL,002684500
0070012968,NORTH HERTFORDSHIRE DISTRICT COUNCIL,STRATEGIC HOUSING,NHDC,EMERGENCY B&B,13072042336,07/04/2020,216.00,PRIMROSE ESTATES T/A ALEXANDRA GUESTHOUS,NOT LOCAL,002684500
0070012969,NORTH HERTFORDSHIRE DISTRICT COUNCIL,STRATEGIC HOUSING,NHDC,EMERGENCY B&B,13072042336,07/04/2020,378.00,PRIMROSE ESTATES T/A ALEXANDRA GUESTHOUS,NOT LOCAL,002684500
0070012970,NORTH HERTFORDSHIRE DISTRICT COUNCIL,STRATEGIC HOUSING,NHDC,EMERGENCY B&B,13072042336,07/04/2020,108.00,PRIMROSE ESTATES T/A ALEXANDRA GUESTHOUS,NOT LOCAL,002684500
0070012971,NORTH HERTFORDSHIRE DISTRICT COUNCIL,STRATEGIC HOUSING,NHDC,EMERGENCY B&B,13072042336,07/04/2020,108.00,PRIMROSE ESTATES T/A ALEXANDRA GUESTHOUS,NOT LOCAL,002684500
0070012973,NORTH HERTFORDSHIRE DISTRICT COUNCIL,PLANNING,NHDC,PUBLICATION,12550014789,07/04/2020,"2,250.00",THOMSON SWEET & MAXWELL,NOT LOCAL,002031200
0070012980,NORTH HERTFORDSHIRE DISTRICT COUNCIL,PROPERTY SERVICES,NHDC,FACILITIES MGMT,11320002010,07/04/2020,"4,913.38",MEARS FACILITIES MANAGEMENT,NOT LOCAL,002763600
0070012981,NORTH HERTFORDSHIRE DISTRICT COUNCIL,PROPERTY SERVICES,NHDC,CLEANING PRODUCT,11321872752,14/04/2020,38.41,AVICA UK LIMITED,NOT LOCAL,002676400
0070012983,NORTH HERTFORDSHIRE DISTRICT COUNCIL,MANAGEMENT SUPPORT,NHDC,STATIONERY,11460024372,21/04/2020,-12.12,LYRECO UK LTD,NOT LOCAL,002126700
0070012984,NORTH HERTFORDSHIRE DISTRICT COUNCIL,GROUNDS MAINTENANCE,NHDC,GROUNDS MAINT,12070002015,14/04/2020,"8,895.80",JOHN O'CONNER (GROUNDS MAINTENANCE)LTD,LOCAL,000172200
0070012986,NORTH HERTFORDSHIRE DISTRICT COUNCIL,ELECTORAL SERVICES,NHDC,CONSULTANCY,11820001860,14/04/2020,240.00,ASSOC OF ELECTORAL ADMINISTRATORS,NOT LOCAL,002282800
0070012987,NORTH HERTFORDSHIRE DISTRICT COUNCIL,PROPERTY SERVICES,NHDC,BUILDING SERVICE,11321872547,07/04/2020,590.40,TREND CONTROL SYSTEMS LIMITED,NOT LOCAL,002328900
0070012988,NORTH HERTFORDSHIRE DISTRICT COUNCIL,REVENUES,NHDC,LEGAL ADVISE,63609350906,07/04/2020,388.60,WEIGHTMANS LLP,NOT LOCAL,002774500
0070012989,NORTH HERTFORDSHIRE DISTRICT COUNCIL,ELECTORAL SERVICES,NHDC,PAYROLL SERVICES,11811064425,07/04/2020,38.40,ACCESS UK LIMITED,NOT LOCAL,002741300
0070012990,NORTH HERTFORDSHIRE DISTRICT COUNCIL,ESTATES,NHDC,RECRUITMENT,11830004425,07/04/2020,"1,614.24",THE OYSTER PARTNERSHIP LIMITED,NOT LOCAL,002673100
0070012992,NORTH HERTFORDSHIRE DISTRICT COUNCIL,MANAGEMENT SUPPORT,NHDC,SCANNING SERVICE,11110055145,07/04/2020,161.11, NORTHGATE PUBLIC SERVICES (UK) LTD,NOT LOCAL,002410500
0070012993,NORTH HERTFORDSHIRE DISTRICT COUNCIL,MANAGEMENT SUPPORT,NHDC,SCANNING SERVICE,11110055145,07/04/2020,38.10, NORTHGATE PUBLIC SERVICES (UK) LTD,NOT LOCAL,002410500
0070012994,NORTH HERTFORDSHIRE DISTRICT COUNCIL,MANAGEMENT SUPPORT,NHDC,SCANNING SERVICE,11110055145,07/04/2020,22.20, NORTHGATE PUBLIC SERVICES (UK) LTD,NOT LOCAL,002410500
0070012997,NORTH HERTFORDSHIRE DISTRICT COUNCIL,MANAGEMENT SUPPORT,NHDC,STATIONERY,11460024372,21/04/2020,-18.76,LYRECO UK LTD,NOT LOCAL,002126700
0070012998,NORTH HERTFORDSHIRE DISTRICT COUNCIL,PROPERTY SERVICES,NHDC,CCTV,12590004013,21/04/2020,"120,612.00",STEVENAGE BOROUGH COUNCIL,NOT LOCAL,000218900
0070012999,NORTH HERTFORDSHIRE DISTRICT COUNCIL,ENVIRONMENTAL HEALTH,NHDC,CONSULTANCY,14604354425,14/04/2020,360.00,TRAYPAHLU ASSOCS LIMITED,NOT LOCAL,002338600
0070013000,NORTH HERTFORDSHIRE DISTRICT COUNCIL,ENVIRONMENTAL HEALTH,NHDC,CONSULTANCY,14604354425,21/04/2020,360.00,TRAYPAHLU ASSOCS LIMITED,NOT LOCAL,002338600
0070013001,NORTH HERTFORDSHIRE DISTRICT COUNCIL,ENVIRONMENTAL HEALTH,NHDC,CONSULTANCY,14604354425,14/04/2020,360.00,TRAYPAHLU ASSOCS LIMITED,NOT LOCAL,002338600
0070013002,NORTH HERTFORDSHIRE DISTRICT COUNCIL,STRATEGIC HOUSING,NHDC,FUNDING,13082084425,21/04/2020,"10,000.00",HERTFORDSHIRE COUNTY COUNCIL,NOT LOCAL,000109000
0070013004,NORTH HERTFORDSHIRE DISTRICT COUNCIL,STRATEGIC HOUSING,NHDC,FUNDING,13082084425,21/04/2020,"-5,000.00",HERTFORDSHIRE COUNTY COUNCIL,NOT LOCAL,000109000
0070013005,NORTH HERTFORDSHIRE DISTRICT COUNCIL,ENVIRONMENTAL HEALTH,NHDC,UNDERTAKERS,39169680750,07/04/2020,"1,261.00",NEVILLE FUNERAL SERVICE,LOCAL,002151800
0070013006,NORTH HERTFORDSHIRE DISTRICT COUNCIL,NORTH HERTS MUSEUM,NHDC,CONSULTANCY,14425004924,07/04/2020,"2,700.00",STEVENAGE BOROUGH COUNCIL,NOT LOCAL,000218900
0070013007,NORTH HERTFORDSHIRE DISTRICT COUNCIL,HR,NHDC,TRAINING,11060034425,07/04/2020,366.00,HERTFORDSHIRE COUNTY COUNCIL,NOT LOCAL,000109000
0070013008,NORTH HERTFORDSHIRE DISTRICT COUNCIL,LEGAL SERVICES,NHDC,RECRUITMENT,11400004566,14/04/2020,282.70,CARLISLE STAFFING PLC T/A TATE,NOT LOCAL,002457700
0070013009,NORTH HERTFORDSHIRE DISTRICT COUNCIL,NORTH HERTS MUSEUM,NHDC,SECURITY,14422004428,07/04/2020,43.20,ARENA SECURITY LTD,LOCAL,000014000
0070013010,NORTH HERTFORDSHIRE DISTRICT COUNCIL,NORTH HERTS MUSEUM,NHDC,SECURITY,14425004428,14/04/2020,43.20,ARENA SECURITY LTD,LOCAL,000014000
0070013011,NORTH HERTFORDSHIRE DISTRICT COUNCIL,PROPERTY SERVICES,NHDC,SECURITY,12207224428,14/04/2020,584.78,ARENA SECURITY LTD,LOCAL,000014000
0070013012,NORTH HERTFORDSHIRE DISTRICT COUNCIL,PROPERTY SERVICES,NHDC,SECURITY,12207214428,07/04/2020,918.50,ARENA SECURITY LTD,LOCAL,000014000
0070013013,NORTH HERTFORDSHIRE DISTRICT COUNCIL,PROPERTY SERVICES,NHDC,SECURITY,12207224428,14/04/2020,196.04,ARENA SECURITY LTD,LOCAL,000014000
0070013014,NORTH HERTFORDSHIRE DISTRICT COUNCIL,HR,NHDC,RECRUITMENT,11060034425,07/04/2020,"2,400.00",KORN FERRY HAY GROUP,NOT LOCAL,002742300
0070013015,NORTH HERTFORDSHIRE DISTRICT COUNCIL,ACTIVE COMMUNITIES,NHDC,DANCE INSTRUCTOR,14160114443,21/04/2020,60.00,IMAGINATION ARTS,NOT LOCAL,002761800
0070013016,NORTH HERTFORDSHIRE DISTRICT COUNCIL,ACTIVE COMMUNITIES,NHDC,DANCE INSTRUCTOR,14160114443,21/04/2020,30.00,IMAGINATION ARTS,NOT LOCAL,002761800
0070013017,NORTH HERTFORDSHIRE DISTRICT COUNCIL,CARELINE,NHDC,ASSISTED LIVING,43204704421,21/04/2020,"3,014.26",INDEPENDENT LIVING SUPPLIES,NOT LOCAL,002694900
0070013019,NORTH HERTFORDSHIRE DISTRICT COUNCIL,ELECTORAL SERVICES,NHDC,HALL HIRE,11811004449,14/04/2020,150.00,THERFIELD CHAPEL,LOCAL,000344900
0070013020,NORTH HERTFORDSHIRE DISTRICT COUNCIL,CARELINE,NHDC,RECRUITMENT,43204701221,07/04/2020,338.47,INTERACTION RECRUITMENT,NOT LOCAL,002044000
0070013022,NORTH HERTFORDSHIRE DISTRICT COUNCIL,LEGAL SERVICES,NHDC,RECRUITMENT,11430011121,07/04/2020,"1,891.54",VENN GROUP,NOT LOCAL,002696900
0070013023,NORTH HERTFORDSHIRE DISTRICT COUNCIL,DEMOCRATIC SERVICES,NHDC,RECRUITMENT,11420001121,07/04/2020,157.06,CARLISLE STAFFING PLC T/A TATE,NOT LOCAL,002457700
0070013024,NORTH HERTFORDSHIRE DISTRICT COUNCIL,MANAGEMENT SUPPORT,NHDC,RECRUITMENT,11110001221,14/04/2020,654.66,CARLISLE STAFFING PLC T/A TATE,NOT LOCAL,002457700
0070013025,NORTH HERTFORDSHIRE DISTRICT COUNCIL,LEGAL SERVICES,NHDC,RECRUITMENT,11400004566,14/04/2020,769.55,CARLISLE STAFFING PLC T/A TATE,NOT LOCAL,002457700
0070013026,NORTH HERTFORDSHIRE DISTRICT COUNCIL,LEGAL SERVICES,NHDC,RECRUITMENT,11400004566,14/04/2020,628.20,CARLISLE STAFFING PLC T/A TATE,NOT LOCAL,002457700
0070013027,NORTH HERTFORDSHIRE DISTRICT COUNCIL,LEGAL SERVICES,NHDC,RECRUITMENT,11400004566,14/04/2020,774.78,CARLISLE STAFFING PLC T/A TATE,NOT LOCAL,002457700
0070013028,NORTH HERTFORDSHIRE DISTRICT COUNCIL,MANAGEMENT SUPPORT,NHDC,RECRUITMENT,11110001221,14/04/2020,595.14,CARLISLE STAFFING PLC T/A TATE,NOT LOCAL,002457700
0070013029,NORTH HERTFORDSHIRE DISTRICT COUNCIL,DEMOCRATIC SERVICES,NHDC,RECRUITMENT,11420001121,07/04/2020,31.42,CARLISLE STAFFING PLC T/A TATE,NOT LOCAL,002457700
0070013030,NORTH HERTFORDSHIRE DISTRICT COUNCIL,LEGAL SERVICES,NHDC,RECRUITMENT,11400004566,14/04/2020,774.78,CARLISLE STAFFING PLC T/A TATE,NOT LOCAL,002457700
0070013031,NORTH HERTFORDSHIRE DISTRICT COUNCIL,LEGAL SERVICES,NHDC,RECRUITMENT,11400004566,21/04/2020,314.10,CARLISLE STAFFING PLC T/A TATE,NOT LOCAL,002457700
0070013032,NORTH HERTFORDSHIRE DISTRICT COUNCIL,MANAGEMENT SUPPORT,NHDC,RECRUITMENT,11110001221,14/04/2020,595.14,CARLISLE STAFFING PLC T/A TATE,NOT LOCAL,002457700
0070013033,NORTH HERTFORDSHIRE DISTRICT COUNCIL,HITCHIN TOWN HALL,NHDC,BUILDING SERVICE,11322002010,07/04/2020,569.38,ARC ELECTRICAL LIMITED,NOT LOCAL,001282400
0070013035,NORTH HERTFORDSHIRE DISTRICT COUNCIL,ELECTORAL SERVICES,NHDC,PUBLICATION,11820004374,07/04/2020,291.50,THOMSON SWEET & MAXWELL,NOT LOCAL,002031200
0070013036,NORTH HERTFORDSHIRE DISTRICT COUNCIL,FINANCE,NHDC,AUDIT SERVICES,11190005217,07/04/2020,"31,212.00",HERTFORDSHIRE COUNTY COUNCIL,NOT LOCAL,000109000
0070013037,NORTH HERTFORDSHIRE DISTRICT COUNCIL,LEISURE SERVICES,NHDC,SUBSCRIPTIONS,14200004789,07/04/2020,716.00,NABMA,NOT LOCAL,000775700
0070013038,NORTH HERTFORDSHIRE DISTRICT COUNCIL,WASTE MANAGEMENT,NHDC,SOFTWARE,12700004565,07/04/2020,"6,241.80",WHITESPACE WORK SOFTWARE LIMITED,NOT LOCAL,002750400
0070013039,NORTH HERTFORDSHIRE DISTRICT COUNCIL,WASTE MANAGEMENT,NHDC,RECYCLING,12720075126,07/04/2020,"138,757.90",PEARCE RECYCLING CO LIMITED,NOT LOCAL,002398600
0070013040,NORTH HERTFORDSHIRE DISTRICT COUNCIL,PROPERTY SERVICES,NHDC,TELECOMMUNICATIO,12590004018,14/04/2020,54.00,VIRGIN MEDIA BUSINESS,NOT LOCAL,001359700
0070013041,NORTH HERTFORDSHIRE DISTRICT COUNCIL,GROUNDS MAINTENANCE,NHDC,PLAYGROUND INSTA,53147020836,07/04/2020,"35,976.34",SLC SOUTHERN LANDSCAPE & CONSTRUCTION,NOT LOCAL,002781100
0070013042,NORTH HERTFORDSHIRE DISTRICT COUNCIL,GROUNDS MAINTENANCE,NHDC,FOUNTAIN/POOL,14310082020,21/04/2020,780.00,POOL PLANT ENGINEERING,NOT LOCAL,002375300
0070013045,NORTH HERTFORDSHIRE DISTRICT COUNCIL,LEISURE SERVICES,NHDC,FOUNTAIN/POOL,14094462010,07/04/2020,"1,486.80",POOL PLANT ENGINEERING,NOT LOCAL,002375300
0070013046,NORTH HERTFORDSHIRE DISTRICT COUNCIL,GROUNDS MAINTENANCE,NHDC,FOUNTAIN/POOL,14310082020,07/04/2020,517.20,POOL PLANT ENGINEERING,NOT LOCAL,002375300
0070013047,NORTH HERTFORDSHIRE DISTRICT COUNCIL,PROPERTY SERVICES,NHDC,CONSULTANCY,52126230836,07/04/2020,835.74,VERTICA CONSULTING LIMITED,NOT LOCAL,002640400
0070013048,NORTH HERTFORDSHIRE DISTRICT COUNCIL,ENVIRONMENTAL HEALTH,NHDC,LEASING,14604383130,07/04/2020,589.64,ARNOLD CLARK VEHICLE MANAGEMENT,NOT LOCAL,002548100
0070013049,NORTH HERTFORDSHIRE DISTRICT COUNCIL,LAND CHARGES,NHDC,BUILDING CONTROL,11750004437,07/04/2020,"1,804.44",HERTFORDSHIRE BUILDING CONTROL LIMITED,NOT LOCAL,002723500
0070013050,NORTH HERTFORDSHIRE DISTRICT COUNCIL,CARELINE,NHDC,SECURITY,43204704428,14/04/2020,"4,818.96",ARENA SECURITY LTD,LOCAL,000014000
0070013051,NORTH HERTFORDSHIRE DISTRICT COUNCIL,WASTE MANAGEMENT,NHDC,CLEANING,14500004420,07/04/2020,"13,678.20",DANFO (UK) LIMITED,NOT LOCAL,002544500
0070013054,NORTH HERTFORDSHIRE DISTRICT COUNCIL,HITCHIN TOWN HALL,NHDC,BURGLAR ALARMS,14224254428,07/04/2020,"1,348.80",HADLEIGH BURGLAR ALARM CO,NOT LOCAL,002709300
0070013055,NORTH HERTFORDSHIRE DISTRICT COUNCIL,GROUNDS MAINTENANCE,NHDC,GREEN MAINTENANC,14310005910,07/04/2020,"9,000.00",N HERTS GREENS COMMITTEE,LOCAL,002259000
0070013057,NORTH HERTFORDSHIRE DISTRICT COUNCIL,LAND CHARGES,NHDC,LAND CHARGES,11750004437,21/04/2020,"2,966.40",HERTFORDSHIRE COUNTY COUNCIL,NOT LOCAL,000109000
0070013066,NORTH HERTFORDSHIRE DISTRICT COUNCIL,REVENUES,NHDC,REFUNDS,63609350906,17/04/2020,"52,554.00",REFUNDS ONLY - BACS,NOT LOCAL,002510000
0070013067,NORTH HERTFORDSHIRE DISTRICT COUNCIL,CARELINE,NHDC,DOOR ACCESS SYST,43204704039,21/04/2020,462.00,TYNETEC  - LEGRAND ELECTRIC LTD,NOT LOCAL,002588000
0070013068,NORTH HERTFORDSHIRE DISTRICT COUNCIL,CARELINE,NHDC,SIM CARDS,43204704037,14/04/2020,6.00,CSL DUALCOM LIMITED,NOT LOCAL,002693300
0070013069,NORTH HERTFORDSHIRE DISTRICT COUNCIL,REVENUES,NHDC,BAILIFF,63609350906,14/04/2020,"6,825.53",PENHAM EXCEL LIMITED,NOT LOCAL,002134100
0070013070,NORTH HERTFORDSHIRE DISTRICT COUNCIL,REVENUES,NHDC,BAILIFF,63609350906,14/04/2020,6.74,MARSTON GROUP LIMITED,NOT LOCAL,002393700
0070013072,NORTH HERTFORDSHIRE DISTRICT COUNCIL,REVENUES,NHDC,CASH COLLECTION,11140004438,14/04/2020,153.70,G4S CASH SOLUTIONS  (UK) LTD,NOT LOCAL,001278600
0070013073,NORTH HERTFORDSHIRE DISTRICT COUNCIL,FINANCE,NHDC,SUBS/PUBLICATION,11100014789,14/04/2020,"11,386.50",CIPFA BUSINESS,NOT LOCAL,000763600
0070013074,NORTH HERTFORDSHIRE DISTRICT COUNCIL,LEGAL SERVICES,NHDC,RECRUITMENT,11430011121,14/04/2020,"2,441.56",SELLICK PARTNERSHIP,NOT LOCAL,002622600
0070013075,NORTH HERTFORDSHIRE DISTRICT COUNCIL,REVENUES,NHDC,CCARD SERVICES,11701574439,14/04/2020,47.16,INTERCARD LIMITED,NOT LOCAL,002053100
0070013076,NORTH HERTFORDSHIRE DISTRICT COUNCIL,REVENUES,NHDC,CASH COLLECTION,11140004438,14/04/2020,10.94,G4S CASH SOLUTIONS  (UK) LTD,NOT LOCAL,001278600
0070013077,NORTH HERTFORDSHIRE DISTRICT COUNCIL,WASTE MANAGEMENT,NHDC,WASTE CONTRACT,12720085126,14/04/2020,"27,581.57",URBASER LIMITED,NOT LOCAL,002749500
0070013078,NORTH HERTFORDSHIRE DISTRICT COUNCIL,CARELINE,NHDC,ASSISTED LIVING,43204704436,14/04/2020,2.36,INDEPENDENT LIVING SUPPLIES,NOT LOCAL,002694900
0070013079,NORTH HERTFORDSHIRE DISTRICT COUNCIL,CARELINE,NHDC,ASSISTED LIVING,43204704436,14/04/2020,2.36,INDEPENDENT LIVING SUPPLIES,NOT LOCAL,002694900
0070013080,NORTH HERTFORDSHIRE DISTRICT COUNCIL,CARELINE,NHDC,ASSISTED LIVING,43204704436,14/04/2020,12.48,INDEPENDENT LIVING SUPPLIES,NOT LOCAL,002694900
0070013081,NORTH HERTFORDSHIRE DISTRICT COUNCIL,CARELINE,NHDC,ASSISTED LIVING,43204704038,21/04/2020,69.18,INDEPENDENT LIVING SUPPLIES,NOT LOCAL,002694900
0070013083,NORTH HERTFORDSHIRE DISTRICT COUNCIL,CARELINE,NHDC,ASSISTED LIVING,43204704436,21/04/2020,196.80,INDEPENDENT LIVING SUPPLIES,NOT LOCAL,002694900
0070013084,NORTH HERTFORDSHIRE DISTRICT COUNCIL,CARELINE,NHDC,ASSISTED LIVING,43204704421,21/04/2020,"2,862.45",INDEPENDENT LIVING SUPPLIES,NOT LOCAL,002694900
0070013085,NORTH HERTFORDSHIRE DISTRICT COUNCIL,CARELINE,NHDC,ASSISTED LIVING,43204704421,21/04/2020,124.20,INDEPENDENT LIVING SUPPLIES,NOT LOCAL,002694900
0070013086,NORTH HERTFORDSHIRE DISTRICT COUNCIL,CARELINE,NHDC,ASSISTED LIVING,43204704421,21/04/2020,338.36,INDEPENDENT LIVING SUPPLIES,NOT LOCAL,002694900
0070013091,NORTH HERTFORDSHIRE DISTRICT COUNCIL,GROUNDS MAINTENANCE,NHDC,GROUNDS MAINT,14330002016,21/04/2020,"1,796.53",JOHN O'CONNER (GROUNDS MAINTENANCE)LTD,LOCAL,000172200
0070013092,NORTH HERTFORDSHIRE DISTRICT COUNCIL,GROUNDS MAINTENANCE,NHDC,GROUNDS MAINT,14310002015,14/04/2020,-636.00,JOHN O'CONNER (GROUNDS MAINTENANCE)LTD,LOCAL,000172200
0070013094,NORTH HERTFORDSHIRE DISTRICT COUNCIL,ENVIRONMENTAL HEALTH,NHDC,RECRUITMENT,14604351121,14/04/2020,"1,188.00",THE OYSTER PARTNERSHIP LIMITED,NOT LOCAL,002673100
0070013095,NORTH HERTFORDSHIRE DISTRICT COUNCIL,COMMUNICATIONS,NHDC,MAINTENANCE,11480554013,14/04/2020,568.80,DSPG,NOT LOCAL,002376300
0070013096,NORTH HERTFORDSHIRE DISTRICT COUNCIL,ESTATES,NHDC,RECRUITMENT,11830004425,14/04/2020,"1,668.24",THE OYSTER PARTNERSHIP LIMITED,NOT LOCAL,002673100
0070013099,NORTH HERTFORDSHIRE DISTRICT COUNCIL,PARKING SERVICES,NHDC,TELEPHONE SERVS,12207204430,21/04/2020,"4,204.76",COBALT TELEPHONE TECHNOLOGIES LIMITED,NOT LOCAL,002617600
0070013100,NORTH HERTFORDSHIRE DISTRICT COUNCIL,CARELINE,NHDC,ASSISTED LIVING,43204704047,21/04/2020,"1,780.56",INDEPENDENT LIVING SUPPLIES,NOT LOCAL,002694900
0070013101,NORTH HERTFORDSHIRE DISTRICT COUNCIL,CARELINE,NHDC,ASSISTED LIVING,43204704436,21/04/2020,"6,032.93",INDEPENDENT LIVING SUPPLIES,NOT LOCAL,002694900
0070013102,NORTH HERTFORDSHIRE DISTRICT COUNCIL,COMMUNICATIONS,NHDC,COPIERS/PAPER,11460094044,14/04/2020,798.31,RICOH UK LIMITED,NOT LOCAL,002451100
0070013103,NORTH HERTFORDSHIRE DISTRICT COUNCIL,COMMUNICATIONS,NHDC,COPIERS/PAPER,11460094044,14/04/2020,"5,948.83",RICOH UK LIMITED,NOT LOCAL,002451100
0070013104,NORTH HERTFORDSHIRE DISTRICT COUNCIL,LEGAL SERVICES,NHDC,RECRUITMENT,11400004566,14/04/2020,774.78,CARLISLE STAFFING PLC T/A TATE,NOT LOCAL,002457700
0070013105,NORTH HERTFORDSHIRE DISTRICT COUNCIL,PROPERTY SERVICES,NHDC,LIFT MAINTENANCE,12207212014,21/04/2020,120.00,SPECIALIST LIFT SERVICES LIMITED,NOT LOCAL,002774700
0070013106,NORTH HERTFORDSHIRE DISTRICT COUNCIL,PROPERTY SERVICES,NHDC,LIFT MAINTENANCE,11321872014,21/04/2020,180.00,SPECIALIST LIFT SERVICES LIMITED,NOT LOCAL,002774700
0070013107,NORTH HERTFORDSHIRE DISTRICT COUNCIL,PROPERTY SERVICES,NHDC,LIFT MAINTENANCE,12207222014,21/04/2020,360.00,SPECIALIST LIFT SERVICES LIMITED,NOT LOCAL,002774700
0070013108,NORTH HERTFORDSHIRE DISTRICT COUNCIL,NORTH HERTS MUSEUM,NHDC,LIFT MAINTENANCE,14425002014,21/04/2020,315.00,SPECIALIST LIFT SERVICES LIMITED,NOT LOCAL,002774700
0070013109,NORTH HERTFORDSHIRE DISTRICT COUNCIL,GROUNDS MAINTENANCE,NHDC,HALL HIRE/GRANTS,14314552340,14/04/2020,"5,760.00",HITCHIN RUGBY FOOTBALL CLUB LIMITED,LOCAL,001111200
0070013110,NORTH HERTFORDSHIRE DISTRICT COUNCIL,FINANCE,NHDC,TREASURY SERVICE,11830004424,14/04/2020,582.00,LINK TREASURY SERVICES LIMITED,NOT LOCAL,002497300
0070013112,NORTH HERTFORDSHIRE DISTRICT COUNCIL,GROUNDS MAINTENANCE,NHDC,SUBSCRIPTIONS,14300004789,14/04/2020,455.00,ICCM,NOT LOCAL,002661900
0070013113,NORTH HERTFORDSHIRE DISTRICT COUNCIL,PLANNING,NHDC,SIGNS,12310022089,14/04/2020,90.00,AUCKLAND MANUFACTURING T/A PGM SIGNS,NOT LOCAL,000821500
0070013116,NORTH HERTFORDSHIRE DISTRICT COUNCIL,GROUNDS MAINTENANCE,NHDC,GROUNDS MAINT,14330002016,14/04/2020,"2,371.45",JOHN O'CONNER (GROUNDS MAINTENANCE)LTD,LOCAL,000172200
0070013117,NORTH HERTFORDSHIRE DISTRICT COUNCIL,GROUNDS MAINTENANCE,NHDC,GROUNDS MAINT,12070002016,14/04/2020,"2,500.25",JOHN O'CONNER (GROUNDS MAINTENANCE)LTD,LOCAL,000172200
0070013118,NORTH HERTFORDSHIRE DISTRICT COUNCIL,HITCHIN TOWN HALL,NHDC,CONSULTANCY,14224254424,14/04/2020,"8,128.13",AITCHISON RAFFETY,NOT LOCAL,002010500
0070013120,NORTH HERTFORDSHIRE DISTRICT COUNCIL,HITCHIN TOWN HALL,NHDC,SECURITY,11322002010,21/04/2020,240.00,DORMA UK LIMITED,LOCAL,000730900
0070013121,NORTH HERTFORDSHIRE DISTRICT COUNCIL,INSURANCE,NHDC,INSURANCE,11171825210,21/04/2020,"3,420.00",HERTFORDSHIRE COUNTY COUNCIL,NOT LOCAL,000109000
0070013123,NORTH HERTFORDSHIRE DISTRICT COUNCIL,ENVIRONMENTAL PROTECTION,NHDC,LOCAL AUTHORITY,12687615210,21/04/2020,"4,970.60",CENTRAL BEDFORDSHIRE COUNCIL,NOT LOCAL,001121900
0070013125,NORTH HERTFORDSHIRE DISTRICT COUNCIL,COMMUNICATIONS,NHDC,TRAINING,11480521860,21/04/2020,"1,794.00",IN-PROFESSIONAL DEVELOPMENT LTD,NOT LOCAL,002786000
0070013126,NORTH HERTFORDSHIRE DISTRICT COUNCIL,LEGAL SERVICES,NHDC,RECRUITMENT,11430011121,21/04/2020,"2,441.56",SELLICK PARTNERSHIP,NOT LOCAL,002622600
0070013127,NORTH HERTFORDSHIRE DISTRICT COUNCIL,HR,NHDC,CONSULTANCY,11060034425,21/04/2020,300.00,2J CONSULTING LIMITED,LOCAL,002699100
0070013134,NORTH HERTFORDSHIRE DISTRICT COUNCIL,LAND CHARGES,NHDC,SUBSCRIPTIONS,11750004789,21/04/2020,130.00,LOCAL LAND CHARGES INSTITUTE,NOT LOCAL,002614300
0070013135,NORTH HERTFORDSHIRE DISTRICT COUNCIL,COMMUNICATIONS,NHDC,PRINTING,11460014422,21/04/2020,"3,831.60",HERTFORDSHIRE COUNTY COUNCIL,NOT LOCAL,000109000
0070013137,NORTH HERTFORDSHIRE DISTRICT COUNCIL,ELECTORAL SERVICES,NHDC,POSTAL SERVICES,11820004560,14/04/2020,150.56,ROYAL MAIL ANGLIA,NOT LOCAL,001019000
0070013138,NORTH HERTFORDSHIRE DISTRICT COUNCIL,IT,NHDC,INTERNET PROVIDE,11161674571,21/04/2020,633.60,ADEPT TELECOM PLC,NOT LOCAL,002696700
0070013142,NORTH HERTFORDSHIRE DISTRICT COUNCIL,PLANNING,NHDC,BUILDING CONTROL,12540004425,21/04/2020,81.18,HERTFORDSHIRE BUILDING CONTROL LIMITED,NOT LOCAL,002723500
0070013143,NORTH HERTFORDSHIRE DISTRICT COUNCIL,PLANNING,NHDC,BUILDING CONTROL,12540004425,21/04/2020,140.68,HERTFORDSHIRE BUILDING CONTROL LIMITED,NOT LOCAL,002723500
0070013144,NORTH HERTFORDSHIRE DISTRICT COUNCIL,PLANNING,NHDC,BUILDING CONTROL,12540004425,21/04/2020,260.82,HERTFORDSHIRE BUILDING CONTROL LIMITED,NOT LOCAL,002723500
0070013146,NORTH HERTFORDSHIRE DISTRICT COUNCIL,WASTE MANAGEMENT,NHDC,REUSABLE NAPPIES,12720004928,21/04/2020,125.00,TOTSBOTS LIMITED,NOT LOCAL,002701000
0070013147,NORTH HERTFORDSHIRE DISTRICT COUNCIL,WASTE MANAGEMENT,NHDC,REUSABLE NAPPIES,12720004928,21/04/2020,675.00,TOTSBOTS LIMITED,NOT LOCAL,002701000
0070013148,NORTH HERTFORDSHIRE DISTRICT COUNCIL,WASTE MANAGEMENT,NHDC,WASTE CONTRACT,12710005125,21/04/2020,"14,400.00",URBASER LIMITED,NOT LOCAL,002749500
0070013150,NORTH HERTFORDSHIRE DISTRICT COUNCIL,PROPERTY SERVICES,NHDC,FACILITIES MGMT,11320002010,21/04/2020,"10,851.36",MEARS FACILITIES MANAGEMENT,NOT LOCAL,002763600
0070013151,NORTH HERTFORDSHIRE DISTRICT COUNCIL,PLANNING,NHDC,BUILDING CONTROL,12540004425,21/04/2020,81.18,HERTFORDSHIRE BUILDING CONTROL LIMITED,NOT LOCAL,002723500
0070013152,NORTH HERTFORDSHIRE DISTRICT COUNCIL,IT,NHDC,INTERNET PROVIDE,11161674571,21/04/2020,"1,927.14",ADEPT TELECOM PLC,NOT LOCAL,002696700
0070013153,NORTH HERTFORDSHIRE DISTRICT COUNCIL,IT,NHDC,INTERNET PROVIDE,11161674571,21/04/2020,292.06,ADEPT TELECOM PLC,NOT LOCAL,002696700
0070013154,NORTH HERTFORDSHIRE DISTRICT COUNCIL,IT,NHDC,INTERNET PROVIDE,11161674571,21/04/2020,58.24,ADEPT TELECOM PLC,NOT LOCAL,002696700
0070013155,NORTH HERTFORDSHIRE DISTRICT COUNCIL,IT,NHDC,INTERNET PROVIDE,11161674571,21/04/2020,949.80,ADEPT TELECOM PLC,NOT LOCAL,002696700
0070013156,NORTH HERTFORDSHIRE DISTRICT COUNCIL,STRATEGIC HOUSING,NHDC,CONSULTANCY,13130034425,21/04/2020,168.00,NOW MEDICAL,NOT LOCAL,002686900
0070013157,NORTH HERTFORDSHIRE DISTRICT COUNCIL,STRATEGIC HOUSING,NHDC,CONSULTANCY,13130034425,21/04/2020,230.40,NOW MEDICAL,NOT LOCAL,002686900
0070013158,NORTH HERTFORDSHIRE DISTRICT COUNCIL,PLANNING,NHDC,BUILDING CONTROL,12540004425,21/04/2020,81.18,HERTFORDSHIRE BUILDING CONTROL LIMITED,NOT LOCAL,002723500
0070013159,NORTH HERTFORDSHIRE DISTRICT COUNCIL,PLANNING,NHDC,BUILDING CONTROL,12540004425,21/04/2020,82.80,HERTFORDSHIRE BUILDING CONTROL LIMITED,NOT LOCAL,002723500
0070013161,NORTH HERTFORDSHIRE DISTRICT COUNCIL,ENVIRONMENTAL HEALTH,NHDC,RECRUITMENT,14604351121,21/04/2020,290.70,VIVID RESOURCING G2V RECRUITMENT,NOT LOCAL,002779100
0070013162,NORTH HERTFORDSHIRE DISTRICT COUNCIL,ENVIRONMENTAL HEALTH,NHDC,RECRUITMENT,14604351121,21/04/2020,137.70,VIVID RESOURCING G2V RECRUITMENT,NOT LOCAL,002779100
0070013163,NORTH HERTFORDSHIRE DISTRICT COUNCIL,ENVIRONMENTAL HEALTH,NHDC,RECRUITMENT,14604351121,21/04/2020,306.00,VIVID RESOURCING G2V RECRUITMENT,NOT LOCAL,002779100
0070013164,NORTH HERTFORDSHIRE DISTRICT COUNCIL,ENVIRONMENTAL HEALTH,NHDC,RECRUITMENT,14604351121,21/04/2020,244.80,VIVID RESOURCING G2V RECRUITMENT,NOT LOCAL,002779100
0070013165,NORTH HERTFORDSHIRE DISTRICT COUNCIL,INSURANCE,NHDC,INSURANCE,95150230750,21/04/2020,"1,674.00",ZURICH MUNICIPAL,NOT LOCAL,001088600
0070013169,NORTH HERTFORDSHIRE DISTRICT COUNCIL,CARELINE,NHDC,ASSISTED LIVING,43204704436,21/04/2020,26.49,INDEPENDENT LIVING SUPPLIES,NOT LOCAL,002694900
0070013170,NORTH HERTFORDSHIRE DISTRICT COUNCIL,LEISURE SERVICES,NHDC,LEISURE MANAGEMENT,14094464013,21/04/2020,"1,074.00",STEVENAGE LEISURE LIMITED,NOT LOCAL,002032000
0070013172,NORTH HERTFORDSHIRE DISTRICT COUNCIL,ESTATES,NHDC,RECRUITMENT,11830004425,21/04/2020,"1,301.76",THE OYSTER PARTNERSHIP LIMITED,NOT LOCAL,002673100
0070013173,NORTH HERTFORDSHIRE DISTRICT COUNCIL,IT,NHDC,IT SYSTEMS,11161674573,21/04/2020,362.15,PHOENIX SOFTWARE,NOT LOCAL,000989500
0070013174,NORTH HERTFORDSHIRE DISTRICT COUNCIL,MANAGEMENT SUPPORT,NHDC,CAR LEASING,36200000750,21/04/2020,378.03,INCHCAPE FLEET SOLUTIONS,NOT LOCAL,002712900
0070013175,NORTH HERTFORDSHIRE DISTRICT COUNCIL,HR,NHDC,RECRUITMENT,11060034425,21/04/2020,"2,670.00",KORN FERRY HAY GROUP,NOT LOCAL,002742300
0070013176,NORTH HERTFORDSHIRE DISTRICT COUNCIL,INSURANCE,NHDC,INSURANCE,11171824920,21/04/2020,"2,727.77",JLT SPECIALITY LIMITED,NOT LOCAL,002668000
0070013177,NORTH HERTFORDSHIRE DISTRICT COUNCIL,INSURANCE,NHDC,INSURANCE,11171821995,21/04/2020,"115,964.80",JLT SPECIALITY LIMITED,NOT LOCAL,002668000
0070013178,NORTH HERTFORDSHIRE DISTRICT COUNCIL,INSURANCE,NHDC,INSURANCE,11171822856,21/04/2020,"48,646.09",JLT SPECIALITY LIMITED,NOT LOCAL,002668000
0070013179,NORTH HERTFORDSHIRE DISTRICT COUNCIL,INSURANCE,NHDC,INSURANCE,11171824920,21/04/2020,"2,296.80",BROADSPIRE A CRAWFORD COMPANY,NOT LOCAL,002720300
0070013181,NORTH HERTFORDSHIRE DISTRICT COUNCIL,COMMUNICATIONS,NHDC,INTERNET PROVIDE,11480554013,21/04/2020,970.91,ADEPT TELECOM PLC,NOT LOCAL,002696700
0070013182,NORTH HERTFORDSHIRE DISTRICT COUNCIL,COMMUNICATIONS,NHDC,INTERNET PROVIDE,11480554013,21/04/2020,671.27,ADEPT TELECOM PLC,NOT LOCAL,002696700
0070013184,NORTH HERTFORDSHIRE DISTRICT COUNCIL,PLANNING,NHDC,PLANNING REFUNDS,12550009462,21/04/2020,34.00,PORTALPLANQUEST (PPQ) LTD,NOT LOCAL,002758400
0070013185,NORTH HERTFORDSHIRE DISTRICT COUNCIL,PARKING SERVICES,NHDC,RENT/HALL HIRE,12207202336,21/04/2020,"1,250.00",CHRISTCHURCH,LOCAL,000502900
0070013186,NORTH HERTFORDSHIRE DISTRICT COUNCIL,GROUNDS MAINTENANCE,NHDC,ELECTRICAL WORKS,53146810836,21/04/2020,556.80,FIXATEX LIMITED,NOT LOCAL,002785600
0070013187,NORTH HERTFORDSHIRE DISTRICT COUNCIL,MANAGEMENT SUPPORT,NHDC,WEB DEVELOPMENT,11100004425,21/04/2020,"3,285.60",IDOX SOFTWARE LIMITED,NOT LOCAL,002066300
0070013192,NORTH HERTFORDSHIRE DISTRICT COUNCIL,WASTE MANAGEMENT,NHDC,POSTAL SERVICES,12700004560,21/04/2020,16.36,ROYAL MAIL ANGLIA,NOT LOCAL,001019000
0070013194,NORTH HERTFORDSHIRE DISTRICT COUNCIL,WASTE MANAGEMENT,NHDC,WASTE COLLECTION,12090002050,21/04/2020,600.00,S G SERVICES,NOT LOCAL,002782700
0070013200,NORTH HERTFORDSHIRE DISTRICT COUNCIL,CHIEF EXECS,NHDC,TRAINING,11080004425,21/04/2020,"5,940.00",EAST OF ENGLAND LGA,NOT LOCAL,000864400
0070013202,NORTH HERTFORDSHIRE DISTRICT COUNCIL,WASTE MANAGEMENT,NHDC,RECYCLING GOODS,12710014025,21/04/2020,"5,850.00",UK CONTAINER MAINTENANCE LIMITED,NOT LOCAL,002773200
0070013203,NORTH HERTFORDSHIRE DISTRICT COUNCIL,WASTE MANAGEMENT,NHDC,RECYCLING GOODS,12710014025,21/04/2020,702.00,UK CONTAINER MAINTENANCE LIMITED,NOT LOCAL,002773200
0070013208,NORTH HERTFORDSHIRE DISTRICT COUNCIL,NORTH HERTS MUSEUM,NHDC,WORKSHOPS,14425004924,21/04/2020,562.28,SOPHIE BENNETT,NOT LOCAL,002785100
0070013210,NORTH HERTFORDSHIRE DISTRICT COUNCIL,PARKING SERVICES,NHDC,PARKING INCOME,66300010770,21/04/2020,"3,135.45",ROYSTON TOWN COUNCIL,LOCAL,000200100
0070013211,NORTH HERTFORDSHIRE DISTRICT COUNCIL,PARKING SERVICES,NHDC,PARKING INCME,66220010770,21/04/2020,"2,318.90",STEVENAGE LEISURE LIMITED,NOT LOCAL,002032000
0070013212,NORTH HERTFORDSHIRE DISTRICT COUNCIL,PLANNING,NHDC,BUILDING CONTROL,12540004425,21/04/2020,160.20,HERTFORDSHIRE BUILDING CONTROL LIMITED,NOT LOCAL,002723500
0070013213,NORTH HERTFORDSHIRE DISTRICT COUNCIL,PLANNING,NHDC,BUILDING CONTROL,12540004425,21/04/2020,"13,555.20",THREE RIVERS DISTRICT COUNCIL,NOT LOCAL,002250500
0070013214,NORTH HERTFORDSHIRE DISTRICT COUNCIL,PLANNING,NHDC,BUILDING CONTROL,12540004425,21/04/2020,169.80,THREE RIVERS DISTRICT COUNCIL,NOT LOCAL,002250500
0070013215,NORTH HERTFORDSHIRE DISTRICT COUNCIL,GROUNDS MAINTENANCE,NHDC,RADIO EQUIPMENT,14310052023,21/04/2020,374.40,DIRECT COMMUNICATIONS RADIO SERVICES LTD,NOT LOCAL,001340000
0070013216,NORTH HERTFORDSHIRE DISTRICT COUNCIL,ESTATES,NHDC,CONSULTANCY,11310004425,21/04/2020,"1,140.00",JPP CONSULTING LIMITED,NOT LOCAL,002777200
0070013222,NORTH HERTFORDSHIRE DISTRICT COUNCIL,IT,NHDC,TELEPHONY SYSTEM,11161674571,21/04/2020,"2,774.40",BRITANNIC TECHNOLOGIES LIMITED,NOT LOCAL,002709000
0070013224,NORTH HERTFORDSHIRE DISTRICT COUNCIL,PARKING SERVICES,NHDC,CAR PARK MACHINE,12207204013,21/04/2020,"31,960.03",FLOWBIRD SMART CITY UK LIMITED,NOT LOCAL,002348100
0070013225,NORTH HERTFORDSHIRE DISTRICT COUNCIL,LEGAL SERVICES,NHDC,RECRUITMENT,11430011121,21/04/2020,"2,441.56",SELLICK PARTNERSHIP,NOT LOCAL,002622600
0070013249,NORTH HERTFORDSHIRE DISTRICT COUNCIL,ESTATES,NHDC,LEGAL COSTS,11761122336,23/04/2020,600.00,TOLLERS LLO,NOT LOCAL,002510000
INC97386,NORTH HERTFORDSHIRE DISTRICT COUNCIL,PROPERTY SERVICES,NHDC,PPE,11321872752,22/04/2020,-4.30,AGE CO IADVISORS,NOT LOCAL,PURCHASING CARD SUPPLIER
CCD0000811,NORTH HERTFORDSHIRE DISTRICT COUNCIL,PROPERTY SERVICES,NHDC,PPE,11321872752,26/03/2020,11.43,AGE CO IADVISORS,NOT LOCAL,PURCHASING CARD SUPPLIER
CCD0000815,NORTH HERTFORDSHIRE DISTRICT COUNCIL,IT,NHDC,IT EQUIPMENT,11161674573,26/03/2020,274.45,Amazon.co.uk D873L9WB5,NOT LOCAL,PURCHASING CARD SUPPLIER
CCD0000850,NORTH HERTFORDSHIRE DISTRICT COUNCIL,NORTH HERTS MUSEUM,NHDC,PUBLICATIONS,14421004374,01/04/2020,16.99,Amazon.co.uk DH1UQ9PW5,NOT LOCAL,PURCHASING CARD SUPPLIER
CCD0000841,NORTH HERTFORDSHIRE DISTRICT COUNCIL,IT,NHDC,IT EQUIPMENT,11161674573,01/04/2020,209.60,Amazon.co.uk F071G45E5,NOT LOCAL,PURCHASING CARD SUPPLIER
CCD0000838,NORTH HERTFORDSHIRE DISTRICT COUNCIL,ELECTORAL SERVICES,NHDC,GLOVES,11811084012,01/04/2020,30.95,Amazon.co.uk MR8UP1M94,NOT LOCAL,PURCHASING CARD SUPPLIER
CCD0000845,NORTH HERTFORDSHIRE DISTRICT COUNCIL,IT,NHDC,IT EQUIPMENT,11161674573,01/04/2020,64.28,Amazon.co.uk XR67R1ID5,NOT LOCAL,PURCHASING CARD SUPPLIER
INC94237,NORTH HERTFORDSHIRE DISTRICT COUNCIL,CARELINE,NHDC,MARKETING,43204704371,19/03/2020,-119.94,AMZ Batteries247,NOT LOCAL,PURCHASING CARD SUPPLIER
CCD0000846,NORTH HERTFORDSHIRE DISTRICT COUNCIL,MANAGEMENT SUPPORT,NHDC,GLUE DOTS,43204704372,01/04/2020,9.93,AMZNMktplace,NOT LOCAL,PURCHASING CARD SUPPLIER
CCD0000847,NORTH HERTFORDSHIRE DISTRICT COUNCIL,MANAGEMENT SUPPORT,NHDC,TOOLS,11110004012,01/04/2020,7.46,AMZNMktplace,NOT LOCAL,PURCHASING CARD SUPPLIER
CCD0000922,NORTH HERTFORDSHIRE DISTRICT COUNCIL,IT,NHDC,SCREN WIPES,11161674573,22/04/2020,23.99,AMZNMKTPLACE AMAZON.CO,NOT LOCAL,PURCHASING CARD SUPPLIER
CCD0000832,NORTH HERTFORDSHIRE DISTRICT COUNCIL,STRATEGIC HOUSING,NHDC,EMERGENCY B & B,13072042336,01/04/2020,560.00,ANACREONTE PROPERTIES,NOT LOCAL,PURCHASING CARD SUPPLIER
CCD0000833,NORTH HERTFORDSHIRE DISTRICT COUNCIL,STRATEGIC HOUSING,NHDC,EMERGENCY B & B,13072042336,01/04/2020,280.00,ANACREONTE PROPERTIES,NOT LOCAL,PURCHASING CARD SUPPLIER
CCD0000834,NORTH HERTFORDSHIRE DISTRICT COUNCIL,STRATEGIC HOUSING,NHDC,EMERGENCY B & B,13072042336,01/04/2020,560.00,ANACREONTE PROPERTIES,NOT LOCAL,PURCHASING CARD SUPPLIER
CCD0000868,NORTH HERTFORDSHIRE DISTRICT COUNCIL,MANAGEMENT SUPPORT,NHDC,SUBSCRIPTIONS,11110001860,02/04/2020,134.00,APM,NOT LOCAL,PURCHASING CARD SUPPLIER
CCD0000797,NORTH HERTFORDSHIRE DISTRICT COUNCIL,CARELINE,NHDC,FAX LINE,43204704561,20/03/2020,14.40,AQL.COM,NOT LOCAL,PURCHASING CARD SUPPLIER
CCD0000887,NORTH HERTFORDSHIRE DISTRICT COUNCIL,CARELINE,NHDC,MARKETING,43204704371,14/04/2020,432.00,ARCHANT COMMUNITY MEDI,NOT LOCAL,PURCHASING CARD SUPPLIER
CCD0000873,NORTH HERTFORDSHIRE DISTRICT COUNCIL,CARELINE,NHDC,MARKETING,43204704371,09/04/2020,240.00,ARCHANT COMMUNITY MEDI,NOT LOCAL,PURCHASING CARD SUPPLIER
CCD0000719,NORTH HERTFORDSHIRE DISTRICT COUNCIL,PLANNING,NHDC,PUBLIC NOTICES,12550014371,10/03/2020,587.66,ARCHANT COMMUNITY MEDI,NOT LOCAL,PURCHASING CARD SUPPLIER
CCD0000720,NORTH HERTFORDSHIRE DISTRICT COUNCIL,PLANNING,NHDC,PUBLIC NOTICES,12550014371,10/03/2020,339.72,ARCHANT COMMUNITY MEDI,NOT LOCAL,PURCHASING CARD SUPPLIER
CCD0000763,NORTH HERTFORDSHIRE DISTRICT COUNCIL,PLANNING,NHDC,PUBLIC NOTICES,12550014371,13/03/2020,882.34,ARCHANT COMMUNITY MEDI,NOT LOCAL,PURCHASING CARD SUPPLIER
CCD0000812,NORTH HERTFORDSHIRE DISTRICT COUNCIL,PLANNING,NHDC,PUBLIC NOTICES,12550014371,26/03/2020,321.84,ARCHANT COMMUNITY MEDI,NOT LOCAL,PURCHASING CARD SUPPLIER
CCD0000813,NORTH HERTFORDSHIRE DISTRICT COUNCIL,PLANNING,NHDC,PUBLIC NOTICES,12550014371,26/03/2020,292.99,ARCHANT COMMUNITY MEDI,NOT LOCAL,PURCHASING CARD SUPPLIER
CCD0000829,NORTH HERTFORDSHIRE DISTRICT COUNCIL,PLANNING,NHDC,PUBLIC NOTICES,12550014371,01/04/2020,615.65,ARCHANT COMMUNITY MEDI,NOT LOCAL,PURCHASING CARD SUPPLIER
CCD0000831,NORTH HERTFORDSHIRE DISTRICT COUNCIL,PLANNING,NHDC,PUBLIC NOTICES,12550014371,01/04/2020,357.60,ARCHANT COMMUNITY MEDI,NOT LOCAL,PURCHASING CARD SUPPLIER
CCD0000871,NORTH HERTFORDSHIRE DISTRICT COUNCIL,PLANNING,NHDC,PUBLIC NOTICES,12550014371,07/04/2020,357.60,ARCHANT COMMUNITY MEDI,NOT LOCAL,PURCHASING CARD SUPPLIER
CCD0000872,NORTH HERTFORDSHIRE DISTRICT COUNCIL,PLANNING,NHDC,PUBLIC NOTICES,12550014371,07/04/2020,699.60,ARCHANT COMMUNITY MEDI,NOT LOCAL,PURCHASING CARD SUPPLIER
CCD0000801,NORTH HERTFORDSHIRE DISTRICT COUNCIL,PROPERTY SERVICES,NHDC,TOASTER & TORCH,11321872010,20/03/2020,51.97,ARGOS BIGGLESWADE,NOT LOCAL,PURCHASING CARD SUPPLIER
CCD0000819,NORTH HERTFORDSHIRE DISTRICT COUNCIL,IT,NHDC,IT EQUIPMENT,11161674573,26/03/2020,10.00,ARGOS LTD,LOCAL,PURCHASING CARD SUPPLIER
CCD0000766,NORTH HERTFORDSHIRE DISTRICT COUNCIL,ACTIVE COMMUNITIES,NHDC,REFRESHMENTS,14070004140,13/03/2020,16.43,ASDA  STORES,LOCAL,PURCHASING CARD SUPPLIER
CCD0000773,NORTH HERTFORDSHIRE DISTRICT COUNCIL,HITCHIN TOWN HALL,NHDC,REFRESHMENTS,14224254145,16/03/2020,14.95,B AND M RETAIL,LOCAL,PURCHASING CARD SUPPLIER
CCD0000792,NORTH HERTFORDSHIRE DISTRICT COUNCIL,ENVIRONMENTAL PROTECTION,NHDC,FUEL,14604383018,19/03/2020,64.90,BP OAKFIELD CONVENIENC,LOCAL,PURCHASING CARD SUPPLIER
CCD0000810,NORTH HERTFORDSHIRE DISTRICT COUNCIL,ENVIRONMENTAL PROTECTION,NHDC,FUEL,14604383018,26/03/2020,60.09,BP OAKFIELD CONVENIENC,LOCAL,PURCHASING CARD SUPPLIER
CCD0000779,NORTH HERTFORDSHIRE DISTRICT COUNCIL,NORTH HERTS MUSEUM,NHDC,IT EQUIPMENT,14425004012,16/03/2020,15.00,CASTLE BOULEVARD,NOT LOCAL,PURCHASING CARD SUPPLIER
CCD0000817,NORTH HERTFORDSHIRE DISTRICT COUNCIL,HR,NHDC,RESOURCES,11060034425,26/03/2020,233.36,COACHING CULTURE,NOT LOCAL,PURCHASING CARD SUPPLIER
CCD0000876,NORTH HERTFORDSHIRE DISTRICT COUNCIL,ENVIRONMENTAL HEALTH,NHDC,THERMOMETERS,14604304012,09/04/2020,346.37,COMARK INSTRUMENTS,NOT LOCAL,PURCHASING CARD SUPPLIER
CCD0000805,NORTH HERTFORDSHIRE DISTRICT COUNCIL,PROPERTY SERVICES,NHDC,DEFIB PADS,11870004012,20/03/2020,98.39,DEFIB PAD,NOT LOCAL,PURCHASING CARD SUPPLIER
CCD0000799,NORTH HERTFORDSHIRE DISTRICT COUNCIL,PROPERTY SERVICES,NHDC,PAC SUPPLIES,11321872010,20/03/2020,196.08,DIGITAL ID,NOT LOCAL,PURCHASING CARD SUPPLIER
CCD0000939,NORTH HERTFORDSHIRE DISTRICT COUNCIL,IT,NHDC,IT EQUIPMENT,11161674573,23/04/2020,469.30,EBUYER (UK) LTD,NOT LOCAL,PURCHASING CARD SUPPLIER
CCD0000818,NORTH HERTFORDSHIRE DISTRICT COUNCIL,IT,NHDC,IT EQUIPMENT,11161674573,26/03/2020,237.25,EBUYER (UK) LTD,NOT LOCAL,PURCHASING CARD SUPPLIER
CCD0000777,NORTH HERTFORDSHIRE DISTRICT COUNCIL,HITCHIN TOWN HALL,NHDC,ADVERTISING,14224254371,16/03/2020,60.00,FACEBK  3MTPCRJY52,NOT LOCAL,PURCHASING CARD SUPPLIER
CCD0000909,NORTH HERTFORDSHIRE DISTRICT COUNCIL,ACTIVE COMMUNITIES,NHDC,ADVERTISING,14070014371,21/04/2020,60.12,FACEBK  K95YQREWB2,NOT LOCAL,PURCHASING CARD SUPPLIER
CCD0000866,NORTH HERTFORDSHIRE DISTRICT COUNCIL,HITCHIN TOWN HALL,NHDC,ADVERTISING,14224254371,02/04/2020,90.00,FACEBK  PV7QRQAZ52,NOT LOCAL,PURCHASING CARD SUPPLIER
CCD0000921,NORTH HERTFORDSHIRE DISTRICT COUNCIL,HITCHIN TOWN HALL,NHDC,ADVERTISING,14224254371,22/04/2020,68.09,FACEBK  XHYRLQWY52,NOT LOCAL,PURCHASING CARD SUPPLIER
CCD0000852,NORTH HERTFORDSHIRE DISTRICT COUNCIL,COMMUNICATIONS,NHDC,ADVERTISING,12600004370,02/04/2020,17.00,FACEBK 8T7MYRWWP2,NOT LOCAL,PURCHASING CARD SUPPLIER
CCD0000851,NORTH HERTFORDSHIRE DISTRICT COUNCIL,COMMUNICATIONS,NHDC,ADVERTISING,12960004370,02/04/2020,17.00,FACEBK LL9TAS6XP2,NOT LOCAL,PURCHASING CARD SUPPLIER
CCD0000853,NORTH HERTFORDSHIRE DISTRICT COUNCIL,COMMUNICATIONS,NHDC,ADVERTISING,12960004370,02/04/2020,17.00,FACEBK W3RMAWEWP2,NOT LOCAL,PURCHASING CARD SUPPLIER
CCD0000886,NORTH HERTFORDSHIRE DISTRICT COUNCIL,COMMUNICATIONS,NHDC,ADVERTISING,12960004370,09/04/2020,25.00,FACEBK Y9PQ8TSWP2,NOT LOCAL,PURCHASING CARD SUPPLIER
CCD0000803,NORTH HERTFORDSHIRE DISTRICT COUNCIL,WASTE MANAGEMENT,NHDC,FUEL,12700003018,20/03/2020,75.02,FLINT CROSS SERVIC,NOT LOCAL,PURCHASING CARD SUPPLIER
CCD0000910,NORTH HERTFORDSHIRE DISTRICT COUNCIL,ENVIRONMENTAL PROTECTION,NHDC,NOTEBOOK COVERS,14604354012,21/04/2020,23.95,FOOD SAFETY DIRECT,NOT LOCAL,PURCHASING CARD SUPPLIER
CCD0000911,NORTH HERTFORDSHIRE DISTRICT COUNCIL,ENVIRONMENTAL PROTECTION,NHDC,NOTEBOOK COVERS,14604354012,21/04/2020,65.87,FOOD SAFETY DIRECT,NOT LOCAL,PURCHASING CARD SUPPLIER
CCD0000776,NORTH HERTFORDSHIRE DISTRICT COUNCIL,NORTH HERTS MUSEUM,NHDC,WORKSHOP GOODS,14450004012,16/03/2020,40.00,HOBBYCRAFT,NOT LOCAL,PURCHASING CARD SUPPLIER
CCD0000858,NORTH HERTFORDSHIRE DISTRICT COUNCIL,STRATEGIC HOUSING,NHDC,EMERGENCY B & B,13072042336,02/04/2020,78.00,HOLIDAY INNS,NOT LOCAL,PURCHASING CARD SUPPLIER
CCD0000800,NORTH HERTFORDSHIRE DISTRICT COUNCIL,HR,NHDC,EQUIPMENT,11060034425,20/03/2020,3.99,HOME BARGAINS,LOCAL,PURCHASING CARD SUPPLIER
CCD0000730,NORTH HERTFORDSHIRE DISTRICT COUNCIL,ACTIVE COMMUNITIES,NHDC,REFRESHMENTS,14070014140,12/03/2020,10.53,HOME BARGAINS,LOCAL,PURCHASING CARD SUPPLIER
CCD0000731,NORTH HERTFORDSHIRE DISTRICT COUNCIL,ACTIVE COMMUNITIES,NHDC,REFRESHMENTS,14070014140,12/03/2020,1.28,HOME BARGAINS,LOCAL,PURCHASING CARD SUPPLIER
CCD0000861,NORTH HERTFORDSHIRE DISTRICT COUNCIL,STRATEGIC HOUSING,NHDC,EMERGENCY B & B,13072042336,02/04/2020,165.00,HOMESTEAD COURT HOTEL,NOT LOCAL,PURCHASING CARD SUPPLIER
CCD0000722,NORTH HERTFORDSHIRE DISTRICT COUNCIL,ACTIVE COMMUNITIES,NHDC,REFRESHMENTS,14070014140,12/03/2020,3.00,ICELAND,LOCAL,PURCHASING CARD SUPPLIER
CCD0000821,NORTH HERTFORDSHIRE DISTRICT COUNCIL,HR,NHDC,PARKING,11080003353,26/03/2020,8.70,Indigo Park Services L,NOT LOCAL,PURCHASING CARD SUPPLIER
CCD0000888,NORTH HERTFORDSHIRE DISTRICT COUNCIL,HITCHIN TOWN HALL,NHDC,CLEANING GOODS,14224252750,14/04/2020,25.19,JANITORIAL DIRECT LTD,NOT LOCAL,PURCHASING CARD SUPPLIER
CCD0000728,NORTH HERTFORDSHIRE DISTRICT COUNCIL,WASTE MANAGEMENT,NHDC,FUEL,12700003018,12/03/2020,58.11,MRH HOWE GREEN SERVICE,NOT LOCAL,PURCHASING CARD SUPPLIER
CCD0000862,NORTH HERTFORDSHIRE DISTRICT COUNCIL,WASTE MANAGEMENT,NHDC,FUEL,12700003018,02/04/2020,72.99,MRH HOWE GREEN SERVICE,NOT LOCAL,PURCHASING CARD SUPPLIER
CCD0000875,NORTH HERTFORDSHIRE DISTRICT COUNCIL,ENVIRONMENTAL PROTECTION,NHDC,FUEL,14604383018,09/04/2020,60.00,MRH HOWE GREEN SERVICE,NOT LOCAL,PURCHASING CARD SUPPLIER
CCD0000848,NORTH HERTFORDSHIRE DISTRICT COUNCIL,WASTE MANAGEMENT,NHDC,SCREEN WASH,12700004012,01/04/2020,6.99,MRH HOWE GREEN SERVICE,NOT LOCAL,PURCHASING CARD SUPPLIER
CCD0000863,NORTH HERTFORDSHIRE DISTRICT COUNCIL,WASTE MANAGEMENT,NHDC,FUEL,12700003018,02/04/2020,48.00,MRH HOWE GREEN SERVICE,NOT LOCAL,PURCHASING CARD SUPPLIER
CCD0000816,NORTH HERTFORDSHIRE DISTRICT COUNCIL,IT,NHDC,FUEL,11160003130,26/03/2020,50.01,MRH JACKMANS,LOCAL,PURCHASING CARD SUPPLIER
CCD0000727,NORTH HERTFORDSHIRE DISTRICT COUNCIL,REVENUES,NHDC,BUFFET,11020004150,12/03/2020,20.00,MY.MORRISONS.COM,LOCAL,PURCHASING CARD SUPPLIER
INC94272,NORTH HERTFORDSHIRE DISTRICT COUNCIL,PROPERTY SERVICES,NHDC,HAND SANITISER,11321872010,20/03/2020,-192.88,NEXON HYGIENE,NOT LOCAL,PURCHASING CARD SUPPLIER
CCD0000775,NORTH HERTFORDSHIRE DISTRICT COUNCIL,HITCHIN TOWN HALL,NHDC,HAND SANITISER,14224252750,16/03/2020,90.12,NEXON HYGIENE,NOT LOCAL,PURCHASING CARD SUPPLIER
CCD0000924,NORTH HERTFORDSHIRE DISTRICT COUNCIL,IT,NHDC,COURIER,11161674573,22/04/2020,38.70,PARCELFORCE WL,NOT LOCAL,PURCHASING CARD SUPPLIER
CCD0000940,NORTH HERTFORDSHIRE DISTRICT COUNCIL,LICENSING,NHDC,SUBSCRIPTIONS,14604404374,23/04/2020,30.00,PAYPAL  EVENTSINDUS,NOT LOCAL,PURCHASING CARD SUPPLIER
CCD0000768,NORTH HERTFORDSHIRE DISTRICT COUNCIL,MANAGEMENT SUPPORT,NHDC,TABLE PROTECTORS,11811084012,13/03/2020,187.48,PAYPAL  PRODUCTIMPO EB,NOT LOCAL,PURCHASING CARD SUPPLIER
CCD0000769,NORTH HERTFORDSHIRE DISTRICT COUNCIL,MANAGEMENT SUPPORT,NHDC,TABLE PROTECTORS,11811024012,13/03/2020,187.47,PAYPAL  PRODUCTIMPO EB,NOT LOCAL,PURCHASING CARD SUPPLIER
CCD0000814,NORTH HERTFORDSHIRE DISTRICT COUNCIL,PROPERTY SERVICES,NHDC,TUBING,14425004013,26/03/2020,10.95,PAYPAL  VISIONSTORE EB,NOT LOCAL,PURCHASING CARD SUPPLIER
CCD0000725,NORTH HERTFORDSHIRE DISTRICT COUNCIL,REVENUES,NHDC,PUBLICATIONS,11690004374,12/03/2020,127.50,PAYPAL  WBU,NOT LOCAL,PURCHASING CARD SUPPLIER
CCD0000823,NORTH HERTFORDSHIRE DISTRICT COUNCIL,IT,NHDC,ACCOMMODATION,11160003353,26/03/2020,84.00,PRINCESS ST HOTEL,NOT LOCAL,PURCHASING CARD SUPPLIER
CCD0000824,NORTH HERTFORDSHIRE DISTRICT COUNCIL,IT,NHDC,ACCOMMODATION,11420001860,26/03/2020,84.00,PRINCESS ST HOTEL,NOT LOCAL,PURCHASING CARD SUPPLIER
CCD0000874,NORTH HERTFORDSHIRE DISTRICT COUNCIL,CARELINE,NHDC,MARKETING,43204704561,09/04/2020,84.72,PROMPTVOICE,NOT LOCAL,PURCHASING CARD SUPPLIER
CCD0000830,NORTH HERTFORDSHIRE DISTRICT COUNCIL,ENVIRONMENTAL PROTECTION,NHDC,BATERY CHARGER,14604384012,01/04/2020,19.99,PSA Parts,NOT LOCAL,PURCHASING CARD SUPPLIER
CCD0000920,NORTH HERTFORDSHIRE DISTRICT COUNCIL,NORTH HERTS MUSEUM,NHDC,CAR BATTERY,14400003017,22/04/2020,172.49,RAC,NOT LOCAL,PURCHASING CARD SUPPLIER
CCD0000820,NORTH HERTFORDSHIRE DISTRICT COUNCIL,IT,NHDC,LICENCES,11310014565,26/03/2020,273.00,RIBBONSOFT.COM,NOT LOCAL,PURCHASING CARD SUPPLIER
CCD0000854,NORTH HERTFORDSHIRE DISTRICT COUNCIL,MANAGEMENT SUPPORT,NHDC,POSTAGE,11130004560,02/04/2020,50.25,ROYAL MAIL ONLINE SHOP,NOT LOCAL,PURCHASING CARD SUPPLIER
CCD0000791,NORTH HERTFORDSHIRE DISTRICT COUNCIL,ENVIRONMENTAL PROTECTION,NHDC,FUEL,14604383018,19/03/2020,60.00,SAINSBURYS OPT 0235,LOCAL,PURCHASING CARD SUPPLIER
CCD0000835,NORTH HERTFORDSHIRE DISTRICT COUNCIL,ENVIRONMENTAL PROTECTION,NHDC,FUEL,14604383018,01/04/2020,35.00,SAINSBURYS OPT 0235,LOCAL,PURCHASING CARD SUPPLIER
CCD0000870,NORTH HERTFORDSHIRE DISTRICT COUNCIL,ENVIRONMENTAL PROTECTION,NHDC,FUEL,14604383018,07/04/2020,34.00,SAINSBURYS OPT 0235,LOCAL,PURCHASING CARD SUPPLIER
CCD0000869,NORTH HERTFORDSHIRE DISTRICT COUNCIL,NORTH HERTS MUSEUM,NHDC,DUST MASKS,14425004012,02/04/2020,23.98,SCREWFIX DIRECT,LOCAL,PURCHASING CARD SUPPLIER
CCD0000798,NORTH HERTFORDSHIRE DISTRICT COUNCIL,WASTE MANAGEMENT,NHDC,DISPOSABLE GLOVES,12700004012,20/03/2020,41.94,SCREWFIX LETCHWORTH,LOCAL,PURCHASING CARD SUPPLIER
CCD0000774,NORTH HERTFORDSHIRE DISTRICT COUNCIL,HITCHIN TOWN HALL,NHDC,REFRESHMENTS,14224254010,16/03/2020,499.98,SP   TUBZ UK,NOT LOCAL,PURCHASING CARD SUPPLIER
CCD0000767,NORTH HERTFORDSHIRE DISTRICT COUNCIL,ENVIRONMENTAL PROTECTION,NHDC,PARKING,14604383353,13/03/2020,4.90,Stevenage Borough Coun,NOT LOCAL,PURCHASING CARD SUPPLIER
CCD0000780,NORTH HERTFORDSHIRE DISTRICT COUNCIL,NORTH HERTS MUSEUM,NHDC,PARKING,14400003353,16/03/2020,3.80,Stevenage Borough Coun,NOT LOCAL,PURCHASING CARD SUPPLIER
CCD0000804,NORTH HERTFORDSHIRE DISTRICT COUNCIL,WASTE MANAGEMENT,NHDC,FUEL,12700003018,20/03/2020,54.01,TESCO PAY AT PUMP 3925,LOCAL,PURCHASING CARD SUPPLIER
CCD0000840,NORTH HERTFORDSHIRE DISTRICT COUNCIL,WASTE MANAGEMENT,NHDC,FUEL,12700003018,01/04/2020,52.00,TESCO PAY AT PUMP 3925,LOCAL,PURCHASING CARD SUPPLIER
CCD0000836,NORTH HERTFORDSHIRE DISTRICT COUNCIL,WASTE MANAGEMENT,NHDC,FUEL,12700003018,01/04/2020,40.01,TESCO PFS 3875,LOCAL,PURCHASING CARD SUPPLIER
CCD0000923,NORTH HERTFORDSHIRE DISTRICT COUNCIL,STRATEGIC HOUSING,NHDC,EMERGENCY B & B,13072042336,22/04/2020,85.00,THE GATE HOTEL,NOT LOCAL,PURCHASING CARD SUPPLIER
CCD0000843,NORTH HERTFORDSHIRE DISTRICT COUNCIL,STRATEGIC HOUSING,NHDC,EMERGENCY B & B,13072042336,01/04/2020,840.00,THE GATE HOTEL,NOT LOCAL,PURCHASING CARD SUPPLIER
CCD0000855,NORTH HERTFORDSHIRE DISTRICT COUNCIL,STRATEGIC HOUSING,NHDC,EMERGENCY B & B,13072042336,02/04/2020,85.00,THE GATE HOTEL,NOT LOCAL,PURCHASING CARD SUPPLIER
CCD0000856,NORTH HERTFORDSHIRE DISTRICT COUNCIL,STRATEGIC HOUSING,NHDC,EMERGENCY B & B,13072042336,02/04/2020,85.00,THE GATE HOTEL,NOT LOCAL,PURCHASING CARD SUPPLIER
CCD0000857,NORTH HERTFORDSHIRE DISTRICT COUNCIL,STRATEGIC HOUSING,NHDC,EMERGENCY B & B,13072042336,02/04/2020,150.00,THE GATE HOTEL,NOT LOCAL,PURCHASING CARD SUPPLIER
CCD0000859,NORTH HERTFORDSHIRE DISTRICT COUNCIL,STRATEGIC HOUSING,NHDC,EMERGENCY B & B,13072042336,02/04/2020,170.00,THE GATE HOTEL,NOT LOCAL,PURCHASING CARD SUPPLIER
CCD0000860,NORTH HERTFORDSHIRE DISTRICT COUNCIL,STRATEGIC HOUSING,NHDC,EMERGENCY B & B,13072042336,02/04/2020,150.00,THE GATE HOTEL,NOT LOCAL,PURCHASING CARD SUPPLIER
CCD0000864,NORTH HERTFORDSHIRE DISTRICT COUNCIL,STRATEGIC HOUSING,NHDC,EMERGENCY B & B,13072042336,02/04/2020,70.00,THE GATE HOTEL,NOT LOCAL,PURCHASING CARD SUPPLIER
INC95610,NORTH HERTFORDSHIRE DISTRICT COUNCIL,STRATEGIC HOUSING,NHDC,EMERGENCY B & B,13072042336,02/04/2020,-75.00,THE GATE HOTEL,NOT LOCAL,PURCHASING CARD SUPPLIER
CCD0000877,NORTH HERTFORDSHIRE DISTRICT COUNCIL,STRATEGIC HOUSING,NHDC,EMERGENCY B & B,13072042336,09/04/2020,490.00,THE GATE HOTEL,NOT LOCAL,PURCHASING CARD SUPPLIER
CCD0000878,NORTH HERTFORDSHIRE DISTRICT COUNCIL,STRATEGIC HOUSING,NHDC,EMERGENCY B & B,13072042336,09/04/2020,490.00,THE GATE HOTEL,NOT LOCAL,PURCHASING CARD SUPPLIER
CCD0000879,NORTH HERTFORDSHIRE DISTRICT COUNCIL,STRATEGIC HOUSING,NHDC,EMERGENCY B & B,13072042336,09/04/2020,490.00,THE GATE HOTEL,NOT LOCAL,PURCHASING CARD SUPPLIER
CCD0000880,NORTH HERTFORDSHIRE DISTRICT COUNCIL,STRATEGIC HOUSING,NHDC,EMERGENCY B & B,13072042336,09/04/2020,85.00,THE GATE HOTEL,NOT LOCAL,PURCHASING CARD SUPPLIER
CCD0000881,NORTH HERTFORDSHIRE DISTRICT COUNCIL,STRATEGIC HOUSING,NHDC,EMERGENCY B & B,13072042336,09/04/2020,400.00,THE GATE HOTEL,NOT LOCAL,PURCHASING CARD SUPPLIER
CCD0000882,NORTH HERTFORDSHIRE DISTRICT COUNCIL,STRATEGIC HOUSING,NHDC,EMERGENCY B & B,13072042336,09/04/2020,400.00,THE GATE HOTEL,NOT LOCAL,PURCHASING CARD SUPPLIER
CCD0000883,NORTH HERTFORDSHIRE DISTRICT COUNCIL,STRATEGIC HOUSING,NHDC,EMERGENCY B & B,13072042336,09/04/2020,400.00,THE GATE HOTEL,NOT LOCAL,PURCHASING CARD SUPPLIER
CCD0000908,NORTH HERTFORDSHIRE DISTRICT COUNCIL,STRATEGIC HOUSING,NHDC,EMERGENCY B & B,13072042336,21/04/2020,560.00,THE GATE HOTEL,NOT LOCAL,PURCHASING CARD SUPPLIER
CCD0000912,NORTH HERTFORDSHIRE DISTRICT COUNCIL,STRATEGIC HOUSING,NHDC,EMERGENCY B & B,13072042336,21/04/2020,400.00,THE GATE HOTEL,NOT LOCAL,PURCHASING CARD SUPPLIER
INC97385,NORTH HERTFORDSHIRE DISTRICT COUNCIL,STRATEGIC HOUSING,NHDC,EMERGENCY B & B,13072042336,21/04/2020,-160.00,THE GATE HOTEL,NOT LOCAL,PURCHASING CARD SUPPLIER
CCD0000723,NORTH HERTFORDSHIRE DISTRICT COUNCIL,ACTIVE COMMUNITIES,NHDC,STATIONERY,14070014140,12/03/2020,1.79,THEWORKS,NOT LOCAL,PURCHASING CARD SUPPLIER
CCD0000913,NORTH HERTFORDSHIRE DISTRICT COUNCIL,IT,NHDC,IT EQUIPMENT,11161674573,21/04/2020,224.84,TRANSPARENT COMMUNICAT,NOT LOCAL,PURCHASING CARD SUPPLIER
CCD0000837,NORTH HERTFORDSHIRE DISTRICT COUNCIL,STRATEGIC HOUSING,NHDC,EMERGENCY B & B,13072042336,01/04/2020,337.54,TRAVELODGE,NOT LOCAL,PURCHASING CARD SUPPLIER
CCD0000844,NORTH HERTFORDSHIRE DISTRICT COUNCIL,STRATEGIC HOUSING,NHDC,EMERGENCY B & B,13072042336,01/04/2020,376.30,TRAVELODGE,NOT LOCAL,PURCHASING CARD SUPPLIER
CCD0000849,NORTH HERTFORDSHIRE DISTRICT COUNCIL,STRATEGIC HOUSING,NHDC,EMERGENCY B & B,13072042336,01/04/2020,371.20,TRAVELODGE,NOT LOCAL,PURCHASING CARD SUPPLIER
CCD0000772,NORTH HERTFORDSHIRE DISTRICT COUNCIL,HR,NHDC,TRAIN FARE,11080003353,13/03/2020,24.70,TSGN,NOT LOCAL,PURCHASING CARD SUPPLIER
CCD0000822,NORTH HERTFORDSHIRE DISTRICT COUNCIL,HR,NHDC,TRAIN FARE,11080003353,26/03/2020,39.20,TSGN,NOT LOCAL,PURCHASING CARD SUPPLIER
CCD0000726,NORTH HERTFORDSHIRE DISTRICT COUNCIL,REVENUES,NHDC,TRAIN FARE,11690001860,12/03/2020,33.80,TSGN,NOT LOCAL,PURCHASING CARD SUPPLIER
CCD0000825,NORTH HERTFORDSHIRE DISTRICT COUNCIL,IT,NHDC,TRAIN FARE,11160003353,26/03/2020,60.60,TSGN,NOT LOCAL,PURCHASING CARD SUPPLIER
CCD0000764,NORTH HERTFORDSHIRE DISTRICT COUNCIL,ACTIVE COMMUNITIES,NHDC,REFRESHMENTS,14070004140,13/03/2020,.35,W M MORRISONS.COM,LOCAL,PURCHASING CARD SUPPLIER
CCD0000765,NORTH HERTFORDSHIRE DISTRICT COUNCIL,ACTIVE COMMUNITIES,NHDC,REFRESHMENTS,14070004140,13/03/2020,29.19,W M MORRISONS.COM,LOCAL,PURCHASING CARD SUPPLIER
CCD0000865,NORTH HERTFORDSHIRE DISTRICT COUNCIL,HITCHIN TOWN HALL,NHDC,REFRESHMENTS,14224254015,02/04/2020,8.45,WAITROSE 685,LOCAL,PURCHASING CARD SUPPLIER
CCD0000884,NORTH HERTFORDSHIRE DISTRICT COUNCIL,ACTIVE COMMUNITIES,NHDC,PAPER,14070084012,09/04/2020,9.99,WH SMITH,LOCAL,PURCHASING CARD SUPPLIER
CCD0000867,NORTH HERTFORDSHIRE DISTRICT COUNCIL,NORTH HERTS MUSEUM,NHDC,TAPE,14425004924,02/04/2020,5.98,WH SMITH,LOCAL,PURCHASING CARD SUPPLIER
CCD0000721,NORTH HERTFORDSHIRE DISTRICT COUNCIL,ACTIVE COMMUNITIES,NHDC,KETTLE,14070014140,12/03/2020,6.00,WILKO RETAIL LIMITED,LOCAL,PURCHASING CARD SUPPLIER
CCD0000729,NORTH HERTFORDSHIRE DISTRICT COUNCIL,ACTIVE COMMUNITIES,NHDC,REFRESHMENTS,14070014140,12/03/2020,5.00,WILKO RETAIL LIMITED,LOCAL,PURCHASING CARD SUPPLIER
CCD0000839,NORTH HERTFORDSHIRE DISTRICT COUNCIL,REVENUES,NHDC,BUFFET,11020004150,01/04/2020,78.09,WM MORRISONS STORE,LOCAL,PURCHASING CARD SUPPLIER
CCD0000724,NORTH HERTFORDSHIRE DISTRICT COUNCIL,ACTIVE COMMUNITIES,NHDC,SUBSCRIPTIONS,14070004921,12/03/2020,82.00,WWW.ASSOCIATIONOFNUTRI,NOT LOCAL,PURCHASING CARD SUPPLIER
CCD0000802,NORTH HERTFORDSHIRE DISTRICT COUNCIL,PROPERTY SERVICES,NHDC,SUBSCRIPTIONS,11870001850,20/03/2020,133.00,WWW.IOSH.CO.UK,NOT LOCAL,PURCHASING CARD SUPPLIER
CCD0000778,NORTH HERTFORDSHIRE DISTRICT COUNCIL,REVENUES,NHDC,EXAM FEES,11690001860,16/03/2020,450.00,WWW.IRRV.ORG.UK,NOT LOCAL,PURCHASING CARD SUPPLIER
CCD0000770,NORTH HERTFORDSHIRE DISTRICT COUNCIL,HR,NHDC,LONG SERVICE AWARDS,12960001744,13/03/2020,47.50,www.motivates.co.uk,NOT LOCAL,PURCHASING CARD SUPPLIER
CCD0000771,NORTH HERTFORDSHIRE DISTRICT COUNCIL,HR,NHDC,LONG SERVICE AWARDS,12911001744,13/03/2020,47.50,www.motivates.co.uk,NOT LOCAL,PURCHASING CARD SUPPLIER
CCD0000781,NORTH HERTFORDSHIRE DISTRICT COUNCIL,HITCHIN TOWN HALL,NHDC,CHAIRS,14224254010,16/03/2020,"1,130.50",WWW.OAKFURNITURESUPERS,NOT LOCAL,PURCHASING CARD SUPPLIER
CCD0000938,NORTH HERTFORDSHIRE DISTRICT COUNCIL,NORTH HERTS MUSEUM,NHDC,PUBLICATIONS,14421004374,23/04/2020,56.00,WWW.OXBOWBOOKS.COM,NOT LOCAL,PURCHASING CARD SUPPLIER
CCD0000885,NORTH HERTFORDSHIRE DISTRICT COUNCIL,ACTIVE COMMUNITIES,NHDC,POSTAGE,14070004560,09/04/2020,67.99,WWW.POSTOFFICESHOP.CO.,NOT LOCAL,PURCHASING CARD SUPPLIER
CCD0000842,NORTH HERTFORDSHIRE DISTRICT COUNCIL,PROPERTY SERVICES,NHDC,PPE,11310014260,01/04/2020,38.88,WWW.TOOLSTATION.COM,NOT LOCAL,PURCHASING CARD SUPPLIER
CCD0000915,NORTH HERTFORDSHIRE DISTRICT COUNCIL,PROPERTY SERVICES,NHDC,PPE,11321872010,21/04/2020,109.89,WWW.ZORO.CO.UK,NOT LOCAL,PURCHASING CARD SUPPLIER
CCD0000914,NORTH HERTFORDSHIRE DISTRICT COUNCIL,IT,NHDC,IT EQUIPMENT,11161674573,21/04/2020,825.60,ZODIACMEDIA,NOT LOCAL,PURCHASING CARD SUPPLIER
DD,NORTH HERTFORDSHIRE DISTRICT COUNCIL,FINANCE,NHDC,BANK CHARGES,4439,12/05/2020,44.88,BARCLAYCARD,NOT LOCAL,DD SUPPLIER
DD,NORTH HERTFORDSHIRE DISTRICT COUNCIL,FINANCE,NHDC,UTILITY,4571,20/05/2020,980.41,BOTTOMLINE,NOT LOCAL,DD SUPPLIER
DD,NORTH HERTFORDSHIRE DISTRICT COUNCIL,FINANCE,NHDC,UTILITY,4561,07/05/2020,"5,439.63",BRITISH TELECOM,NOT LOCAL,DD SUPPLIER
DD,NORTH HERTFORDSHIRE DISTRICT COUNCIL,FINANCE,NHDC,BANK CHARGES,4439,15/05/2020,31.43,CARDNET,NOT LOCAL,DD SUPPLIER
DD,NORTH HERTFORDSHIRE DISTRICT COUNCIL,FINANCE,NHDC,BANK CHARGES,4439,14/05/2020,"3,316.43",CARDNET,NOT LOCAL,DD SUPPLIER
DD,NORTH HERTFORDSHIRE DISTRICT COUNCIL,FINANCE,NHDC,BANK CHARGES,4439,15/05/2020,37.90,FDMS,NOT LOCAL,DD SUPPLIER
DD,NORTH HERTFORDSHIRE DISTRICT COUNCIL,FINANCE,NHDC,BANK CHARGES,4439,15/05/2020,37.90,FDMS,NOT LOCAL,DD SUPPLIER
DD,NORTH HERTFORDSHIRE DISTRICT COUNCIL,FINANCE,NHDC,BANK CHARGES,4439,15/05/2020,37.90,FDMS,NOT LOCAL,DD SUPPLIER
DD,NORTH HERTFORDSHIRE DISTRICT COUNCIL,FINANCE,NHDC,BANK CHARGES,4439,15/05/2020,37.90,FDMS,NOT LOCAL,DD SUPPLIER
DD,NORTH HERTFORDSHIRE DISTRICT COUNCIL,FINANCE,NHDC,UTILITY,44561,21/05/2020,146.41,INTELLISOFTWARE,NOT LOCAL,DD SUPPLIER
DD,NORTH HERTFORDSHIRE DISTRICT COUNCIL,FINANCE,NHDC,LAND SEARCHES,4435,12/05/2020,6.00,LAND REGISTRY,NOT LOCAL,DD SUPPLIER
DD,NORTH HERTFORDSHIRE DISTRICT COUNCIL,FINANCE,NHDC,LAND SEARCHES,4435,19/05/2020,6.00,LAND REGISTRY,NOT LOCAL,DD SUPPLIER
DD,NORTH HERTFORDSHIRE DISTRICT COUNCIL,FINANCE,NHDC,LAND SEARCHES,4435,05/05/2020,12.00,LAND REGISTRY,NOT LOCAL,DD SUPPLIER
DD,NORTH HERTFORDSHIRE DISTRICT COUNCIL,FINANCE,NHDC,LAND SEARCHES,4435,12/05/2020,21.00,LAND REGISTRY,NOT LOCAL,DD SUPPLIER
DD,NORTH HERTFORDSHIRE DISTRICT COUNCIL,FINANCE,NHDC,LAND SEARCHES,4435,27/05/2020,33.00,LAND REGISTRY,NOT LOCAL,DD SUPPLIER
DD,NORTH HERTFORDSHIRE DISTRICT COUNCIL,FINANCE,NHDC,LAND SEARCHES,4435,05/05/2020,51.00,LAND REGISTRY,NOT LOCAL,DD SUPPLIER
DD,NORTH HERTFORDSHIRE DISTRICT COUNCIL,FINANCE,NHDC,LAND SEARCHES,4435,18/05/2020,54.00,LAND REGISTRY,NOT LOCAL,DD SUPPLIER
DD,NORTH HERTFORDSHIRE DISTRICT COUNCIL,FINANCE,NHDC,CREDIT CARD CHARGES,4017,15/05/2020,20.40,PAYTEK ADMINISTRAT,NOT LOCAL,DD SUPPLIER
DD,NORTH HERTFORDSHIRE DISTRICT COUNCIL,FINANCE,NHDC,CREDIT CARD CHARGES,4017,15/05/2020,20.40,PAYTEK ADMINISTRAT,NOT LOCAL,DD SUPPLIER
DD,NORTH HERTFORDSHIRE DISTRICT COUNCIL,FINANCE,NHDC,CREDIT CARD CHARGES,4017,15/05/2020,20.40,PAYTEK ADMINISTRAT,NOT LOCAL,DD SUPPLIER
DD,NORTH HERTFORDSHIRE DISTRICT COUNCIL,FINANCE,NHDC,CREDIT CARD CHARGES,4017,15/05/2020,20.40,PAYTEK ADMINISTRAT,NOT LOCAL,DD SUPPLIER
DD,NORTH HERTFORDSHIRE DISTRICT COUNCIL,FINANCE,NHDC,POSTAGE,4560,27/05/2020,616.67,ROYAL MAIL WEST TE,NOT LOCAL,DD SUPPLIER
DD,NORTH HERTFORDSHIRE DISTRICT COUNCIL,FINANCE,NHDC,BANK CHARGES,4439,11/05/2020,671.96,SAN UK ACC RECEIVE,NOT LOCAL,DD SUPPLIER
DD,NORTH HERTFORDSHIRE DISTRICT COUNCIL,FINANCE,NHDC,UTILITY,4018,06/05/2020,31.80,TALKTALK BUSINESS,NOT LOCAL,DD SUPPLIER
DD,NORTH HERTFORDSHIRE DISTRICT COUNCIL,FINANCE,NHDC,UTILITY,3018,26/05/2020,74.65,UK FUELS LTD,NOT LOCAL,DD SUPPLIER
DD,NORTH HERTFORDSHIRE DISTRICT COUNCIL,FINANCE,NHDC,UTILITY,3018,11/05/2020,135.23,UK FUELS LTD,NOT LOCAL,DD SUPPLIER
DD,NORTH HERTFORDSHIRE DISTRICT COUNCIL,FINANCE,NHDC,UTILITY,3018,18/05/2020,153.75,UK FUELS LTD,NOT LOCAL,DD SUPPLIER
DD,NORTH HERTFORDSHIRE DISTRICT COUNCIL,FINANCE,NHDC,UTILITY,3018,04/05/2020,187.38,UK FUELS LTD,NOT LOCAL,DD SUPPLIER
DD,NORTH HERTFORDSHIRE DISTRICT COUNCIL,FINANCE,NHDC,UTILITY,4561,26/05/2020,9.00,VODAFONE CORPORA,NOT LOCAL,DD SUPPLIER
DD,NORTH HERTFORDSHIRE DISTRICT COUNCIL,FINANCE,NHDC,UTILITY,4561,26/05/2020,"4,649.94",VODAFONE CORPORA,NOT LOCAL,DD SUPPLIER
DD,NORTH HERTFORDSHIRE DISTRICT COUNCIL,FINANCE,NHDC,UTILITY,2230,11/05/2020,"21,486.83",WEST MERCIA ENERGY,NOT LOCAL,DD SUPPLIER
DD,NORTH HERTFORDSHIRE DISTRICT COUNCIL,FINANCE,NHDC,UTILITY,4561,28/05/2020,"1,046.09",WINDSOR TELECOM PL,NOT LOCAL,DD SUPPLIER
DD,NORTH HERTFORDSHIRE DISTRICT COUNCIL,FINANCE,NHDC,UTILITY,4561,22/05/2020,198.66,WIRELESS LOGIC LTD,NOT LOCAL,DD SUPPLIER
CCD0000949,NORTH HERTFORDSHIRE DISTRICT COUNCIL,GROUNDS MAINTENANCE,NHDC,PUBLICATIONS,14300001860,20/04/2020,37.28,Amazon.co.uk AG4D04J25,NOT LOCAL,PURCHASING CARD SUPPLIER
CCD0000950,NORTH HERTFORDSHIRE DISTRICT COUNCIL,GROUNDS MAINTENANCE,NHDC,PUBLICATIONS,14300001860,20/04/2020,10.71,Amazon.co.uk AG4D04J25,NOT LOCAL,PURCHASING CARD SUPPLIER
CCD0001002,NORTH HERTFORDSHIRE DISTRICT COUNCIL,PROPERTY SERVICES,NHDC,PPE,11321874260,01/05/2020,50.70,AMZN Mktp UK V56DT65D5,NOT LOCAL,PURCHASING CARD SUPPLIER
CCD0000931,NORTH HERTFORDSHIRE DISTRICT COUNCIL,CARELINE,NHDC,PPE,43204704012,13/04/2020,59.96,AMZNMktplace,NOT LOCAL,PURCHASING CARD SUPPLIER
CCD0000937,NORTH HERTFORDSHIRE DISTRICT COUNCIL,CARELINE,NHDC,BATTERIES,43204704012,09/04/2020,158.60,AMZNMktplace,NOT LOCAL,PURCHASING CARD SUPPLIER
CCD0000984,NORTH HERTFORDSHIRE DISTRICT COUNCIL,COMMERCIAL TEAM,NHDC,IT EQUIPMENT,11200014012,16/04/2020,7.99,AMZNMktplace,NOT LOCAL,PURCHASING CARD SUPPLIER
CCD0001003,NORTH HERTFORDSHIRE DISTRICT COUNCIL,PROPERTY SERVICES,NHDC,KEY SAFE,11321874012,30/04/2020,76.79,AMZNMktplace,NOT LOCAL,PURCHASING CARD SUPPLIER
CCD0000993,NORTH HERTFORDSHIRE DISTRICT COUNCIL,IT,NHDC,IT EQUIPMENT,11161674573,24/04/2020,3.99,AMZNMktplace,NOT LOCAL,PURCHASING CARD SUPPLIER
CCD0000944,NORTH HERTFORDSHIRE DISTRICT COUNCIL,IT,NHDC,CLEANING GOODS,11161674573,21/04/2020,11.90,AMZNMktplace,NOT LOCAL,PURCHASING CARD SUPPLIER
CCD0000946,NORTH HERTFORDSHIRE DISTRICT COUNCIL,IT,NHDC,PPE,11161674573,20/04/2020,246.71,AMZNMktplace,NOT LOCAL,PURCHASING CARD SUPPLIER
CCD0000963,NORTH HERTFORDSHIRE DISTRICT COUNCIL,CARELINE,NHDC,PUBLIC NOTICES,43204704371,28/04/2020,432.00,ARCHANT COMMUNITY MEDI,NOT LOCAL,PURCHASING CARD SUPPLIER
CCD0000947,NORTH HERTFORDSHIRE DISTRICT COUNCIL,DEMOCRATIC SERVICES,NHDC,PUBLIC NOTICES,11800004371,16/04/2020,625.80,ARCHANT COMMUNITY MEDI,NOT LOCAL,PURCHASING CARD SUPPLIER
CCD0000948,NORTH HERTFORDSHIRE DISTRICT COUNCIL,DEMOCRATIC SERVICES,NHDC,PUBLIC NOTICES,11800004371,16/04/2020,933.24,ARCHANT COMMUNITY MEDI,NOT LOCAL,PURCHASING CARD SUPPLIER
CCD0000889,NORTH HERTFORDSHIRE DISTRICT COUNCIL,PLANNING,NHDC,PUBLIC NOTICES,12550014371,08/04/2020,671.62,ARCHANT COMMUNITY MEDI,NOT LOCAL,PURCHASING CARD SUPPLIER
CCD0000890,NORTH HERTFORDSHIRE DISTRICT COUNCIL,PLANNING,NHDC,PUBLIC NOTICES,12550014371,08/04/2020,357.60,ARCHANT COMMUNITY MEDI,NOT LOCAL,PURCHASING CARD SUPPLIER
CCD0000892,NORTH HERTFORDSHIRE DISTRICT COUNCIL,PLANNING,NHDC,PUBLIC NOTICES,12550014371,16/04/2020,531.70,ARCHANT COMMUNITY MEDI,NOT LOCAL,PURCHASING CARD SUPPLIER
CCD0000942,NORTH HERTFORDSHIRE DISTRICT COUNCIL,PLANNING,NHDC,PUBLIC NOTICES,12550014371,22/04/2020,587.66,ARCHANT COMMUNITY MEDI,NOT LOCAL,PURCHASING CARD SUPPLIER
CCD0000943,NORTH HERTFORDSHIRE DISTRICT COUNCIL,PLANNING,NHDC,PUBLIC NOTICES,12550014371,22/04/2020,357.60,ARCHANT COMMUNITY MEDI,NOT LOCAL,PURCHASING CARD SUPPLIER
CCD0000951,NORTH HERTFORDSHIRE DISTRICT COUNCIL,PLANNING,NHDC,PUBLIC NOTICES,12550014371,29/04/2020,357.60,ARCHANT COMMUNITY MEDI,NOT LOCAL,PURCHASING CARD SUPPLIER
CCD0000952,NORTH HERTFORDSHIRE DISTRICT COUNCIL,PLANNING,NHDC,PUBLIC NOTICES,12550014371,29/04/2020,643.63,ARCHANT COMMUNITY MEDI,NOT LOCAL,PURCHASING CARD SUPPLIER
CCD0000983,NORTH HERTFORDSHIRE DISTRICT COUNCIL,MANAGEMENT SUPPORT,NHDC,PUBLIC NOTICES,12960004371,20/04/2020,780.00,ARCHANT LIFE,NOT LOCAL,PURCHASING CARD SUPPLIER
CCD0001022,NORTH HERTFORDSHIRE DISTRICT COUNCIL,STRATEGIC HOUSING,NHDC,EMERGENCY B & B,13072042336,16/04/2020,450.00,BELLA VITA RESTAURANT,LOCAL,PURCHASING CARD SUPPLIER
CCD0001023,NORTH HERTFORDSHIRE DISTRICT COUNCIL,STRATEGIC HOUSING,NHDC,EMERGENCY B & B,13072042336,16/04/2020,455.00,BELLA VITA RESTAURANT,LOCAL,PURCHASING CARD SUPPLIER
CCD0001008,NORTH HERTFORDSHIRE DISTRICT COUNCIL,STRATEGIC HOUSING,NHDC,EMERGENCY B & B,13072042336,07/04/2020,80.00,BELLA VITA RESTAURANT,LOCAL,PURCHASING CARD SUPPLIER
CCD0000959,NORTH HERTFORDSHIRE DISTRICT COUNCIL,STRATEGIC HOUSING,NHDC,EMERGENCY B & B,13072042336,07/04/2020,160.00,BELLA VITA RESTAURANT,LOCAL,PURCHASING CARD SUPPLIER
CCD0000904,NORTH HERTFORDSHIRE DISTRICT COUNCIL,STRATEGIC HOUSING,NHDC,EMERGENCY B & B,13072042336,07/04/2020,455.00,BELLA VITA RESTAURANT,LOCAL,PURCHASING CARD SUPPLIER
CCD0000905,NORTH HERTFORDSHIRE DISTRICT COUNCIL,STRATEGIC HOUSING,NHDC,EMERGENCY B & B,13072042336,07/04/2020,455.00,BELLA VITA RESTAURANT,LOCAL,PURCHASING CARD SUPPLIER
CCD0000960,NORTH HERTFORDSHIRE DISTRICT COUNCIL,STRATEGIC HOUSING,NHDC,EMERGENCY B & B,13072042336,07/04/2020,70.00,BELLA VITA RESTAURANT,LOCAL,PURCHASING CARD SUPPLIER
CCD0000898,NORTH HERTFORDSHIRE DISTRICT COUNCIL,STRATEGIC HOUSING,NHDC,EMERGENCY B & B,13072042336,13/04/2020,65.00,BELLA VITA RESTAURANT,LOCAL,PURCHASING CARD SUPPLIER
CCD0000897,NORTH HERTFORDSHIRE DISTRICT COUNCIL,STRATEGIC HOUSING,NHDC,EMERGENCY B & B,13072042336,13/04/2020,390.00,BELLA VITA RESTAURANT,LOCAL,PURCHASING CARD SUPPLIER
CCD0000957,NORTH HERTFORDSHIRE DISTRICT COUNCIL,STRATEGIC HOUSING,NHDC,EMERGENCY B & B,13072042336,16/04/2020,140.00,BELLA VITA RESTAURANT,LOCAL,PURCHASING CARD SUPPLIER
CCD0000958,NORTH HERTFORDSHIRE DISTRICT COUNCIL,STRATEGIC HOUSING,NHDC,EMERGENCY B & B,13072042336,16/04/2020,455.00,BELLA VITA RESTAURANT,LOCAL,PURCHASING CARD SUPPLIER
CCD0000970,NORTH HERTFORDSHIRE DISTRICT COUNCIL,STRATEGIC HOUSING,NHDC,EMERGENCY B & B,13072042336,16/04/2020,455.00,BELLA VITA RESTAURANT,LOCAL,PURCHASING CARD SUPPLIER
CCD0000966,NORTH HERTFORDSHIRE DISTRICT COUNCIL,STRATEGIC HOUSING,NHDC,EMERGENCY B & B,13072042336,27/04/2020,450.00,BELLA VITA RESTAURANT,LOCAL,PURCHASING CARD SUPPLIER
CCD0000967,NORTH HERTFORDSHIRE DISTRICT COUNCIL,STRATEGIC HOUSING,NHDC,EMERGENCY B & B,13072042336,27/04/2020,450.00,BELLA VITA RESTAURANT,LOCAL,PURCHASING CARD SUPPLIER
CCD0000968,NORTH HERTFORDSHIRE DISTRICT COUNCIL,STRATEGIC HOUSING,NHDC,EMERGENCY B & B,13072042336,27/04/2020,450.00,BELLA VITA RESTAURANT,LOCAL,PURCHASING CARD SUPPLIER
CCD0001004,NORTH HERTFORDSHIRE DISTRICT COUNCIL,GROUNDS MAINTENANCE,NHDC,CLEANING GOODS,14300004260,28/04/2020,34.07,BOOTS 0748,LOCAL,PURCHASING CARD SUPPLIER
CCD0001021,NORTH HERTFORDSHIRE DISTRICT COUNCIL,LEGAL SERVICES,NHDC,REGISTRATION,11430014435,01/05/2020,12.00,COMPANIES HOUSE,NOT LOCAL,PURCHASING CARD SUPPLIER
CCD0000906,NORTH HERTFORDSHIRE DISTRICT COUNCIL,IT,NHDC,IT EQUIPMENT,11161674573,06/04/2020,63.80,DELL PRODUCTS,NOT LOCAL,PURCHASING CARD SUPPLIER
CCD0000933,NORTH HERTFORDSHIRE DISTRICT COUNCIL,PROPERTY SERVICES,NHDC,PRINTER RIBBON,11321872010,10/04/2020,90.00,DIGITAL ID,NOT LOCAL,PURCHASING CARD SUPPLIER
CCD0000934,NORTH HERTFORDSHIRE DISTRICT COUNCIL,PROPERTY SERVICES,NHDC,PRINTER RIBBON,11321874560,10/04/2020,10.74,DIGITAL ID,NOT LOCAL,PURCHASING CARD SUPPLIER
CCD0000994,NORTH HERTFORDSHIRE DISTRICT COUNCIL,LEGAL SERVICES,NHDC,ELECTRONIC STATIONERY,11430014372,06/04/2020,240.00,DOCUSIGN INC. GBP,NOT LOCAL,PURCHASING CARD SUPPLIER
CCD0000981,NORTH HERTFORDSHIRE DISTRICT COUNCIL,NORTH HERTS MUSEUM,NHDC,SUBSCRIPTIONS,14400004789,27/04/2020,95.88,Dropbox,NOT LOCAL,PURCHASING CARD SUPPLIER
CCD0000954,NORTH HERTFORDSHIRE DISTRICT COUNCIL,DEMOCRATIC SERVICES,NHDC,TRAINING,11800051860,23/04/2020,96.00,EB  EFFECTIVE SOCIAL M,NOT LOCAL,PURCHASING CARD SUPPLIER
CCD0000955,NORTH HERTFORDSHIRE DISTRICT COUNCIL,DEMOCRATIC SERVICES,NHDC,TRAINING,11800051860,23/04/2020,144.00,EB  EFFECTIVE SOCIAL M,NOT LOCAL,PURCHASING CARD SUPPLIER
CCD0000992,NORTH HERTFORDSHIRE DISTRICT COUNCIL,IT,NHDC,IT EQUIPMENT,11161674573,27/04/2020,403.90,EBUYER (UK) LTD,NOT LOCAL,PURCHASING CARD SUPPLIER
CCD0000925,NORTH HERTFORDSHIRE DISTRICT COUNCIL,IT,NHDC,IT EQUIPMENT,11161674573,17/04/2020,"1,610.35",EBUYER (UK) LTD,NOT LOCAL,PURCHASING CARD SUPPLIER
CCD0000926,NORTH HERTFORDSHIRE DISTRICT COUNCIL,IT,NHDC,IT EQUIPMENT,11161674573,17/04/2020,633.73,EBUYER (UK) LTD,NOT LOCAL,PURCHASING CARD SUPPLIER
CCD0001007,NORTH HERTFORDSHIRE DISTRICT COUNCIL,HITCHIN TOWN HALL,NHDC,ADVERTISING,14224254371,01/05/2020,13.73,FACEBK  4389MR2Z52,NOT LOCAL,PURCHASING CARD SUPPLIER
CCD0000964,NORTH HERTFORDSHIRE DISTRICT COUNCIL,CARELINE,NHDC,ADVERTISING,43204704371,27/04/2020,38.92,FACEBK  LU6PJS6PN2,NOT LOCAL,PURCHASING CARD SUPPLIER
CCD0000980,NORTH HERTFORDSHIRE DISTRICT COUNCIL,COMMUNICATIONS,NHDC,ADVERTISING,12960004370,27/04/2020,9.00,FACEBK YDC53SAWP2,NOT LOCAL,PURCHASING CARD SUPPLIER
CCD0000928,NORTH HERTFORDSHIRE DISTRICT COUNCIL,COMMUNITY SAFETY,NHDC,BATTERIES,14604384012,16/04/2020,7.98,HOME BARGAINS,LOCAL,PURCHASING CARD SUPPLIER
CCD0000907,NORTH HERTFORDSHIRE DISTRICT COUNCIL,HR,NHDC,PUBLICATIONS,11060004425,06/04/2020,66.90,MANAGEMENT LEARNING RE,NOT LOCAL,PURCHASING CARD SUPPLIER
CCD0000945,NORTH HERTFORDSHIRE DISTRICT COUNCIL,HR,NHDC,PUBLICATIONS,11060034425,21/04/2020,14.95,MANAGEMENT LEARNING RE,NOT LOCAL,PURCHASING CARD SUPPLIER
CCD0001006,NORTH HERTFORDSHIRE DISTRICT COUNCIL,EMERGENCY PLANNING,NHDC,PPE,11840004012,28/04/2020,602.45,MEDISAVE,NOT LOCAL,PURCHASING CARD SUPPLIER
CCD0000893,NORTH HERTFORDSHIRE DISTRICT COUNCIL,IT,NHDC,FUEL,11160003130,16/04/2020,39.00,MRH JACKMANS,LOCAL,PURCHASING CARD SUPPLIER
CCD0000962,NORTH HERTFORDSHIRE DISTRICT COUNCIL,NORTH HERTS MUSEUM,NHDC,SUBSCRIPTIONS,14400001850,28/04/2020,49.00,MUSEUMS ASCTN,NOT LOCAL,PURCHASING CARD SUPPLIER
CCD0000975,NORTH HERTFORDSHIRE DISTRICT COUNCIL,ACTIVE COMMUNITIES,NHDC,GIFT BAGS,14070004012,01/05/2020,14.76,PAYPAL  AKAUKLIMITE EB,NOT LOCAL,PURCHASING CARD SUPPLIER
CCD0000974,NORTH HERTFORDSHIRE DISTRICT COUNCIL,ACTIVE COMMUNITIES,NHDC,HAMPER PRIZE,14070004012,01/05/2020,5.98,PAYPAL  AWDUNBAR EBAY,NOT LOCAL,PURCHASING CARD SUPPLIER
CCD0000894,NORTH HERTFORDSHIRE DISTRICT COUNCIL,STRATEGIC HOUSING,NHDC,POSTAGE,13130034560,15/04/2020,7.50,POST OFFICE COUNTER,LOCAL,PURCHASING CARD SUPPLIER
CCD0000936,NORTH HERTFORDSHIRE DISTRICT COUNCIL,IT,NHDC,POSTAGE,11161674573,09/04/2020,26.60,POST OFFICE COUNTER,LOCAL,PURCHASING CARD SUPPLIER
CCD0000982,NORTH HERTFORDSHIRE DISTRICT COUNCIL,MANAGEMENT SUPPORT,NHDC,CLEANING GOODS,11110004021,23/04/2020,1.00,POUNDLAND LTD 1281,LOCAL,PURCHASING CARD SUPPLIER
CCD0000891,NORTH HERTFORDSHIRE DISTRICT COUNCIL,CARELINE,NHDC,SUBSCRIPTIONS,43204704566,06/04/2020,547.20,ROTAVILLE.COM,NOT LOCAL,PURCHASING CARD SUPPLIER
CCD0000961,NORTH HERTFORDSHIRE DISTRICT COUNCIL,PROPERTY SERVICES,NHDC,TELEPHONE EQUIPMENT,11321872010,06/04/2020,102.21,SAFETYCULTURE,NOT LOCAL,PURCHASING CARD SUPPLIER
CCD0000976,NORTH HERTFORDSHIRE DISTRICT COUNCIL,COMMUNITY SAFETY,NHDC,FUEL,14604383018,01/05/2020,37.01,SAINSBURYS OPT 0235,LOCAL,PURCHASING CARD SUPPLIER
CCD0000895,NORTH HERTFORDSHIRE DISTRICT COUNCIL,COMMUNITY SAFETY,NHDC,FUEL,14604383018,15/04/2020,38.00,SAINSBURYS OPT 0235,LOCAL,PURCHASING CARD SUPPLIER
CCD0000941,NORTH HERTFORDSHIRE DISTRICT COUNCIL,COMMUNITY SAFETY,NHDC,FUEL,14604383018,23/04/2020,42.00,SAINSBURYS OPT 0235,LOCAL,PURCHASING CARD SUPPLIER
CCD0000979,NORTH HERTFORDSHIRE DISTRICT COUNCIL,CARELINE,NHDC,REFRESHMENTS,43204704143,29/04/2020,18.75,SAINSBURYS SACAT 0421,LOCAL,PURCHASING CARD SUPPLIER
CCD0000971,NORTH HERTFORDSHIRE DISTRICT COUNCIL,ENVIRONMENTAL HEALTH,NHDC,PPE,14604304260,01/05/2020,172.50,SELKENT FASTENINGS LTD,NOT LOCAL,PURCHASING CARD SUPPLIER
CCD0000965,NORTH HERTFORDSHIRE DISTRICT COUNCIL,ENVIRONMENTAL HEALTH,NHDC,PPE,14604304260,27/04/2020,4.50,SETON,NOT LOCAL,PURCHASING CARD SUPPLIER
CCD0000930,NORTH HERTFORDSHIRE DISTRICT COUNCIL,COMMUNITY SAFETY,NHDC,FUEL,14604383018,15/04/2020,54.75,SHELL HITCHIN 404,LOCAL,PURCHASING CARD SUPPLIER
CCD0001005,NORTH HERTFORDSHIRE DISTRICT COUNCIL,WASTE MANAGEMENT,NHDC,FUEL,12700003018,28/04/2020,40.71,TESCO PAY AT PUMP 3875,LOCAL,PURCHASING CARD SUPPLIER
CCD0000896,NORTH HERTFORDSHIRE DISTRICT COUNCIL,IT,NHDC,IT EQUIPMENT,11161674573,14/04/2020,618.00,TEXTANYWHERE LTD,NOT LOCAL,PURCHASING CARD SUPPLIER
CCD0000900,NORTH HERTFORDSHIRE DISTRICT COUNCIL,STRATEGIC HOUSING,NHDC,EMERGENCY B & B,13072042336,09/04/2020,490.00,THE GATE HOTEL,NOT LOCAL,PURCHASING CARD SUPPLIER
CCD0000901,NORTH HERTFORDSHIRE DISTRICT COUNCIL,STRATEGIC HOUSING,NHDC,EMERGENCY B & B,13072042336,09/04/2020,490.00,THE GATE HOTEL,NOT LOCAL,PURCHASING CARD SUPPLIER
CCD0000902,NORTH HERTFORDSHIRE DISTRICT COUNCIL,STRATEGIC HOUSING,NHDC,EMERGENCY B & B,13072042336,09/04/2020,560.00,THE GATE HOTEL,NOT LOCAL,PURCHASING CARD SUPPLIER
CCD0000903,NORTH HERTFORDSHIRE DISTRICT COUNCIL,STRATEGIC HOUSING,NHDC,EMERGENCY B & B,13072042336,09/04/2020,490.00,THE GATE HOTEL,NOT LOCAL,PURCHASING CARD SUPPLIER
CCD0000916,NORTH HERTFORDSHIRE DISTRICT COUNCIL,STRATEGIC HOUSING,NHDC,EMERGENCY B & B,13072042336,16/04/2020,560.00,THE GATE HOTEL,NOT LOCAL,PURCHASING CARD SUPPLIER
CCD0000917,NORTH HERTFORDSHIRE DISTRICT COUNCIL,STRATEGIC HOUSING,NHDC,EMERGENCY B & B,13072042336,16/04/2020,490.00,THE GATE HOTEL,NOT LOCAL,PURCHASING CARD SUPPLIER
CCD0000918,NORTH HERTFORDSHIRE DISTRICT COUNCIL,STRATEGIC HOUSING,NHDC,EMERGENCY B & B,13072042336,16/04/2020,490.00,THE GATE HOTEL,NOT LOCAL,PURCHASING CARD SUPPLIER
CCD0000969,NORTH HERTFORDSHIRE DISTRICT COUNCIL,STRATEGIC HOUSING,NHDC,EMERGENCY B & B,13072042336,16/04/2020,490.00,THE GATE HOTEL,NOT LOCAL,PURCHASING CARD SUPPLIER
CCD0000991,NORTH HERTFORDSHIRE DISTRICT COUNCIL,IT,NHDC,IT EQUIPMENT,11161674573,30/04/2020,345.60,The Plastic Box Compan,NOT LOCAL,PURCHASING CARD SUPPLIER
CCD0000932,NORTH HERTFORDSHIRE DISTRICT COUNCIL,IT,NHDC,IT EQUIPMENT,11161674573,10/04/2020,172.80,The Plastic Box Compan,NOT LOCAL,PURCHASING CARD SUPPLIER
CCD0000919,NORTH HERTFORDSHIRE DISTRICT COUNCIL,HITCHIN TOWN HALL,NHDC,TRAINING,14224251860,08/04/2020,275.40,TRAINING AT WORK GROUP,NOT LOCAL,PURCHASING CARD SUPPLIER
CCD0000929,NORTH HERTFORDSHIRE DISTRICT COUNCIL,IT,NHDC,IT EQUIPMENT,11161674573,16/04/2020,157.99,TRANSPARENT COMMUNICAT,NOT LOCAL,PURCHASING CARD SUPPLIER
INC99256,NORTH HERTFORDSHIRE DISTRICT COUNCIL,STRATEGIC HOUSING,NHDC,EMERGENCY B & B,13072042336,20/04/2020,-134.59,TRAVELODGE,NOT LOCAL,PURCHASING CARD SUPPLIER
CCD0000973,NORTH HERTFORDSHIRE DISTRICT COUNCIL,ACTIVE COMMUNITIES,NHDC,GIFTS,14070004140,01/05/2020,24.29,WALKERS SHORTBREAD,NOT LOCAL,PURCHASING CARD SUPPLIER
CCD0000953,NORTH HERTFORDSHIRE DISTRICT COUNCIL,COMMUNITY SAFETY,NHDC,FUEL,14604383018,28/04/2020,60.68,WEST MILL SERVICE STAT,LOCAL,PURCHASING CARD SUPPLIER
CCD0000935,NORTH HERTFORDSHIRE DISTRICT COUNCIL,PROPERTY SERVICES,NHDC,SUBSCRIPTIONS,11870004789,09/04/2020,486.00,WWW.BRITSAFE.ORG,NOT LOCAL,PURCHASING CARD SUPPLIER
INC101052,NORTH HERTFORDSHIRE DISTRICT COUNCIL,REVENUES,NHDC,SUBSCRIPTIONS,11690001860,30/04/2020,-972.00,WWW.IRRV.ORG.UK,NOT LOCAL,PURCHASING CARD SUPPLIER
CCD0000899,NORTH HERTFORDSHIRE DISTRICT COUNCIL,REVENUES,NHDC,SUBSCRIPTIONS,11690004789,10/04/2020,"1,440.00",WWW.IRRV.ORG.UK,NOT LOCAL,PURCHASING CARD SUPPLIER
CCD0000927,NORTH HERTFORDSHIRE DISTRICT COUNCIL,HR,NHDC,GIFT VOUCHER,11690021744,16/04/2020,237.50,www.motivates.co.uk,NOT LOCAL,PURCHASING CARD SUPPLIER
CCD0000956,NORTH HERTFORDSHIRE DISTRICT COUNCIL,HITCHIN TOWN HALL,NHDC,KITCHEN EQUIPMENT,14224254012,21/04/2020,234.92,WWW.NISBETS.COM,NOT LOCAL,PURCHASING CARD SUPPLIER
INC99258,NORTH HERTFORDSHIRE DISTRICT COUNCIL,HITCHIN TOWN HALL,NHDC,KITCHEN EQUIPMENT,14224254012,01/05/2020,-38.38,WWW.NISBETS.COM,NOT LOCAL,PURCHASING CARD SUPPLIER
CCD0000972,NORTH HERTFORDSHIRE DISTRICT COUNCIL,HITCHIN TOWN HALL,NHDC,CERTIFICATE,14224254923,01/05/2020,256.00,WWW.PLANNINGPORTAL.CO.,NOT LOCAL,PURCHASING CARD SUPPLIER
0070013427,NORTH HERTFORDSHIRE DISTRICT COUNCIL,HR,NHDC,PAYROLL SERVICES,11050004566,26/05/2020,"37,320.00",LIBERATA UK LTD,NOT LOCAL,002694000
0070013331,NORTH HERTFORDSHIRE DISTRICT COUNCIL,HR,NHDC,OCC HEALTH,11070005147,19/05/2020,692.64,WORKING ON WELLBEING LIMITED,NOT LOCAL,002710400
0070013413,NORTH HERTFORDSHIRE DISTRICT COUNCIL,HR,NHDC,OCC HEALTH,11070005147,12/05/2020,692.64,WORKING ON WELLBEING LIMITED,NOT LOCAL,002710400
0070013354,NORTH HERTFORDSHIRE DISTRICT COUNCIL,HR,NHDC,EMPLOYEE SERVICE,11070005149,19/05/2020,"2,160.00",RIGHT CORECARE LTD T/A WORKPLACE WELLNES,NOT LOCAL,002769000
0070012882,NORTH HERTFORDSHIRE DISTRICT COUNCIL,MANAGEMENT SUPPORT,NHDC,WEB DEVELOPMENT,11100004425,29/04/2020,"3,285.60",IDOX SOFTWARE LIMITED,NOT LOCAL,002066300
0070013149,NORTH HERTFORDSHIRE DISTRICT COUNCIL,MANAGEMENT SUPPORT,NHDC,RECRUITMENT,11110001221,05/05/2020,680.16,CARLISLE STAFFING PLC T/A TATE,NOT LOCAL,002457700
0070013239,NORTH HERTFORDSHIRE DISTRICT COUNCIL,MANAGEMENT SUPPORT,NHDC,RECRUITMENT,11110001221,12/05/2020,561.13,CARLISLE STAFFING PLC T/A TATE,NOT LOCAL,002457700
0070013462,NORTH HERTFORDSHIRE DISTRICT COUNCIL,MANAGEMENT SUPPORT,NHDC,RECRUITMENT,11110001221,19/05/2020,680.16,CARLISLE STAFFING PLC T/A TATE,NOT LOCAL,002457700
0070013463,NORTH HERTFORDSHIRE DISTRICT COUNCIL,MANAGEMENT SUPPORT,NHDC,RECRUITMENT,11110001221,26/05/2020,510.12,CARLISLE STAFFING PLC T/A TATE,NOT LOCAL,002457700
0070013098,NORTH HERTFORDSHIRE DISTRICT COUNCIL,MANAGEMENT SUPPORT,NHDC,WEB DEVELOPMENT,11110004425,29/04/2020,"3,240.00",IDOX SOFTWARE LIMITED,NOT LOCAL,002066300
0070013088,NORTH HERTFORDSHIRE DISTRICT COUNCIL,MANAGEMENT SUPPORT,NHDC,SCANNING SERVICE,11110055145,29/04/2020,"-10,200.00", NORTHGATE PUBLIC SERVICES (UK) LTD,NOT LOCAL,002410500
0070013240,NORTH HERTFORDSHIRE DISTRICT COUNCIL,MANAGEMENT SUPPORT,NHDC,SCANNING SERVICE,11110055145,19/05/2020,"7,560.00", NORTHGATE PUBLIC SERVICES (UK) LTD,NOT LOCAL,002410500
0070013314,NORTH HERTFORDSHIRE DISTRICT COUNCIL,MANAGEMENT SUPPORT,NHDC,SCANNING SERVICE,11110055145,05/05/2020,95.41, NORTHGATE PUBLIC SERVICES (UK) LTD,NOT LOCAL,002410500
0070013315,NORTH HERTFORDSHIRE DISTRICT COUNCIL,MANAGEMENT SUPPORT,NHDC,SCANNING SERVICE,11110055145,05/05/2020,56.40, NORTHGATE PUBLIC SERVICES (UK) LTD,NOT LOCAL,002410500
0070013316,NORTH HERTFORDSHIRE DISTRICT COUNCIL,MANAGEMENT SUPPORT,NHDC,SCANNING SERVICE,11110055145,05/05/2020,34.20, NORTHGATE PUBLIC SERVICES (UK) LTD,NOT LOCAL,002410500
0070013235,NORTH HERTFORDSHIRE DISTRICT COUNCIL,REVENUES,NHDC,POSTAL SERVICES,11130004560,29/04/2020,14.15,ROYAL MAIL ANGLIA,NOT LOCAL,001019000
0070013251,NORTH HERTFORDSHIRE DISTRICT COUNCIL,REVENUES,NHDC,POSTAL SERVICES,11130004560,29/04/2020,103.32,ROYAL MAIL ANGLIA,NOT LOCAL,001019000
0070013263,NORTH HERTFORDSHIRE DISTRICT COUNCIL,REVENUES,NHDC,POSTAL SERVICES,11130004560,29/04/2020,399.60,ROYAL MAIL ANGLIA,NOT LOCAL,001019000
0070013571,NORTH HERTFORDSHIRE DISTRICT COUNCIL,REVENUES,NHDC,POSTAL SERVICES,11130004560,26/05/2020,399.60,ROYAL MAIL ANGLIA,NOT LOCAL,001019000
0070013573,NORTH HERTFORDSHIRE DISTRICT COUNCIL,REVENUES,NHDC,POSTAL SERVICES,11130004560,26/05/2020,2.36,ROYAL MAIL ANGLIA,NOT LOCAL,001019000
0070013574,NORTH HERTFORDSHIRE DISTRICT COUNCIL,REVENUES,NHDC,POSTAL SERVICES,11130004560,26/05/2020,42.95,ROYAL MAIL ANGLIA,NOT LOCAL,001019000
0070013241,NORTH HERTFORDSHIRE DISTRICT COUNCIL,REVENUES,NHDC,SCANNING SERVICE,11130005150,29/04/2020,"51,840.00", NORTHGATE PUBLIC SERVICES (UK) LTD,NOT LOCAL,002410500
0070013452,NORTH HERTFORDSHIRE DISTRICT COUNCIL,REVENUES,NHDC,CASH COLLECTION,11140004438,12/05/2020,153.70,G4S CASH SOLUTIONS  (UK) LTD,NOT LOCAL,001278600
0070013058,NORTH HERTFORDSHIRE DISTRICT COUNCIL,REVENUES,NHDC,ANTI FRAUD SERVICES,11150005218,05/05/2020,"100,042.82",HERTFORDSHIRE COUNTY COUNCIL,NOT LOCAL,000109000
0070013248,NORTH HERTFORDSHIRE DISTRICT COUNCIL,REVENUES,NHDC,ANTI FRAUD SERVICES,11150005218,05/05/2020,"25,134.02",HERTFORDSHIRE COUNTY COUNCIL,NOT LOCAL,000109000
0070013250,NORTH HERTFORDSHIRE DISTRICT COUNCIL,REVENUES,NHDC,ANTI FRAUD SERVICES,11150005218,05/05/2020,"-100,042.82",HERTFORDSHIRE COUNTY COUNCIL,NOT LOCAL,000109000
0070012930,NORTH HERTFORDSHIRE DISTRICT COUNCIL,IT,NHDC,TELEPHONY SYSTEM,11161674571,29/04/2020,"2,160.00",BRITANNIC TECHNOLOGIES LIMITED,NOT LOCAL,002709000
0070013256,NORTH HERTFORDSHIRE DISTRICT COUNCIL,IT,NHDC,SOFTWARE CONTRAC,11161674571,12/05/2020,"4,800.00",CIVICA UK LIMITED,NOT LOCAL,002671700
0070013295,NORTH HERTFORDSHIRE DISTRICT COUNCIL,IT,NHDC,SCANNING SERVICE,11161674571,29/04/2020,900.00, NORTHGATE PUBLIC SERVICES (UK) LTD,NOT LOCAL,002410500
0070013337,NORTH HERTFORDSHIRE DISTRICT COUNCIL,IT,NHDC,IT SYSTEMS,11161674571,05/05/2020,"22,197.84",PHOENIX SOFTWARE,NOT LOCAL,000989500
0070013359,NORTH HERTFORDSHIRE DISTRICT COUNCIL,IT,NHDC,INTERNET,11161674571,05/05/2020,"3,905.70",VODAFONE DATA SERVICES,NOT LOCAL,002636200
0070013367,NORTH HERTFORDSHIRE DISTRICT COUNCIL,IT,NHDC,SOFTWARE,11161674571,05/05/2020,"2,370.00",SATISNET,NOT LOCAL,002568100
0070013432,NORTH HERTFORDSHIRE DISTRICT COUNCIL,IT,NHDC,TELECOMMUNICATIO,11161674571,12/05/2020,839.66,VIRGIN MEDIA BUSINESS,NOT LOCAL,001359700
0070013468,NORTH HERTFORDSHIRE DISTRICT COUNCIL,IT,NHDC,INTERNET PROVIDE,11161674571,19/05/2020,633.60,ADEPT TELECOM PLC,NOT LOCAL,002696700
0070013469,NORTH HERTFORDSHIRE DISTRICT COUNCIL,IT,NHDC,INTERNET PROVIDE,11161674571,19/05/2020,949.80,ADEPT TELECOM PLC,NOT LOCAL,002696700
0070013470,NORTH HERTFORDSHIRE DISTRICT COUNCIL,IT,NHDC,INTERNET PROVIDE,11161674571,19/05/2020,293.15,ADEPT TELECOM PLC,NOT LOCAL,002696700
0070013471,NORTH HERTFORDSHIRE DISTRICT COUNCIL,IT,NHDC,INTERNET PROVIDE,11161674571,19/05/2020,58.24,ADEPT TELECOM PLC,NOT LOCAL,002696700
0070013472,NORTH HERTFORDSHIRE DISTRICT COUNCIL,IT,NHDC,INTERNET PROVIDE,11161674571,19/05/2020,"2,033.88",ADEPT TELECOM PLC,NOT LOCAL,002696700
0070012805,NORTH HERTFORDSHIRE DISTRICT COUNCIL,IT,NHDC,IT SOFTWARE,11161674573,26/05/2020,"4,490.00",INTERNAL SYSTEMS LIMITED,NOT LOCAL,002024300
0070013234,NORTH HERTFORDSHIRE DISTRICT COUNCIL,IT,NHDC,IT SOFTWARE,11161674573,05/05/2020,"1,856.40",INTERNAL SYSTEMS LIMITED,NOT LOCAL,002024300
0070013236,NORTH HERTFORDSHIRE DISTRICT COUNCIL,IT,NHDC,TELEPHONY SYSTEM,11161674573,29/04/2020,"2,851.20",BRITANNIC TECHNOLOGIES LIMITED,NOT LOCAL,002709000
0070013305,NORTH HERTFORDSHIRE DISTRICT COUNCIL,IT,NHDC,BUILDING SERVICE,11161674573,29/04/2020,106.80,ARC ELECTRICAL LIMITED,NOT LOCAL,001282400
0070013335,NORTH HERTFORDSHIRE DISTRICT COUNCIL,IT,NHDC,ELECTRICIAN,11161674573,05/05/2020,"1,639.04",W G SILVERTON & CO LTD,LOCAL,000915000
0070013426,NORTH HERTFORDSHIRE DISTRICT COUNCIL,IT,NHDC,IT SOFTWARE,11161674573,12/05/2020,"6,912.00",CANCOM UK LIMITED,NOT LOCAL,002786500
0070013519,NORTH HERTFORDSHIRE DISTRICT COUNCIL,IT,NHDC,IT SYSTEMS,11161674573,19/05/2020,350.30,PHOENIX SOFTWARE,NOT LOCAL,000989500
0070012956,NORTH HERTFORDSHIRE DISTRICT COUNCIL,CHIEF EXECS,NHDC,TRAINING,11200011860,27/05/2020,"1,080.00",EAST OF ENGLAND LGA,NOT LOCAL,000864400
0070013419,NORTH HERTFORDSHIRE DISTRICT COUNCIL,ESTATES,NHDC,RECRUITMENT,11310001121,12/05/2020,"4,248.00",THE OYSTER PARTNERSHIP LIMITED,NOT LOCAL,002673100
0070013482,NORTH HERTFORDSHIRE DISTRICT COUNCIL,ESTATES,NHDC,RECRUITMENT,11310001121,19/05/2020,"1,530.00",THE OYSTER PARTNERSHIP LIMITED,NOT LOCAL,002673100
0070013561,NORTH HERTFORDSHIRE DISTRICT COUNCIL,ESTATES,NHDC,RECRUITMENT,11310001121,26/05/2020,"1,926.00",THE OYSTER PARTNERSHIP LIMITED,NOT LOCAL,002673100
0070013396,NORTH HERTFORDSHIRE DISTRICT COUNCIL,ESTATES,NHDC,LEGAL ADVICE,11310004429,12/05/2020,"3,267.00",BRASIER FREETH LLP,NOT LOCAL,002776100
0070013544,NORTH HERTFORDSHIRE DISTRICT COUNCIL,ESTATES,NHDC,LEGAL ADVICE,11310004429,26/05/2020,"1,440.00",LAMB CHAMBERS,NOT LOCAL,002754300
0070013399,NORTH HERTFORDSHIRE DISTRICT COUNCIL,PROPERTY SERVICES,NHDC,FACILITIES MGMT,11320002010,05/05/2020,"1,563.07",MEARS FACILITIES MANAGEMENT,NOT LOCAL,002763600
0070013285,NORTH HERTFORDSHIRE DISTRICT COUNCIL,PROPERTY SERVICES,NHDC,AIR CONDITIONING,11321872010,29/04/2020,335.04,AIR CONDITIONING & CHILLER CO LTD,NOT LOCAL,002662600
0070013338,NORTH HERTFORDSHIRE DISTRICT COUNCIL,PROPERTY SERVICES,NHDC,CLEANING SERVICE,11321872010,05/05/2020,"2,862.30",HI-SPEC FACILITIES SERVICES LTD,NOT LOCAL,002768300
0070013339,NORTH HERTFORDSHIRE DISTRICT COUNCIL,PROPERTY SERVICES,NHDC,CLEANING SERVICE,11321872010,05/05/2020,598.80,HI-SPEC FACILITIES SERVICES LTD,NOT LOCAL,002768300
0070013536,NORTH HERTFORDSHIRE DISTRICT COUNCIL,PROPERTY SERVICES,NHDC,FIRE SAFETY INST,11321872010,26/05/2020,114.00,FIRST RESPONSE FIRE SAFETY UK LIMITED,NOT LOCAL,002649600
0070013546,NORTH HERTFORDSHIRE DISTRICT COUNCIL,PROPERTY SERVICES,NHDC,WASTE DISPOSAL,11321872010,26/05/2020,814.30,INITIAL WASHROOM SOLUTIONS,NOT LOCAL,002155000
0070013341,NORTH HERTFORDSHIRE DISTRICT COUNCIL,PROPERTY SERVICES,NHDC,LIFT MAINTENANCE,11321872014,05/05/2020,180.00,SPECIALIST LIFT SERVICES LIMITED,NOT LOCAL,002774700
0070013530,NORTH HERTFORDSHIRE DISTRICT COUNCIL,PROPERTY SERVICES,NHDC,MOBILE PHONES,11321872547,26/05/2020,52.20,VODAFONE LIMITED,NOT LOCAL,001288400
0070013223,NORTH HERTFORDSHIRE DISTRICT COUNCIL,PROPERTY SERVICES,NHDC,CLEANING SERVICE,11321872752,29/04/2020,"3,621.80",HI-SPEC FACILITIES SERVICES LTD,NOT LOCAL,002768300
0070013247,NORTH HERTFORDSHIRE DISTRICT COUNCIL,PROPERTY SERVICES,NHDC,CLEANING PRODUCT,11321872752,29/04/2020,83.09,AVICA UK LIMITED,NOT LOCAL,002676400
0070013280,NORTH HERTFORDSHIRE DISTRICT COUNCIL,PROPERTY SERVICES,NHDC,CLEANING PRODUCT,11321872752,29/04/2020,70.08,AVICA UK LIMITED,NOT LOCAL,002676400
0070013398,NORTH HERTFORDSHIRE DISTRICT COUNCIL,PROPERTY SERVICES,NHDC,CLEANING PRODUCT,11321872752,12/05/2020,64.22,AVICA UK LIMITED,NOT LOCAL,002676400
0070013421,NORTH HERTFORDSHIRE DISTRICT COUNCIL,PROPERTY SERVICES,NHDC,CLEANING PRODUCT,11321872752,19/05/2020,146.57,AVICA UK LIMITED,NOT LOCAL,002676400
0070013460,NORTH HERTFORDSHIRE DISTRICT COUNCIL,PROPERTY SERVICES,NHDC,CLEANING PRODUCT,11321872752,19/05/2020,88.42,AVICA UK LIMITED,NOT LOCAL,002676400
0070013475,NORTH HERTFORDSHIRE DISTRICT COUNCIL,PROPERTY SERVICES,NHDC,CLEANING PRODUCT,11321872752,19/05/2020,61.51,AVICA UK LIMITED,NOT LOCAL,002676400
0070013490,NORTH HERTFORDSHIRE DISTRICT COUNCIL,PROPERTY SERVICES,NHDC,CLEANING PRODUCT,11321872752,19/05/2020,250.76,AVICA UK LIMITED,NOT LOCAL,002676400
0070013491,NORTH HERTFORDSHIRE DISTRICT COUNCIL,PROPERTY SERVICES,NHDC,CLEANING PRODUCT,11321872752,19/05/2020,29.98,AVICA UK LIMITED,NOT LOCAL,002676400
0070011087,NORTH HERTFORDSHIRE DISTRICT COUNCIL,PROPERTY SERVICES,NHDC,WASTE DISPOSAL,11321942010,26/05/2020,-13.34,INITIAL WASHROOM SOLUTIONS,NOT LOCAL,002155000
0070013273,NORTH HERTFORDSHIRE DISTRICT COUNCIL,PROPERTY SERVICES,NHDC,FACILITIES MGMT,11321995146,29/04/2020,"8,669.09",MEARS FACILITIES MANAGEMENT,NOT LOCAL,002763600
0070013397,NORTH HERTFORDSHIRE DISTRICT COUNCIL,PROPERTY SERVICES,NHDC,BURGLAR ALARMS,11322252010,05/05/2020,78.00,COUNTY SECURITY SERVICES LTD,LOCAL,000418300
0070013512,NORTH HERTFORDSHIRE DISTRICT COUNCIL,ESTATES,NHDC,SERVICE CH & INS,11322254442,19/05/2020,194.83,ESCALA LIMITED,NOT LOCAL,002718200
0070013357,NORTH HERTFORDSHIRE DISTRICT COUNCIL,LEGAL SERVICES,NHDC,LEGAL ADVICE,11400001850,05/05/2020,900.00,FREETHS LLP,NOT LOCAL,002786300
0070013199,NORTH HERTFORDSHIRE DISTRICT COUNCIL,LEGAL SERVICES,NHDC,RECRUITMENT,11400004566,29/04/2020,633.43,CARLISLE STAFFING PLC T/A TATE,NOT LOCAL,002457700
0070013282,NORTH HERTFORDSHIRE DISTRICT COUNCIL,LEGAL SERVICES,NHDC,RECRUITMENT,11430011121,29/04/2020,"1,550.44",VENN GROUP,NOT LOCAL,002696900
0070013330,NORTH HERTFORDSHIRE DISTRICT COUNCIL,LEGAL SERVICES,NHDC,RECRUITMENT,11430011121,05/05/2020,"2,441.56",SELLICK PARTNERSHIP,NOT LOCAL,002622600
0070013358,NORTH HERTFORDSHIRE DISTRICT COUNCIL,LEGAL SERVICES,NHDC,RECRUITMENT,11430011121,05/05/2020,"1,698.89",VENN GROUP,NOT LOCAL,002696900
0070013410,NORTH HERTFORDSHIRE DISTRICT COUNCIL,LEGAL SERVICES,NHDC,RECRUITMENT,11430011121,12/05/2020,"2,441.56",SELLICK PARTNERSHIP,NOT LOCAL,002622600
0070013439,NORTH HERTFORDSHIRE DISTRICT COUNCIL,LEGAL SERVICES,NHDC,RECRUITMENT,11430011121,12/05/2020,"2,127.73",VENN GROUP,NOT LOCAL,002696900
0070013449,NORTH HERTFORDSHIRE DISTRICT COUNCIL,LEGAL SERVICES,NHDC,LEGAL SERVICES,11430011121,12/05/2020,250.00,LEXARC LIMITED,LOCAL,002780800
0070013456,NORTH HERTFORDSHIRE DISTRICT COUNCIL,LEGAL SERVICES,NHDC,RECRUITMENT,11430011121,12/05/2020,"2,441.56",SELLICK PARTNERSHIP,NOT LOCAL,002622600
0070013518,NORTH HERTFORDSHIRE DISTRICT COUNCIL,LEGAL SERVICES,NHDC,RECRUITMENT,11430011121,19/05/2020,"1,055.62",VENN GROUP,NOT LOCAL,002696900
0070013537,NORTH HERTFORDSHIRE DISTRICT COUNCIL,LEGAL SERVICES,NHDC,RECRUITMENT,11430011121,26/05/2020,"2,441.56",SELLICK PARTNERSHIP,NOT LOCAL,002622600
0070013570,NORTH HERTFORDSHIRE DISTRICT COUNCIL,LEGAL SERVICES,NHDC,RECRUITMENT,11430011121,26/05/2020,"1,121.59",VENN GROUP,NOT LOCAL,002696900
0070013060,NORTH HERTFORDSHIRE DISTRICT COUNCIL,LEGAL SERVICES,NHDC,PUBLICATION,11430014374,05/05/2020,"16,422.00",THOMSON SWEET & MAXWELL,NOT LOCAL,002031200
0070013277,NORTH HERTFORDSHIRE DISTRICT COUNCIL,LEGAL SERVICES,NHDC,MEMBERSHIPS,11430014789,29/04/2020,515.00,LAWYERS IN LOCAL GOVERNMENT,NOT LOCAL,002673700
0070013466,NORTH HERTFORDSHIRE DISTRICT COUNCIL,LEGAL SERVICES,NHDC,LEGAL ADVICE,11430014789,19/05/2020,"1,035.00",ESSEX COUNTY COUNCIL,NOT LOCAL,000080300
0070013034,NORTH HERTFORDSHIRE DISTRICT COUNCIL,COMMUNICATIONS,NHDC,PRINTING,11460014422,29/04/2020,"1,452.00",TKM CREATIVE SOLUTIONS,NOT LOCAL,002122200
0070013355,NORTH HERTFORDSHIRE DISTRICT COUNCIL,MANAGEMENT SUPPORT,NHDC,STATIONERY,11460024372,19/05/2020,65.84,LYRECO UK LTD,NOT LOCAL,002126700
0070013535,NORTH HERTFORDSHIRE DISTRICT COUNCIL,COMMUNICATIONS,NHDC,COPIERS/PAPER,11460094045,26/05/2020,106.71,RICOH UK LIMITED,NOT LOCAL,002451100
0070013553,NORTH HERTFORDSHIRE DISTRICT COUNCIL,COMMUNICATIONS,NHDC,INTERNET PROVIDE,11480554013,26/05/2020,697.98,ADEPT TELECOM PLC,NOT LOCAL,002696700
0070013554,NORTH HERTFORDSHIRE DISTRICT COUNCIL,COMMUNICATIONS,NHDC,INTERNET PROVIDE,11480554013,26/05/2020,970.90,ADEPT TELECOM PLC,NOT LOCAL,002696700
0070012991,NORTH HERTFORDSHIRE DISTRICT COUNCIL,REVENUES,NHDC,SCANNING SERVICE,11690001121,29/04/2020,183.00, NORTHGATE PUBLIC SERVICES (UK) LTD,NOT LOCAL,002410500
0070013360,NORTH HERTFORDSHIRE DISTRICT COUNCIL,REVENUES,NHDC,SCANNING SERVICE,11690001121,12/05/2020,"2,198.39", NORTHGATE PUBLIC SERVICES (UK) LTD,NOT LOCAL,002410500
0070013361,NORTH HERTFORDSHIRE DISTRICT COUNCIL,REVENUES,NHDC,SCANNING SERVICE,11690001121,12/05/2020,638.11, NORTHGATE PUBLIC SERVICES (UK) LTD,NOT LOCAL,002410500
0070013547,NORTH HERTFORDSHIRE DISTRICT COUNCIL,REVENUES,NHDC,SOFTWARE CONTRAC,11690024425,26/05/2020,"1,110.00",CIVICA UK LIMITED,NOT LOCAL,002671700
0070013059,NORTH HERTFORDSHIRE DISTRICT COUNCIL,REVENUES,NHDC,TRANSCRIPTION,11701574370,29/04/2020,51.60,RNIB ENTERPRISES LIMITED,NOT LOCAL,002751400
0070013423,NORTH HERTFORDSHIRE DISTRICT COUNCIL,REVENUES,NHDC,CCARD SERVICES,11701574439,12/05/2020,34.58,INTERCARD LIMITED,NOT LOCAL,002053100
0070013145,NORTH HERTFORDSHIRE DISTRICT COUNCIL,REVENUES,NHDC,SCANNING SERVICE,11701574566,29/04/2020,"1,050.00", NORTHGATE PUBLIC SERVICES (UK) LTD,NOT LOCAL,002410500
0070013180,NORTH HERTFORDSHIRE DISTRICT COUNCIL,REVENUES,NHDC,SCANNING SERVICE,11701574566,12/05/2020,570.00, NORTHGATE PUBLIC SERVICES (UK) LTD,NOT LOCAL,002410500
0070013253,NORTH HERTFORDSHIRE DISTRICT COUNCIL,REVENUES,NHDC,SCANNING SERVICE,11701574566,29/04/2020,"4,500.00", NORTHGATE PUBLIC SERVICES (UK) LTD,NOT LOCAL,002410500
0070013294,NORTH HERTFORDSHIRE DISTRICT COUNCIL,REVENUES,NHDC,SCANNING SERVICE,11701574566,29/04/2020,"7,218.38", NORTHGATE PUBLIC SERVICES (UK) LTD,NOT LOCAL,002410500
0070013363,NORTH HERTFORDSHIRE DISTRICT COUNCIL,REVENUES,NHDC,TRAINING,11701574566,05/05/2020,"2,227.50",ACS LIMITED,NOT LOCAL,002598300
0000139653,NORTH HERTFORDSHIRE DISTRICT COUNCIL,COMMUNITY DEVELOPMENT,NHDC,GRANTS,11720016212,30/04/2020,"2,292.00",BALDOCK COMMUNITY FORUM,LOCAL,002510000
0000139658,NORTH HERTFORDSHIRE DISTRICT COUNCIL,COMMUNITY DEVELOPMENT,NHDC,GRANTS,11730066981,01/05/2020,"10,200.00",NORTH HERTS CVS,LOCAL,002510000
0000139657,NORTH HERTFORDSHIRE DISTRICT COUNCIL,COMMUNITY DEVELOPMENT,NHDC,GRANTS,11730286981,04/05/2020,"98,950.00",NORTH HERTS CAB,LOCAL,002510000
0000139656,NORTH HERTFORDSHIRE DISTRICT COUNCIL,COMMUNITY DEVELOPMENT,NHDC,GRANTS,11740016987,01/05/2020,"5,250.00",NORTH HERTS ETHNIC MINORTY FORUM,LOCAL,002510000
0070013437,NORTH HERTFORDSHIRE DISTRICT COUNCIL,LAND CHARGES,NHDC,LAND CHARGES,11750004437,26/05/2020,"1,500.00",HERTFORDSHIRE COUNTY COUNCIL,NOT LOCAL,000109000
0070013446,NORTH HERTFORDSHIRE DISTRICT COUNCIL,LAND CHARGES,NHDC,BUILDING CONTROL,11750004437,19/05/2020,990.00,HERTFORDSHIRE BUILDING CONTROL LIMITED,NOT LOCAL,002723500
0070013569,NORTH HERTFORDSHIRE DISTRICT COUNCIL,ESTATES,NHDC,RENT,11761122336,26/05/2020,"21,639.46",LGCHF - RAPLEYS LLP,LOCAL,001037500
0070013259,NORTH HERTFORDSHIRE DISTRICT COUNCIL,DEMOCRATIC SERVICES,NHDC,TRAINING,11800051860,29/04/2020,300.00,IMPROVEMENT & DEVELOPMENT AGENCY,NOT LOCAL,002786600
0070013056,NORTH HERTFORDSHIRE DISTRICT COUNCIL,ELECTORAL SERVICES,NHDC,HALL HIRE,11811004449,29/04/2020,250.00,TAPPS GARDEN CENTRE,LOCAL,001094600
0070013124,NORTH HERTFORDSHIRE DISTRICT COUNCIL,ELECTORAL SERVICES,NHDC,HALL HIRE,11811004449,19/05/2020,372.00,NORTON PARISH CENTRE,LOCAL,001051100
0070013267,NORTH HERTFORDSHIRE DISTRICT COUNCIL,ELECTORAL SERVICES,NHDC,ELECTORAL SERVIC,11811024370,29/04/2020,"5,624.88",CIVICA ELECTION SERVICES,NOT LOCAL,002276800
0070013268,NORTH HERTFORDSHIRE DISTRICT COUNCIL,ELECTORAL SERVICES,NHDC,ELECTORAL SERVIC,11811044370,29/04/2020,424.15,CIVICA ELECTION SERVICES,NOT LOCAL,002276800
0070013513,NORTH HERTFORDSHIRE DISTRICT COUNCIL,ELECTORAL SERVICES,NHDC,POSTAL SERVICES,11820004560,19/05/2020,20.95,ROYAL MAIL ANGLIA,NOT LOCAL,001019000
0070013572,NORTH HERTFORDSHIRE DISTRICT COUNCIL,ELECTORAL SERVICES,NHDC,POSTAL SERVICES,11820004560,26/05/2020,1.19,ROYAL MAIL ANGLIA,NOT LOCAL,001019000
0070013334,NORTH HERTFORDSHIRE DISTRICT COUNCIL,CHIEF EXECS,NHDC,CONFERENCE,11830004789,26/05/2020,"13,127.40",LOCAL GOVERNMENT ASSOCIATION,NOT LOCAL,002072300
0070013498,NORTH HERTFORDSHIRE DISTRICT COUNCIL,EMERGENCY PLANNING,NHDC,EMERGENCY PLANNING,11840004457,19/05/2020,"3,000.00",STEVENAGE LEISURE LIMITED,NOT LOCAL,002032000
0000139655,NORTH HERTFORDSHIRE DISTRICT COUNCIL,COMMUNITY DEVELOPMENT,NHDC,GRANTS,11910006826,01/05/2020,640.00,TILEHOUSE COUNSELLING,LOCAL,002510000
0000139663,NORTH HERTFORDSHIRE DISTRICT COUNCIL,COMMUNITY DEVELOPMENT,NHDC,GRANTS,11910006826,14/05/2020,528.00,NORTH HERTS CVS,LOCAL,002510000
0000139654,NORTH HERTFORDSHIRE DISTRICT COUNCIL,COMMUNITY DEVELOPMENT,NHDC,GRANTS,11920006826,01/05/2020,640.00,TILEHOUSE COUNSELLING,LOCAL,002510000
0000139660,NORTH HERTFORDSHIRE DISTRICT COUNCIL,COMMUNITY DEVELOPMENT,NHDC,GRANTS,11920006826,12/05/2020,"2,000.00",HITCHIN FOOD PROVISION,LOCAL,002510000
0000139664,NORTH HERTFORDSHIRE DISTRICT COUNCIL,COMMUNITY DEVELOPMENT,NHDC,GRANTS,11920006826,20/05/2020,350.00,CLIMB HITCHIN,LOCAL,002510000
0000139661,NORTH HERTFORDSHIRE DISTRICT COUNCIL,COMMUNITY DEVELOPMENT,NHDC,GRANTS,11930006826,12/05/2020,450.00,ROYSTON & DISTRICT ROUND TABLE,LOCAL,002510000
0000139659,NORTH HERTFORDSHIRE DISTRICT COUNCIL,COMMUNITY DEVELOPMENT,NHDC,GRANTS,11940006826,05/05/2020,"1,000.00",KNEBWORTH COVID RESPONSE,LOCAL,002510000
0000139662,NORTH HERTFORDSHIRE DISTRICT COUNCIL,COMMUNITY DEVELOPMENT,NHDC,GRANTS,11940006826,12/05/2020,"3,500.00",CODICOTE TENNIS CLUB,LOCAL,002510000
0070013351,NORTH HERTFORDSHIRE DISTRICT COUNCIL,GROUNDS MAINTENANCE,NHDC,GROUNDS MAINT,12070002015,05/05/2020,"170,464.08",JOHN O'CONNER (GROUNDS MAINTENANCE)LTD,LOCAL,000172200
0070013483,NORTH HERTFORDSHIRE DISTRICT COUNCIL,GROUNDS MAINTENANCE,NHDC,GROUNDS MAINT,12070002015,19/05/2020,"16,273.99",JOHN O'CONNER (GROUNDS MAINTENANCE)LTD,LOCAL,000172200
0070013493,NORTH HERTFORDSHIRE DISTRICT COUNCIL,GROUNDS MAINTENANCE,NHDC,DRAINAGE LEVY,12070002440,19/05/2020,"2,469.00",BEDS/RIVER IVEL INTERNAL DRAINAGE BD,NOT LOCAL,000023700
0070013232,NORTH HERTFORDSHIRE DISTRICT COUNCIL,WASTE MANAGEMENT,NHDC,WASTE CONTRACT,12090002007,29/04/2020,"30,580.22",URBASER LIMITED,NOT LOCAL,002749500
0070013458,NORTH HERTFORDSHIRE DISTRICT COUNCIL,WASTE MANAGEMENT,NHDC,WASTE CONTRACT,12090002050,12/05/2020,"23,983.81",URBASER LIMITED,NOT LOCAL,002749500
0070013514,NORTH HERTFORDSHIRE DISTRICT COUNCIL,WASTE MANAGEMENT,NHDC,WASTE CONTRACT,12090002050,19/05/2020,144.00,URBASER LIMITED,NOT LOCAL,002749500
0070013326,NORTH HERTFORDSHIRE DISTRICT COUNCIL,WASTE MANAGEMENT,NHDC,WASTE CONTRACT,12090002093,29/04/2020,"462,032.14",URBASER LIMITED,NOT LOCAL,002749500
0070013457,NORTH HERTFORDSHIRE DISTRICT COUNCIL,WASTE MANAGEMENT,NHDC,WASTE CONTRACT,12090002093,12/05/2020,"21,385.27",URBASER LIMITED,NOT LOCAL,002749500
0070013288,NORTH HERTFORDSHIRE DISTRICT COUNCIL,PARKING SERVICES,NHDC,CAR PARK REPAIRS,12207202010,29/04/2020,920.94,STEVENAGE BOROUGH COUNCIL,NOT LOCAL,000218900
0070013531,NORTH HERTFORDSHIRE DISTRICT COUNCIL,PARKING SERVICES,NHDC,BUILDING SERVICE,12207202010,19/05/2020,"2,376.00",LETCHWORTH STEEL LIMITED,LOCAL,000398500
0070013583,NORTH HERTFORDSHIRE DISTRICT COUNCIL,PARKING SERVICES,NHDC,BUILDING SERVICE,12207202010,26/05/2020,150.00,ARC ELECTRICAL LIMITED,NOT LOCAL,001282400
0070013495,NORTH HERTFORDSHIRE DISTRICT COUNCIL,ESTATES,NHDC,RENT,12207202336,19/05/2020,"8,250.00",CARTER JONAS LLP,NOT LOCAL,002754600
0070013496,NORTH HERTFORDSHIRE DISTRICT COUNCIL,ESTATES,NHDC,RENT,12207202336,19/05/2020,"8,250.00",CARTER JONAS LLP,NOT LOCAL,002754600
0070013412,NORTH HERTFORDSHIRE DISTRICT COUNCIL,PARKING SERVICES,NHDC,CAR PARK MACHINE,12207204013,12/05/2020,"7,488.00",FLOWBIRD SMART CITY UK LIMITED,NOT LOCAL,002348100
0070013453,NORTH HERTFORDSHIRE DISTRICT COUNCIL,PARKING SERVICES,NHDC,COURT FEES,12207204424,12/05/2020,"1,200.00",TRAFFIC ENFORCEMENT CENTRE,NOT LOCAL,002435000
0070013141,NORTH HERTFORDSHIRE DISTRICT COUNCIL,PARKING SERVICES,NHDC,CASHLESS PARKING,12207204430,29/04/2020,127.27,PAYBYPHONE LIMITED,NOT LOCAL,002782500
0070013465,NORTH HERTFORDSHIRE DISTRICT COUNCIL,PARKING SERVICES,NHDC,CASHLESS PARKING,12207204430,26/05/2020,151.84,PAYBYPHONE LIMITED,NOT LOCAL,002782500
0070012995,NORTH HERTFORDSHIRE DISTRICT COUNCIL,PARKING SERVICES,NHDC,CASH COLLECTION,12207204438,29/04/2020,"2,963.40",BDI SECURITIES UK LIMITED,NOT LOCAL,002769800
0070013411,NORTH HERTFORDSHIRE DISTRICT COUNCIL,PARKING SERVICES,NHDC,CASH COLLECTION,12207204438,12/05/2020,"1,287.00",BDI SECURITIES UK LIMITED,NOT LOCAL,002769800
0070013111,NORTH HERTFORDSHIRE DISTRICT COUNCIL,PARKING SERVICES,NHDC,SEARCH FEES,12207204444,29/04/2020,"1,542.00",IMPERIAL CIVIL ENFORCEMENT SOLUTIONS LTD,NOT LOCAL,002550200
0070013350,NORTH HERTFORDSHIRE DISTRICT COUNCIL,PARKING SERVICES,NHDC,CAR PARK MACHINE,12207204444,05/05/2020,"1,305.08",FLOWBIRD SMART CITY UK LIMITED,NOT LOCAL,002348100
0070013451,NORTH HERTFORDSHIRE DISTRICT COUNCIL,PARKING SERVICES,NHDC,SEARCH FEES,12207204444,19/05/2020,453.00,IMPERIAL CIVIL ENFORCEMENT SOLUTIONS LTD,NOT LOCAL,002550200
0070013604,NORTH HERTFORDSHIRE DISTRICT COUNCIL,PARKING SERVICES,NHDC,CAR PARK MACHINE,12207204444,26/05/2020,68.38,FLOWBIRD SMART CITY UK LIMITED,NOT LOCAL,002348100
0070013340,NORTH HERTFORDSHIRE DISTRICT COUNCIL,PROPERTY SERVICES,NHDC,LIFT MAINTENANCE,12207212014,05/05/2020,120.00,SPECIALIST LIFT SERVICES LIMITED,NOT LOCAL,002774700
0070013407,NORTH HERTFORDSHIRE DISTRICT COUNCIL,PROPERTY SERVICES,NHDC,SECURITY,12207214428,12/05/2020,964.22,ARENA SECURITY LTD,LOCAL,000014000
0070013533,NORTH HERTFORDSHIRE DISTRICT COUNCIL,PROPERTY SERVICES,NHDC,BUILDING SERVICE,12207222010,19/05/2020,204.00,LETCHWORTH STEEL LIMITED,LOCAL,000398500
0070013342,NORTH HERTFORDSHIRE DISTRICT COUNCIL,PROPERTY SERVICES,NHDC,LIFT MAINTENANCE,12207222014,05/05/2020,360.00,SPECIALIST LIFT SERVICES LIMITED,NOT LOCAL,002774700
0070013405,NORTH HERTFORDSHIRE DISTRICT COUNCIL,PROPERTY SERVICES,NHDC,SECURITY,12207224428,12/05/2020,637.44,ARENA SECURITY LTD,LOCAL,000014000
0070013406,NORTH HERTFORDSHIRE DISTRICT COUNCIL,PROPERTY SERVICES,NHDC,SECURITY,12207224428,12/05/2020,214.27,ARENA SECURITY LTD,LOCAL,000014000
0070013529,NORTH HERTFORDSHIRE DISTRICT COUNCIL,PARKING SERVICES,NHDC,LEASING,12210013130,19/05/2020,90.50,ARNOLD CLARK VEHICLE MANAGEMENT,NOT LOCAL,002548100
0070013333,NORTH HERTFORDSHIRE DISTRICT COUNCIL,PARKING SERVICES,NHDC,SEARCH FEES,12210015910,05/05/2020,108.18,IMPERIAL CIVIL ENFORCEMENT SOLUTIONS LTD,NOT LOCAL,002550200
0070013525,NORTH HERTFORDSHIRE DISTRICT COUNCIL,GROUNDS MAINTENANCE,NHDC,TREE PLANTING,12310002018,26/05/2020,"4,080.00",ENVIRONMENTAL MANAGEMENT GROUP LTD,NOT LOCAL,002765000
0070012793,NORTH HERTFORDSHIRE DISTRICT COUNCIL,GROUNDS MAINTENANCE,NHDC,TREE WORKS,12310012018,29/04/2020,"1,292.00",RGS TREES AND LANDSCAPING,LOCAL,002273800
0070013293,NORTH HERTFORDSHIRE DISTRICT COUNCIL,PLANNING,NHDC,LEGAL ADVICE,12520014434,13/05/2020,960.00,FRANCIS TAYLOR BULDING - CAROLINE DALY,NOT LOCAL,002736800
0070013258,NORTH HERTFORDSHIRE DISTRICT COUNCIL,BUILDING CONTROL,NHDC,BUILDING CONTROL,12540004425,29/04/2020,167.76,HERTFORDSHIRE BUILDING CONTROL LIMITED,NOT LOCAL,002723500
0070013209,NORTH HERTFORDSHIRE DISTRICT COUNCIL,PLANNING,NHDC,PLANNING REFUNDS,12550009462,29/04/2020,103.00,PORTALPLANQUEST (PPQ) LTD,NOT LOCAL,002758400
0070013278,NORTH HERTFORDSHIRE DISTRICT COUNCIL,PLANNING,NHDC,PLANNING REFUNDS,12550009462,29/04/2020,34.00,PORTALPLANQUEST (PPQ) LTD,NOT LOCAL,002758400
0070013368,NORTH HERTFORDSHIRE DISTRICT COUNCIL,PLANNING,NHDC,PLANNING REFUNDS,12550009462,05/05/2020,116.00,PORTALPLANQUEST (PPQ) LTD,NOT LOCAL,002758400
0070013299,NORTH HERTFORDSHIRE DISTRICT COUNCIL,PROPERTY SERVICES,NHDC,CCTV,12590004018,29/04/2020,"2,970.00",HERTFORDSHIRE CCTV PARTNERSHIP LTD,NOT LOCAL,002700400
0070013433,NORTH HERTFORDSHIRE DISTRICT COUNCIL,PROPERTY SERVICES,NHDC,TELECOMMUNICATIO,12590004018,12/05/2020,54.00,VIRGIN MEDIA BUSINESS,NOT LOCAL,001359700
0070013448,NORTH HERTFORDSHIRE DISTRICT COUNCIL,PROPERTY SERVICES,NHDC,TELECOMMUNICATIO,12590004018,12/05/2020,"1,440.00",VIRGIN MEDIA BUSINESS,NOT LOCAL,001359700
0070013275,NORTH HERTFORDSHIRE DISTRICT COUNCIL,GROUNDS MAINTENANCE,NHDC,GROUNDS MAINT,12687602016,05/05/2020,"-1,890.00",JOHN O'CONNER (GROUNDS MAINTENANCE)LTD,LOCAL,000172200
0070013356,NORTH HERTFORDSHIRE DISTRICT COUNCIL,ENVIRONMENTAL PROTECTION,NHDC,STRAY DOG CONTRA,12687625148,05/05/2020,"2,040.24",SDK ENVIRONMENTAL,NOT LOCAL,002649000
0070012768,NORTH HERTFORDSHIRE DISTRICT COUNCIL,ENVIRONMENTAL PROTECTION,NHDC,CONSULTANCY,12690014425,26/05/2020,136.37,RICARDO AEA,NOT LOCAL,002680300
0070013435,NORTH HERTFORDSHIRE DISTRICT COUNCIL,ENVIRONMENTAL PROTECTION,NHDC,CONSULTANCY,12690014425,12/05/2020,"1,333.32",RICARDO AEA,NOT LOCAL,002680300
0070013515,NORTH HERTFORDSHIRE DISTRICT COUNCIL,WASTE MANAGEMENT,NHDC,POSTAL SERVICES,12700004560,19/05/2020,9.02,ROYAL MAIL ANGLIA,NOT LOCAL,001019000
0070013447,NORTH HERTFORDSHIRE DISTRICT COUNCIL,WASTE MANAGEMENT,NHDC,WASTE MANAGEMENT,12700005210,12/05/2020,"5,124.00",EAST HERTFORDSHIRE DISTRICT COUNCIL,NOT LOCAL,002024100
0070013369,NORTH HERTFORDSHIRE DISTRICT COUNCIL,WASTE MANAGEMENT,NHDC,REUSABLE NAPPIES,12720004928,26/05/2020,275.00,TOTSBOTS LIMITED,NOT LOCAL,002701000
0070013524,NORTH HERTFORDSHIRE DISTRICT COUNCIL,WASTE MANAGEMENT,NHDC,REUSABLE NAPPIES,12720004928,19/05/2020,275.00,TOTSBOTS LIMITED,NOT LOCAL,002701000
0070013327,NORTH HERTFORDSHIRE DISTRICT COUNCIL,WASTE MANAGEMENT,NHDC,ENV CONTAINERS,12720074025,05/05/2020,"12,204.00",ONE51 ES PLASTICS T/A MGB PLASTICS,NOT LOCAL,002752600
0070013071,NORTH HERTFORDSHIRE DISTRICT COUNCIL,WASTE MANAGEMENT,NHDC,RECYCLING,12720075121,12/05/2020,-210.12,PEARCE RECYCLING CO LIMITED,NOT LOCAL,002398600
0070013455,NORTH HERTFORDSHIRE DISTRICT COUNCIL,WASTE MANAGEMENT,NHDC,RECYCLING,12720075126,12/05/2020,"178,029.06",PEARCE RECYCLING CO LIMITED,NOT LOCAL,002398600
0070013459,NORTH HERTFORDSHIRE DISTRICT COUNCIL,WASTE MANAGEMENT,NHDC,ENV CONTAINERS,12720084025,12/05/2020,"6,120.00",ONE51 ES PLASTICS T/A MGB PLASTICS,NOT LOCAL,002752600
0070013231,NORTH HERTFORDSHIRE DISTRICT COUNCIL,WASTE MANAGEMENT,NHDC,WASTE PERMITS,12720084370,29/04/2020,165.67,EURO LABEL PRINTERS LTD,NOT LOCAL,002778200
0070013233,NORTH HERTFORDSHIRE DISTRICT COUNCIL,WASTE MANAGEMENT,NHDC,WASTE CONTRACT,12720085126,29/04/2020,"12,445.63",URBASER LIMITED,NOT LOCAL,002749500
0070013252,NORTH HERTFORDSHIRE DISTRICT COUNCIL,COMMUNICATIONS,NHDC,OUTLOOK DISTRIBU,12960004370,29/04/2020,"4,584.00",D2D DISTRIBUTION LIMITED,NOT LOCAL,002661000
0070013090,NORTH HERTFORDSHIRE DISTRICT COUNCIL,COMMUNICATIONS,NHDC,OUTLOOK DISTRIBU,12960004375,05/05/2020,"4,584.00",D2D DISTRIBUTION LIMITED,NOT LOCAL,002661000
0070013255,NORTH HERTFORDSHIRE DISTRICT COUNCIL,COMMUNICATIONS,NHDC,COMMUNICATIONS,12960004789,12/05/2020,571.00,GRANICUS,NOT LOCAL,002753700
0070013325,NORTH HERTFORDSHIRE DISTRICT COUNCIL,COMMUNICATIONS,NHDC,COPYRIGHT FEE,12960004789,05/05/2020,"6,893.54",NLA MEDIA ACCESS LIMITED,NOT LOCAL,002113500
0070013605,NORTH HERTFORDSHIRE DISTRICT COUNCIL,COMMUNICATIONS,NHDC,COMMUNICATIONS,12960004789,26/05/2020,571.00,GRANICUS,NOT LOCAL,002753700
0070013061,NORTH HERTFORDSHIRE DISTRICT COUNCIL,STRATEGIC HOUSING,NHDC,EMERGENCY B&B,13072042336,29/04/2020,378.00,PRIMROSE ESTATES T/A ALEXANDRA GUESTHOUS,NOT LOCAL,002684500
0070013062,NORTH HERTFORDSHIRE DISTRICT COUNCIL,STRATEGIC HOUSING,NHDC,EMERGENCY B&B,13072042336,29/04/2020,270.00,PRIMROSE ESTATES T/A ALEXANDRA GUESTHOUS,NOT LOCAL,002684500
0070013063,NORTH HERTFORDSHIRE DISTRICT COUNCIL,STRATEGIC HOUSING,NHDC,EMERGENCY B&B,13072042336,29/04/2020,378.00,PRIMROSE ESTATES T/A ALEXANDRA GUESTHOUS,NOT LOCAL,002684500
0070013064,NORTH HERTFORDSHIRE DISTRICT COUNCIL,STRATEGIC HOUSING,NHDC,EMERGENCY B&B,13072042336,29/04/2020,378.00,PRIMROSE ESTATES T/A ALEXANDRA GUESTHOUS,NOT LOCAL,002684500
0070013087,NORTH HERTFORDSHIRE DISTRICT COUNCIL,STRATEGIC HOUSING,NHDC,EMERGENCY B&B,13072042336,29/04/2020,480.00,PRIMROSE ESTATES T/A ALEXANDRA GUESTHOUS,NOT LOCAL,002684500
0070013128,NORTH HERTFORDSHIRE DISTRICT COUNCIL,STRATEGIC HOUSING,NHDC,EMERGENCY B&B,13072042336,29/04/2020,378.00,PRIMROSE ESTATES T/A ALEXANDRA GUESTHOUS,NOT LOCAL,002684500
0070013129,NORTH HERTFORDSHIRE DISTRICT COUNCIL,STRATEGIC HOUSING,NHDC,EMERGENCY B&B,13072042336,29/04/2020,378.00,PRIMROSE ESTATES T/A ALEXANDRA GUESTHOUS,NOT LOCAL,002684500
0070013130,NORTH HERTFORDSHIRE DISTRICT COUNCIL,STRATEGIC HOUSING,NHDC,EMERGENCY B&B,13072042336,29/04/2020,54.00,PRIMROSE ESTATES T/A ALEXANDRA GUESTHOUS,NOT LOCAL,002684500
0070013131,NORTH HERTFORDSHIRE DISTRICT COUNCIL,STRATEGIC HOUSING,NHDC,EMERGENCY B&B,13072042336,29/04/2020,378.00,PRIMROSE ESTATES T/A ALEXANDRA GUESTHOUS,NOT LOCAL,002684500
0070013132,NORTH HERTFORDSHIRE DISTRICT COUNCIL,STRATEGIC HOUSING,NHDC,EMERGENCY B&B,13072042336,29/04/2020,462.00,PRIMROSE ESTATES T/A ALEXANDRA GUESTHOUS,NOT LOCAL,002684500
0070013133,NORTH HERTFORDSHIRE DISTRICT COUNCIL,STRATEGIC HOUSING,NHDC,EMERGENCY B&B,13072042336,29/04/2020,378.00,PRIMROSE ESTATES T/A ALEXANDRA GUESTHOUS,NOT LOCAL,002684500
0070013306,NORTH HERTFORDSHIRE DISTRICT COUNCIL,STRATEGIC HOUSING,NHDC,EMERGENCY B&B,13072042336,19/05/2020,378.00,PRIMROSE ESTATES T/A ALEXANDRA GUESTHOUS,NOT LOCAL,002684500
0070013307,NORTH HERTFORDSHIRE DISTRICT COUNCIL,STRATEGIC HOUSING,NHDC,EMERGENCY B&B,13072042336,19/05/2020,378.00,PRIMROSE ESTATES T/A ALEXANDRA GUESTHOUS,NOT LOCAL,002684500
0070013308,NORTH HERTFORDSHIRE DISTRICT COUNCIL,STRATEGIC HOUSING,NHDC,EMERGENCY B&B,13072042336,19/05/2020,462.00,PRIMROSE ESTATES T/A ALEXANDRA GUESTHOUS,NOT LOCAL,002684500
0070013309,NORTH HERTFORDSHIRE DISTRICT COUNCIL,STRATEGIC HOUSING,NHDC,EMERGENCY B&B,13072042336,19/05/2020,378.00,PRIMROSE ESTATES T/A ALEXANDRA GUESTHOUS,NOT LOCAL,002684500
0070013310,NORTH HERTFORDSHIRE DISTRICT COUNCIL,STRATEGIC HOUSING,NHDC,EMERGENCY B&B,13072042336,19/05/2020,378.00,PRIMROSE ESTATES T/A ALEXANDRA GUESTHOUS,NOT LOCAL,002684500
0070013311,NORTH HERTFORDSHIRE DISTRICT COUNCIL,STRATEGIC HOUSING,NHDC,EMERGENCY B&B,13072042336,19/05/2020,378.00,PRIMROSE ESTATES T/A ALEXANDRA GUESTHOUS,NOT LOCAL,002684500
0070013365,NORTH HERTFORDSHIRE DISTRICT COUNCIL,STRATEGIC HOUSING,NHDC,EMERGENCY B&B,13072042336,19/05/2020,"1,232.00",RENT CONNECT HOUSING,NOT LOCAL,002705300
0070013366,NORTH HERTFORDSHIRE DISTRICT COUNCIL,STRATEGIC HOUSING,NHDC,GRANTS,13072046987,04/05/2020,"88,260.00",SAFER PLACES,NOT LOCAL,002510000
0070013440,NORTH HERTFORDSHIRE DISTRICT COUNCIL,STRATEGIC HOUSING,NHDC,GRANTS,13072046987,12/05/2020,"30,719.52",STEVENAGE HAVEN,NOT LOCAL,002688600
0070013003,NORTH HERTFORDSHIRE DISTRICT COUNCIL,STRATEGIC HOUSING,NHDC,FUNDING,13082084425,05/05/2020,"1,000.00",HERTFORDSHIRE COUNTY COUNCIL,NOT LOCAL,000109000
0070013415,NORTH HERTFORDSHIRE DISTRICT COUNCIL,STRATEGIC HOUSING,NHDC,CONSULTANCY,13130034425,12/05/2020,210.00,NOW MEDICAL,NOT LOCAL,002686900
0070013416,NORTH HERTFORDSHIRE DISTRICT COUNCIL,STRATEGIC HOUSING,NHDC,CONSULTANCY,13130034425,12/05/2020,345.60,NOW MEDICAL,NOT LOCAL,002686900
0070013510,NORTH HERTFORDSHIRE DISTRICT COUNCIL,STRATEGIC HOUSING,NHDC,RENT,13130036163,19/05/2020,"2,000.00",CLARION HOUSING,NOT LOCAL,002510000
0070013430,NORTH HERTFORDSHIRE DISTRICT COUNCIL,LEISURE SERVICES,NHDC,LEISURE MANAGEMENT,14094435122,12/05/2020,"8,255.47",STEVENAGE LEISURE LIMITED,NOT LOCAL,002032000
0070013431,NORTH HERTFORDSHIRE DISTRICT COUNCIL,LEISURE SERVICES,NHDC,LEISURE MANAGEMENT,14094435122,12/05/2020,"8,255.47",STEVENAGE LEISURE LIMITED,NOT LOCAL,002032000
0070013332,NORTH HERTFORDSHIRE DISTRICT COUNCIL,LEISURE SERVICES,NHDC,CONSULTANCY,14094604425,26/05/2020,"5,910.00",DARNTON B3 LTD,NOT LOCAL,002784200
0070013329,NORTH HERTFORDSHIRE DISTRICT COUNCIL,ACTIVE COMMUNITIES,NHDC,CT SCANNING,14160035910,05/05/2020,"5,000.00",UNIVERISTY OF CAMBRIDGE,NOT LOCAL,002748400
0070013403,NORTH HERTFORDSHIRE DISTRICT COUNCIL,HITCHIN TOWN HALL,NHDC,RECRUITMENT,14224252752,05/05/2020,354.66,BLUE ARROW LIMITED,NOT LOCAL,002713500
0070013404,NORTH HERTFORDSHIRE DISTRICT COUNCIL,HITCHIN TOWN HALL,NHDC,RECRUITMENT,14224252752,05/05/2020,210.77,BLUE ARROW LIMITED,NOT LOCAL,002713500
0070013402,NORTH HERTFORDSHIRE DISTRICT COUNCIL,HITCHIN TOWN HALL,NHDC,ENTERTAINMENT,14224254143,05/05/2020,700.00,MKF SOUNDS,NOT LOCAL,002757600
0070013534,NORTH HERTFORDSHIRE DISTRICT COUNCIL,HITCHIN TOWN HALL,NHDC,SECURITY,14224254428,19/05/2020,253.50,TOP GUARD UK,LOCAL,002724700
0070013093,NORTH HERTFORDSHIRE DISTRICT COUNCIL,GROUNDS MAINTENANCE,NHDC,GROUNDS MAINT,14310002016,05/05/2020,"1,890.00",JOHN O'CONNER (GROUNDS MAINTENANCE)LTD,LOCAL,000172200
0070013312,NORTH HERTFORDSHIRE DISTRICT COUNCIL,GROUNDS MAINTENANCE,NHDC,IRRIGATION SERVI,14310002016,29/04/2020,"1,772.35",JON MAWSON LIMITED,NOT LOCAL,002615600
0070013352,NORTH HERTFORDSHIRE DISTRICT COUNCIL,GROUNDS MAINTENANCE,NHDC,GROUNDS MAINT,14310002020,05/05/2020,"10,434.00",JOHN O'CONNER (GROUNDS MAINTENANCE)LTD,LOCAL,000172200
0070013317,NORTH HERTFORDSHIRE DISTRICT COUNCIL,GROUNDS MAINTENANCE,NHDC,GRANTS,14310005910,29/04/2020,"4,067.40",BALDOCK TOWN BOWLS CLUB,LOCAL,000455400
0070013532,NORTH HERTFORDSHIRE DISTRICT COUNCIL,GROUNDS MAINTENANCE,NHDC,ROOM HIRE,14310005910,19/05/2020,"2,850.00",NORTON PAROCHIAL CHURCH COUNCIL,LOCAL,001213300
0070013606,NORTH HERTFORDSHIRE DISTRICT COUNCIL,GROUNDS MAINTENANCE,NHDC,DESIGN SERVICES,14310012016,26/05/2020,"8,886.00",FITZPATRICK WOOLMER DESIGN,NOT LOCAL,002514900
0070013607,NORTH HERTFORDSHIRE DISTRICT COUNCIL,GROUNDS MAINTENANCE,NHDC,DESIGN SERVICES,14310012016,26/05/2020,"3,475.20",FITZPATRICK WOOLMER DESIGN,NOT LOCAL,002514900
0070013291,NORTH HERTFORDSHIRE DISTRICT COUNCIL,GROUNDS MAINTENANCE,NHDC,RIVER WORKS,14310022016,05/05/2020,"4,688.57",AGA GROUP ENVIRO FIX LIMITED,NOT LOCAL,002639700
0070013264,NORTH HERTFORDSHIRE DISTRICT COUNCIL,GROUNDS MAINTENANCE,NHDC,BUILDING SERVICE,14320002015,29/04/2020,90.00,R P B BUILDING & ROOFING CONTRACTORS,LOCAL,000200700
0070013484,NORTH HERTFORDSHIRE DISTRICT COUNCIL,GROUNDS MAINTENANCE,NHDC,GROUNDS MAINT,14330002016,19/05/2020,"2,684.06",JOHN O'CONNER (GROUNDS MAINTENANCE)LTD,LOCAL,000172200
0070013254,NORTH HERTFORDSHIRE DISTRICT COUNCIL,GROUNDS MAINTENANCE,NHDC,CONSULTANCY,14330004425,29/04/2020,720.00,ALSOP VERRILL LIMITED,NOT LOCAL,002786200
0070013346,NORTH HERTFORDSHIRE DISTRICT COUNCIL,NORTH HERTS MUSEUM,NHDC,AIR CONDITIONING,14421002010,05/05/2020,125.28,AIR CONDITIONING & CHILLER CO LTD,NOT LOCAL,002662600
0070013526,NORTH HERTFORDSHIRE DISTRICT COUNCIL,NORTH HERTS MUSEUM,NHDC,BUILDING SERVICE,14421002010,19/05/2020,"1,080.00",JOHN FOXX & CO LIMITED,LOCAL,002561200
0070013409,NORTH HERTFORDSHIRE DISTRICT COUNCIL,NORTH HERTS MUSEUM,NHDC,SECURITY,14422004428,19/05/2020,129.60,ARENA SECURITY LTD,LOCAL,000014000
0070013257,NORTH HERTFORDSHIRE DISTRICT COUNCIL,NORTH HERTS MUSEUM,NHDC,FIRE SAFETY INST,14425002010,29/04/2020,234.00,FIRST RESPONSE FIRE SAFETY UK LIMITED,NOT LOCAL,002649600
0070013516,NORTH HERTFORDSHIRE DISTRICT COUNCIL,NORTH HERTS MUSEUM,NHDC,FIRE SAFETY INST,14425002010,19/05/2020,234.00,FIRST RESPONSE FIRE SAFETY UK LIMITED,NOT LOCAL,002649600
0070013343,NORTH HERTFORDSHIRE DISTRICT COUNCIL,NORTH HERTS MUSEUM,NHDC,LIFT MAINTENANCE,14425002014,05/05/2020,315.00,SPECIALIST LIFT SERVICES LIMITED,NOT LOCAL,002774700
0070013376,NORTH HERTFORDSHIRE DISTRICT COUNCIL,NORTH HERTS MUSEUM,NHDC,BURGLAR ALARMS,14425004428,05/05/2020,174.00,HADLEIGH BURGLAR ALARM CO,NOT LOCAL,002709300
0070013408,NORTH HERTFORDSHIRE DISTRICT COUNCIL,NORTH HERTS MUSEUM,NHDC,SECURITY,14425004428,12/05/2020,43.20,ARENA SECURITY LTD,LOCAL,000014000
0070013265,NORTH HERTFORDSHIRE DISTRICT COUNCIL,NORTH HERTS MUSEUM,NHDC,SKIP HIRE,14430004012,29/04/2020,420.00,USKIP HIRE LIMITED,LOCAL,002776300
0070013322,NORTH HERTFORDSHIRE DISTRICT COUNCIL,NORTH HERTS MUSEUM,NHDC,SUBSCRIPTIONS,14440004789,29/04/2020,74.00,COUNCIL FOR BRITISH ARCHAEOLOGY,NOT LOCAL,000812000
0070013261,NORTH HERTFORDSHIRE DISTRICT COUNCIL,PROPERTY SERVICES,NHDC,ROOFING,14500002010,29/04/2020,"2,880.00",ACCURATE FLAT ROOFING  LTD,NOT LOCAL,002761000
0070013450,NORTH HERTFORDSHIRE DISTRICT COUNCIL,WASTE MANAGEMENT,NHDC,CLEANING,14500004420,12/05/2020,"13,678.20",DANFO (UK) LIMITED,NOT LOCAL,002544500
0070013287,NORTH HERTFORDSHIRE DISTRICT COUNCIL,ENVIRONMENTAL HEALTH,NHDC,TRACING SERVS,14604304473,29/04/2020,360.00,VILLAGE INVESTIGATIONS LIMITED,NOT LOCAL,002786400
0070013538,NORTH HERTFORDSHIRE DISTRICT COUNCIL,ENVIRONMENTAL HEALTH,NHDC,UNDERTAKERS,14604304473,26/05/2020,"1,221.00",NEVILLE FUNERAL SERVICE,LOCAL,002151800
0070013160,NORTH HERTFORDSHIRE DISTRICT COUNCIL,ENVIRONMENTAL HEALTH,NHDC,RECRUITMENT,14604351121,05/05/2020,168.30,VIVID RESOURCING G2V RECRUITMENT,NOT LOCAL,002779100
0070013171,NORTH HERTFORDSHIRE DISTRICT COUNCIL,ENVIRONMENTAL HEALTH,NHDC,RECRUITMENT,14604351121,12/05/2020,"1,188.00",THE OYSTER PARTNERSHIP LIMITED,NOT LOCAL,002673100
0070013260,NORTH HERTFORDSHIRE DISTRICT COUNCIL,ENVIRONMENTAL HEALTH,NHDC,RECRUITMENT,14604351121,12/05/2020,851.40,THE OYSTER PARTNERSHIP LIMITED,NOT LOCAL,002673100
0070013276,NORTH HERTFORDSHIRE DISTRICT COUNCIL,ENVIRONMENTAL HEALTH,NHDC,RECRUITMENT,14604351121,12/05/2020,"3,096.00",BUCKINGHAM FUTURES LTD,NOT LOCAL,002785800
0070013319,NORTH HERTFORDSHIRE DISTRICT COUNCIL,ENVIRONMENTAL HEALTH,NHDC,RECRUITMENT,14604351121,29/04/2020,"1,909.20",BUCKINGHAM FUTURES LTD,NOT LOCAL,002785800
0070013336,NORTH HERTFORDSHIRE DISTRICT COUNCIL,ENVIRONMENTAL HEALTH,NHDC,RECRUITMENT,14604351121,05/05/2020,"1,039.50",THE OYSTER PARTNERSHIP LIMITED,NOT LOCAL,002673100
0070013353,NORTH HERTFORDSHIRE DISTRICT COUNCIL,ENVIRONMENTAL HEALTH,NHDC,RECRUITMENT,14604351121,05/05/2020,"1,926.40",BUCKINGHAM FUTURES LTD,NOT LOCAL,002785800
0070013417,NORTH HERTFORDSHIRE DISTRICT COUNCIL,ENVIRONMENTAL HEALTH,NHDC,RECRUITMENT,14604351121,12/05/2020,"1,188.00",THE OYSTER PARTNERSHIP LIMITED,NOT LOCAL,002673100
0070013418,NORTH HERTFORDSHIRE DISTRICT COUNCIL,ENVIRONMENTAL HEALTH,NHDC,RECRUITMENT,14604351121,19/05/2020,"1,188.00",THE OYSTER PARTNERSHIP LIMITED,NOT LOCAL,002673100
0070013429,NORTH HERTFORDSHIRE DISTRICT COUNCIL,ENVIRONMENTAL HEALTH,NHDC,RECRUITMENT,14604351121,12/05/2020,"1,969.40",BUCKINGHAM FUTURES LTD,NOT LOCAL,002785800
0070013478,NORTH HERTFORDSHIRE DISTRICT COUNCIL,ENVIRONMENTAL HEALTH,NHDC,RECRUITMENT,14604351121,19/05/2020,153.00,VIVID RESOURCING G2V RECRUITMENT,NOT LOCAL,002779100
0070013506,NORTH HERTFORDSHIRE DISTRICT COUNCIL,ENVIRONMENTAL HEALTH,NHDC,RECRUITMENT,14604351121,19/05/2020,"1,642.60",BUCKINGHAM FUTURES LTD,NOT LOCAL,002785800
0070013541,NORTH HERTFORDSHIRE DISTRICT COUNCIL,ENVIRONMENTAL HEALTH,NHDC,RECRUITMENT,14604351121,26/05/2020,244.80,VIVID RESOURCING G2V RECRUITMENT,NOT LOCAL,002779100
0070013542,NORTH HERTFORDSHIRE DISTRICT COUNCIL,ENVIRONMENTAL HEALTH,NHDC,RECRUITMENT,14604351121,26/05/2020,336.60,VIVID RESOURCING G2V RECRUITMENT,NOT LOCAL,002779100
0070013543,NORTH HERTFORDSHIRE DISTRICT COUNCIL,ENVIRONMENTAL HEALTH,NHDC,RECRUITMENT,14604351121,26/05/2020,321.30,VIVID RESOURCING G2V RECRUITMENT,NOT LOCAL,002779100
0070013052,NORTH HERTFORDSHIRE DISTRICT COUNCIL,ENVIRONMENTAL HEALTH,NHDC,NOISE MONITORING,14604354012,12/05/2020,"5,432.45",CIRRUS RESEARCH PLC,NOT LOCAL,002785500
0070013428,NORTH HERTFORDSHIRE DISTRICT COUNCIL,ENVIRONMENTAL HEALTH,NHDC,CONSULTANCY,14604354425,12/05/2020,"1,080.00",TRAYPAHLU ASSOCS LIMITED,NOT LOCAL,002338600
0070013527,NORTH HERTFORDSHIRE DISTRICT COUNCIL,ENVIRONMENTAL HEALTH,NHDC,CONSULTANCY,14604354425,26/05/2020,972.00,TRAYPAHLU ASSOCS LIMITED,NOT LOCAL,002338600
0070013420,NORTH HERTFORDSHIRE DISTRICT COUNCIL,ENVIRONMENTAL HEALTH,NHDC,TRAINING,14604354789,12/05/2020,777.60,RH ENVIRONMENTAL LIMITED,NOT LOCAL,002608000
0070013393,NORTH HERTFORDSHIRE DISTRICT COUNCIL,ENVIRONMENTAL HEALTH,NHDC,LEASING,14604383130,05/05/2020,589.64,ARNOLD CLARK VEHICLE MANAGEMENT,NOT LOCAL,002548100
0070013552,NORTH HERTFORDSHIRE DISTRICT COUNCIL,REVENUES,NHDC,BID ACCOUNT,33240010750,20/05/2020,"63,631.20",ROYSTON FIRST BID CO. LTD,NOT LOCAL,002595200
0070013304,NORTH HERTFORDSHIRE DISTRICT COUNCIL,REVENUES,NHDC,BID ACCOUNT,33240020750,29/04/2020,"13,580.78",HITCHIN BID,LOCAL,002596000
0070013480,NORTH HERTFORDSHIRE DISTRICT COUNCIL,REVENUES,NHDC,BID ACCOUNT,33240020750,13/05/2020,"283,423.20",HITCHIN BID,LOCAL,002596000
0070013578,NORTH HERTFORDSHIRE DISTRICT COUNCIL,MANAGEMENT SUPPORT,NHDC,HALL HIRE,36380030750,26/05/2020,50.00,LETCHWORTH GARDEN CITY HERITAGE FOUNDATI,LOCAL,002676700
0070013281,NORTH HERTFORDSHIRE DISTRICT COUNCIL,ENVIRONMENTAL HEALTH,NHDC,UNDERTAKERS,39169690750,29/04/2020,"1,261.00",NEVILLE FUNERAL SERVICE,LOCAL,002151800
0070013082,NORTH HERTFORDSHIRE DISTRICT COUNCIL,CARELINE,NHDC,RECRUITMENT,43204701221,29/04/2020,488.91,INTERACTION RECRUITMENT,NOT LOCAL,002044000
0070013188,NORTH HERTFORDSHIRE DISTRICT COUNCIL,CARELINE,NHDC,RECRUITMENT,43204701221,29/04/2020,686.36,INTERACTION RECRUITMENT,NOT LOCAL,002044000
0070013195,NORTH HERTFORDSHIRE DISTRICT COUNCIL,CARELINE,NHDC,RECRUITMENT,43204701221,29/04/2020,864.62,INTERACTION RECRUITMENT,NOT LOCAL,002044000
0070013286,NORTH HERTFORDSHIRE DISTRICT COUNCIL,CARELINE,NHDC,RECRUITMENT,43204701221,29/04/2020,686.36,INTERACTION RECRUITMENT,NOT LOCAL,002044000
0070013344,NORTH HERTFORDSHIRE DISTRICT COUNCIL,CARELINE,NHDC,RECRUITMENT,43204701221,05/05/2020,686.36,INTERACTION RECRUITMENT,NOT LOCAL,002044000
0070013441,NORTH HERTFORDSHIRE DISTRICT COUNCIL,CARELINE,NHDC,RECRUITMENT,43204701221,26/05/2020,686.36,INTERACTION RECRUITMENT,NOT LOCAL,002044000
0070013503,NORTH HERTFORDSHIRE DISTRICT COUNCIL,CARELINE,NHDC,RECRUITMENT,43204701221,26/05/2020,827.38,INTERACTION RECRUITMENT,NOT LOCAL,002044000
0070013579,NORTH HERTFORDSHIRE DISTRICT COUNCIL,CARELINE,NHDC,RECRUITMENT,43204701221,26/05/2020,686.36,INTERACTION RECRUITMENT,NOT LOCAL,002044000
0070013166,NORTH HERTFORDSHIRE DISTRICT COUNCIL,CARELINE,NHDC,SIM CARDS,43204704037,05/05/2020,"1,048.90",CSL DUALCOM LIMITED,NOT LOCAL,002693300
0070013167,NORTH HERTFORDSHIRE DISTRICT COUNCIL,CARELINE,NHDC,SIM CARDS,43204704037,29/04/2020,238.80,CSL DUALCOM LIMITED,NOT LOCAL,002693300
0070013189,NORTH HERTFORDSHIRE DISTRICT COUNCIL,CARELINE,NHDC,ASSISTED LIVING,43204704038,29/04/2020,270.00,INDEPENDENT LIVING SUPPLIES,NOT LOCAL,002694900
0070013190,NORTH HERTFORDSHIRE DISTRICT COUNCIL,CARELINE,NHDC,ASSISTED LIVING,43204704038,05/05/2020,846.61,INDEPENDENT LIVING SUPPLIES,NOT LOCAL,002694900
0070013191,NORTH HERTFORDSHIRE DISTRICT COUNCIL,CARELINE,NHDC,ASSISTED LIVING,43204704038,05/05/2020,583.56,INDEPENDENT LIVING SUPPLIES,NOT LOCAL,002694900
0070013193,NORTH HERTFORDSHIRE DISTRICT COUNCIL,CARELINE,NHDC,ASSISTED LIVING,43204704038,05/05/2020,81.54,INDEPENDENT LIVING SUPPLIES,NOT LOCAL,002694900
0070013206,NORTH HERTFORDSHIRE DISTRICT COUNCIL,CARELINE,NHDC,ASSISTED LIVING,43204704038,29/04/2020,584.77,INDEPENDENT LIVING SUPPLIES,NOT LOCAL,002694900
0070013372,NORTH HERTFORDSHIRE DISTRICT COUNCIL,CARELINE,NHDC,ASSISTED LIVING,43204704038,12/05/2020,174.72,INDEPENDENT LIVING SUPPLIES,NOT LOCAL,002694900
0070013373,NORTH HERTFORDSHIRE DISTRICT COUNCIL,CARELINE,NHDC,ASSISTED LIVING,43204704038,12/05/2020,115.92,INDEPENDENT LIVING SUPPLIES,NOT LOCAL,002694900
0070013379,NORTH HERTFORDSHIRE DISTRICT COUNCIL,CARELINE,NHDC,ASSISTED LIVING,43204704038,12/05/2020,453.73,INDEPENDENT LIVING SUPPLIES,NOT LOCAL,002694900
0070013380,NORTH HERTFORDSHIRE DISTRICT COUNCIL,CARELINE,NHDC,ASSISTED LIVING,43204704038,12/05/2020,512.53,INDEPENDENT LIVING SUPPLIES,NOT LOCAL,002694900
0070013381,NORTH HERTFORDSHIRE DISTRICT COUNCIL,CARELINE,NHDC,ASSISTED LIVING,43204704038,19/05/2020,749.94,INDEPENDENT LIVING SUPPLIES,NOT LOCAL,002694900
0070013382,NORTH HERTFORDSHIRE DISTRICT COUNCIL,CARELINE,NHDC,ASSISTED LIVING,43204704038,12/05/2020,174.72,INDEPENDENT LIVING SUPPLIES,NOT LOCAL,002694900
0070013383,NORTH HERTFORDSHIRE DISTRICT COUNCIL,CARELINE,NHDC,ASSISTED LIVING,43204704038,12/05/2020,369.97,INDEPENDENT LIVING SUPPLIES,NOT LOCAL,002694900
0070013442,NORTH HERTFORDSHIRE DISTRICT COUNCIL,CARELINE,NHDC,ASSISTED LIVING,43204704038,19/05/2020,734.40,INDEPENDENT LIVING SUPPLIES,NOT LOCAL,002694900
0070009554,NORTH HERTFORDSHIRE DISTRICT COUNCIL,CARELINE,NHDC,DOOR ACCESS SYST,43204704039,19/05/2020,231.00,TYNETEC  - LEGRAND ELECTRIC LTD,NOT LOCAL,002588000
0070013242,NORTH HERTFORDSHIRE DISTRICT COUNCIL,CARELINE,NHDC,SUPPLY KEYSAFES,43204704039,12/05/2020,"2,604.00",SUPRA UK LTD TA THE KEY SAFE COMPANY,NOT LOCAL,002522600
0070013266,NORTH HERTFORDSHIRE DISTRICT COUNCIL,CARELINE,NHDC,SUPPLY KEYSAFES,43204704039,12/05/2020,"8,556.00",SUPRA UK LTD TA THE KEY SAFE COMPANY,NOT LOCAL,002522600
0070013271,NORTH HERTFORDSHIRE DISTRICT COUNCIL,CARELINE,NHDC,DOOR ACCESS SYST,43204704039,19/05/2020,-231.00,TYNETEC  - LEGRAND ELECTRIC LTD,NOT LOCAL,002588000
0070013523,NORTH HERTFORDSHIRE DISTRICT COUNCIL,CARELINE,NHDC,ASSET TAGS,43204704039,19/05/2020,309.54,COLOUR DATA UK LIMITED,NOT LOCAL,002692800
0070013297,NORTH HERTFORDSHIRE DISTRICT COUNCIL,CARELINE,NHDC,DOOR ACCESS SYST,43204704041,19/05/2020,"8,866.80",TYNETEC  - LEGRAND ELECTRIC LTD,NOT LOCAL,002588000
0070013387,NORTH HERTFORDSHIRE DISTRICT COUNCIL,CARELINE,NHDC,ASSISTED LIVING,43204704047,19/05/2020,"1,511.83",INDEPENDENT LIVING SUPPLIES,NOT LOCAL,002694900
0070013230,NORTH HERTFORDSHIRE DISTRICT COUNCIL,CARELINE,NHDC,SUBSCRIPTIONS,43204704371,29/04/2020,206.00,WHICH? TRUSTED TRADERS,NOT LOCAL,002728900
0070013370,NORTH HERTFORDSHIRE DISTRICT COUNCIL,CARELINE,NHDC,ALARM MONITORING,43204704415,05/05/2020,132.00,WELWYN GARDEN ALARMS,NOT LOCAL,002713200
0070013563,NORTH HERTFORDSHIRE DISTRICT COUNCIL,CARELINE,NHDC,ASSISTIVE TECHNO,43204704417,26/05/2020,"15,020.10",PROVIDE CIC,NOT LOCAL,002763400
0070013548,NORTH HERTFORDSHIRE DISTRICT COUNCIL,CARELINE,NHDC,ASSISTIVE TECHNO,43204704420,26/05/2020,"25,137.78",PROVIDE CIC,NOT LOCAL,002763400
0070013204,NORTH HERTFORDSHIRE DISTRICT COUNCIL,CARELINE,NHDC,ASSISTED LIVING,43204704421,29/04/2020,154.20,INDEPENDENT LIVING SUPPLIES,NOT LOCAL,002694900
0070013205,NORTH HERTFORDSHIRE DISTRICT COUNCIL,CARELINE,NHDC,ASSISTED LIVING,43204704421,29/04/2020,"3,357.80",INDEPENDENT LIVING SUPPLIES,NOT LOCAL,002694900
0070013384,NORTH HERTFORDSHIRE DISTRICT COUNCIL,CARELINE,NHDC,ASSISTED LIVING,43204704421,19/05/2020,"1,497.56",INDEPENDENT LIVING SUPPLIES,NOT LOCAL,002694900
0070013385,NORTH HERTFORDSHIRE DISTRICT COUNCIL,CARELINE,NHDC,ASSISTED LIVING,43204704421,12/05/2020,51.40,INDEPENDENT LIVING SUPPLIES,NOT LOCAL,002694900
0070013388,NORTH HERTFORDSHIRE DISTRICT COUNCIL,CARELINE,NHDC,ASSISTED LIVING,43204704421,26/05/2020,859.14,INDEPENDENT LIVING SUPPLIES,NOT LOCAL,002694900
0070013389,NORTH HERTFORDSHIRE DISTRICT COUNCIL,CARELINE,NHDC,ASSISTED LIVING,43204704421,26/05/2020,798.84,INDEPENDENT LIVING SUPPLIES,NOT LOCAL,002694900
0070013168,NORTH HERTFORDSHIRE DISTRICT COUNCIL,CARELINE,NHDC,CARELINE SERVICES,43204704428,12/05/2020,"1,382.00",STEVENAGE BOROUGH COUNCIL,NOT LOCAL,000218900
0070013392,NORTH HERTFORDSHIRE DISTRICT COUNCIL,CARELINE,NHDC,SECURITY,43204704428,12/05/2020,"4,222.80",ARENA SECURITY LTD,LOCAL,000014000
0070013237,NORTH HERTFORDSHIRE DISTRICT COUNCIL,CARELINE,NHDC,ASSISTED LIVING,43204704436,29/04/2020,23.90,INDEPENDENT LIVING SUPPLIES,NOT LOCAL,002694900
0070013238,NORTH HERTFORDSHIRE DISTRICT COUNCIL,CARELINE,NHDC,ASSISTED LIVING,43204704436,12/05/2020,56.70,INDEPENDENT LIVING SUPPLIES,NOT LOCAL,002694900
0070013374,NORTH HERTFORDSHIRE DISTRICT COUNCIL,CARELINE,NHDC,ASSISTED LIVING,43204704436,12/05/2020,138.41,INDEPENDENT LIVING SUPPLIES,NOT LOCAL,002694900
0070013390,NORTH HERTFORDSHIRE DISTRICT COUNCIL,CARELINE,NHDC,ASSISTED LIVING,43204704436,12/05/2020,"4,102.70",INDEPENDENT LIVING SUPPLIES,NOT LOCAL,002694900
0070013391,NORTH HERTFORDSHIRE DISTRICT COUNCIL,CARELINE,NHDC,ASSISTED LIVING,43204704436,12/05/2020,178.22,INDEPENDENT LIVING SUPPLIES,NOT LOCAL,002694900
0070013443,NORTH HERTFORDSHIRE DISTRICT COUNCIL,CARELINE,NHDC,ASSISTED LIVING,43204704436,19/05/2020,69.18,INDEPENDENT LIVING SUPPLIES,NOT LOCAL,002694900
0070013504,NORTH HERTFORDSHIRE DISTRICT COUNCIL,CARELINE,NHDC,ASSISTED LIVING,43204704436,26/05/2020,81.90,INDEPENDENT LIVING SUPPLIES,NOT LOCAL,002694900
0070013505,NORTH HERTFORDSHIRE DISTRICT COUNCIL,CARELINE,NHDC,ASSISTED LIVING,43204704436,26/05/2020,131.04,INDEPENDENT LIVING SUPPLIES,NOT LOCAL,002694900
0070013375,NORTH HERTFORDSHIRE DISTRICT COUNCIL,CARELINE,NHDC,ASSISTED LIVING,43204704452,05/05/2020,161.03,INDEPENDENT LIVING SUPPLIES,NOT LOCAL,002694900
0070013378,NORTH HERTFORDSHIRE DISTRICT COUNCIL,CARELINE,NHDC,ASSISTED LIVING,43204704452,19/05/2020,161.03,INDEPENDENT LIVING SUPPLIES,NOT LOCAL,002694900
0070013269,NORTH HERTFORDSHIRE DISTRICT COUNCIL,CARELINE,NHDC,POSTAL SERVICES,43204704560,29/04/2020,92.89,ROYAL MAIL ANGLIA,NOT LOCAL,001019000
0070013377,NORTH HERTFORDSHIRE DISTRICT COUNCIL,CARELINE,NHDC,POSTAL SERVICES,43204704560,12/05/2020,72.65,ROYAL MAIL ANGLIA,NOT LOCAL,001019000
0070013270,NORTH HERTFORDSHIRE DISTRICT COUNCIL,CARELINE,NHDC,PHONE MAINTENANC,43204704565,05/05/2020,"1,345.20",JONTEK LIMITED,NOT LOCAL,000866800
0070013400,NORTH HERTFORDSHIRE DISTRICT COUNCIL,CARELINE,NHDC,MYSTERY SHOPPERS,43204705520,26/05/2020,"2,295.00",DEFINITIVE RESEARCH,LOCAL,002641500
0070012937,NORTH HERTFORDSHIRE DISTRICT COUNCIL,IT,NHDC,IT SOFTWARE,51165610848,26/05/2020,"13,470.00",INTERNAL SYSTEMS LIMITED,NOT LOCAL,002024300
0070013474,NORTH HERTFORDSHIRE DISTRICT COUNCIL,IT,NHDC,IT EQUIPMENT,51165850848,26/05/2020,"13,816.40",DELL COMPUTER CORPORATION LIMITED,NOT LOCAL,002005800
0070013454,NORTH HERTFORDSHIRE DISTRICT COUNCIL,IT,NHDC,IT SOFTWARE,51165870848,19/05/2020,"4,644.00",INTERNAL SYSTEMS LIMITED,NOT LOCAL,002024300
0070013347,NORTH HERTFORDSHIRE DISTRICT COUNCIL,IT,NHDC,SOFTWARE,51165900847,05/05/2020,750.00,LOCATA (HSG SERVICES ) LTD,NOT LOCAL,002601000
0070013348,NORTH HERTFORDSHIRE DISTRICT COUNCIL,IT,NHDC,SOFTWARE,51165900847,05/05/2020,720.00,LOCATA (HSG SERVICES ) LTD,NOT LOCAL,002601000
0070013349,NORTH HERTFORDSHIRE DISTRICT COUNCIL,IT,NHDC,SOFTWARE,51165900847,05/05/2020,"6,795.00",LOCATA (HSG SERVICES ) LTD,NOT LOCAL,002601000
0070013364,NORTH HERTFORDSHIRE DISTRICT COUNCIL,PLANNING,NHDC,S106,51200000750,04/05/2020,"4,794.13",HITCHIN RUGBY CLUB,LOCAL,002510000
0070013272,NORTH HERTFORDSHIRE DISTRICT COUNCIL,GROUNDS MAINTENANCE,NHDC,ELECTRICAL WORKS,53146810836,29/04/2020,"1,113.60",FIXATEX LIMITED,NOT LOCAL,002785600
0070013422,NORTH HERTFORDSHIRE DISTRICT COUNCIL,HITCHIN TOWN HALL,NHDC,BAR SUPPLIES,53175920836,07/05/2020,"11,831.99",COLIN HILL BAR AND CATERING SUPPLIES LTD,LOCAL,002730100
0070013539,NORTH HERTFORDSHIRE DISTRICT COUNCIL,ENVIRONMENTAL HEALTH,NHDC,DFG AGENT,55106020852,19/05/2020,"1,251.40",S GURD PROPERTY SOLUTIONS LTD,NOT LOCAL,002693100
0070013328,NORTH HERTFORDSHIRE DISTRICT COUNCIL,FINANCE,NHDC,RIVER WORKS,71120090945,05/05/2020,-50.00,AGA GROUP ENVIRO FIX LIMITED,NOT LOCAL,002639700
0070013436,NORTH HERTFORDSHIRE DISTRICT COUNCIL,FINANCE,NHDC,CIS TAX PAYMENTS,71120090945,12/05/2020,50.00,HMRC  - CIS PAYMENTS,NOT LOCAL,000404500
0070013477,NORTH HERTFORDSHIRE DISTRICT COUNCIL,LEGAL SERVICES,NHDC,LEGAL ADVISE,95150270750,19/05/2020,"2,737.80",WEIGHTMANS LLP,NOT LOCAL,002774500
0070013558,NORTH HERTFORDSHIRE DISTRICT COUNCIL,REVENUES,NHDC,BAILIFF,63609350906,26/05/2020,15.05,MARSTON GROUP LIMITED,NOT LOCAL,002393700
0070013559,NORTH HERTFORDSHIRE DISTRICT COUNCIL,REVENUES,NHDC,BAILIFF,63609350906,26/05/2020,"2,244.64",PENHAM EXCEL LIMITED,NOT LOCAL,002134100
DD,NORTH HERTFORDSHIRE DISTRICT COUNCIL,FINANCE,NHDC,BANK CHARGES,4439,16/06/2020,107.83,APS FINANCIAL LTD,NOT LOCAL,DD SUPPLIER
DD,NORTH HERTFORDSHIRE DISTRICT COUNCIL,FINANCE,NHDC,BANK CHARGES,4439,10/06/2020,89.07,BARCLAYCARD,NOT LOCAL,DD SUPPLIER
DD,NORTH HERTFORDSHIRE DISTRICT COUNCIL,FINANCE,NHDC,UTILITY,4571,22/06/2020,980.41,BOTTOMLINE,NOT LOCAL,DD SUPPLIER
DD,NORTH HERTFORDSHIRE DISTRICT COUNCIL,FINANCE,NHDC,BANK CHARGES,4439,12/06/2020,53.48,CARDNET,NOT LOCAL,DD SUPPLIER
DD,NORTH HERTFORDSHIRE DISTRICT COUNCIL,FINANCE,NHDC,BANK CHARGES,4439,11/06/2020,"2,826.92",CARDNET,NOT LOCAL,DD SUPPLIER
DD,NORTH HERTFORDSHIRE DISTRICT COUNCIL,FINANCE,NHDC,UTILITY,2440,22/06/2020,35.95,CASTLE WATER LTD,NOT LOCAL,DD SUPPLIER
DD,NORTH HERTFORDSHIRE DISTRICT COUNCIL,FINANCE,NHDC,BANK CHARGES,4439,12/06/2020,37.90,FDMS,NOT LOCAL,DD SUPPLIER
DD,NORTH HERTFORDSHIRE DISTRICT COUNCIL,FINANCE,NHDC,BANK CHARGES,4439,12/06/2020,37.90,FDMS,NOT LOCAL,DD SUPPLIER
DD,NORTH HERTFORDSHIRE DISTRICT COUNCIL,FINANCE,NHDC,BANK CHARGES,4439,12/06/2020,37.90,FDMS,NOT LOCAL,DD SUPPLIER
DD,NORTH HERTFORDSHIRE DISTRICT COUNCIL,FINANCE,NHDC,BANK CHARGES,4439,12/06/2020,37.90,FDMS,NOT LOCAL,DD SUPPLIER
DD,NORTH HERTFORDSHIRE DISTRICT COUNCIL,FINANCE,NHDC,UTILITY,44561,29/06/2020,150.85,INTELLISOFTWARE,NOT LOCAL,DD SUPPLIER
DD,NORTH HERTFORDSHIRE DISTRICT COUNCIL,FINANCE,NHDC,LAND SEARCHES,4435,02/06/2020,4.00,LAND REGISTRY,NOT LOCAL,DD SUPPLIER
DD,NORTH HERTFORDSHIRE DISTRICT COUNCIL,FINANCE,NHDC,LAND SEARCHES,4435,09/06/2020,6.00,LAND REGISTRY,NOT LOCAL,DD SUPPLIER
DD,NORTH HERTFORDSHIRE DISTRICT COUNCIL,FINANCE,NHDC,LAND SEARCHES,4435,16/06/2020,12.00,LAND REGISTRY,NOT LOCAL,DD SUPPLIER
DD,NORTH HERTFORDSHIRE DISTRICT COUNCIL,FINANCE,NHDC,LAND SEARCHES,4435,02/06/2020,24.00,LAND REGISTRY,NOT LOCAL,DD SUPPLIER
DD,NORTH HERTFORDSHIRE DISTRICT COUNCIL,FINANCE,NHDC,LAND SEARCHES,4435,23/06/2020,26.00,LAND REGISTRY,NOT LOCAL,DD SUPPLIER
DD,NORTH HERTFORDSHIRE DISTRICT COUNCIL,FINANCE,NHDC,LAND SEARCHES,4435,09/06/2020,27.00,LAND REGISTRY,NOT LOCAL,DD SUPPLIER
DD,NORTH HERTFORDSHIRE DISTRICT COUNCIL,FINANCE,NHDC,LAND SEARCHES,4435,30/06/2020,30.00,LAND REGISTRY,NOT LOCAL,DD SUPPLIER
DD,NORTH HERTFORDSHIRE DISTRICT COUNCIL,FINANCE,NHDC,LAND SEARCHES,4435,12/06/2020,51.00,LAND REGISTRY,NOT LOCAL,DD SUPPLIER
DD,NORTH HERTFORDSHIRE DISTRICT COUNCIL,FINANCE,NHDC,LAND SEARCHES,4435,19/06/2020,60.00,LAND REGISTRY,NOT LOCAL,DD SUPPLIER
DD,NORTH HERTFORDSHIRE DISTRICT COUNCIL,FINANCE,NHDC,LAND SEARCHES,4435,23/06/2020,66.00,LAND REGISTRY,NOT LOCAL,DD SUPPLIER
DD,NORTH HERTFORDSHIRE DISTRICT COUNCIL,FINANCE,NHDC,LAND SEARCHES,4435,30/06/2020,66.00,LAND REGISTRY,NOT LOCAL,DD SUPPLIER
DD,NORTH HERTFORDSHIRE DISTRICT COUNCIL,FINANCE,NHDC,CREDIT CARD CHARGES,4017,15/06/2020,20.40,PAYTEK ADMINISTRAT,NOT LOCAL,DD SUPPLIER
DD,NORTH HERTFORDSHIRE DISTRICT COUNCIL,FINANCE,NHDC,CREDIT CARD CHARGES,4017,15/06/2020,20.40,PAYTEK ADMINISTRAT,NOT LOCAL,DD SUPPLIER
DD,NORTH HERTFORDSHIRE DISTRICT COUNCIL,FINANCE,NHDC,CREDIT CARD CHARGES,4017,15/06/2020,20.40,PAYTEK ADMINISTRAT,NOT LOCAL,DD SUPPLIER
DD,NORTH HERTFORDSHIRE DISTRICT COUNCIL,FINANCE,NHDC,CREDIT CARD CHARGES,4017,15/06/2020,20.40,PAYTEK ADMINISTRAT,NOT LOCAL,DD SUPPLIER
DD,NORTH HERTFORDSHIRE DISTRICT COUNCIL,FINANCE,NHDC,BANK CHARGES,4439,10/06/2020,724.37,SAN UK ACC RECEIVE,NOT LOCAL,DD SUPPLIER
DD,NORTH HERTFORDSHIRE DISTRICT COUNCIL,FINANCE,NHDC,UTILITY,4018,05/06/2020,31.80,TALKTALK BUSINESS,NOT LOCAL,DD SUPPLIER
DD,NORTH HERTFORDSHIRE DISTRICT COUNCIL,FINANCE,NHDC,UTILITY,3018,29/06/2020,77.44,UK FUELS LTD,NOT LOCAL,DD SUPPLIER
DD,NORTH HERTFORDSHIRE DISTRICT COUNCIL,FINANCE,NHDC,UTILITY,3018,08/06/2020,95.81,UK FUELS LTD,NOT LOCAL,DD SUPPLIER
DD,NORTH HERTFORDSHIRE DISTRICT COUNCIL,FINANCE,NHDC,UTILITY,3018,15/06/2020,123.90,UK FUELS LTD,NOT LOCAL,DD SUPPLIER
DD,NORTH HERTFORDSHIRE DISTRICT COUNCIL,FINANCE,NHDC,UTILITY,3018,01/06/2020,146.65,UK FUELS LTD,NOT LOCAL,DD SUPPLIER
DD,NORTH HERTFORDSHIRE DISTRICT COUNCIL,FINANCE,NHDC,UTILITY,3018,22/06/2020,190.91,UK FUELS LTD,NOT LOCAL,DD SUPPLIER
DD,NORTH HERTFORDSHIRE DISTRICT COUNCIL,FINANCE,NHDC,UTILITY,2230,25/06/2020,"12,957.80",WEST MERCIA ENERGY,NOT LOCAL,DD SUPPLIER
DD,NORTH HERTFORDSHIRE DISTRICT COUNCIL,FINANCE,NHDC,UTILITY,4561,24/06/2020,"1,046.09",WINDSOR TELECOM PL,NOT LOCAL,DD SUPPLIER
DD,NORTH HERTFORDSHIRE DISTRICT COUNCIL,FINANCE,NHDC,UTILITY,4561,23/06/2020,178.10,WIRELESS LOGIC LTD,NOT LOCAL,DD SUPPLIER
CCD0000977,NORTH HERTFORDSHIRE DISTRICT COUNCIL,CUSTOMER SERVICES,NHDC,PPE,11840004012,11/05/2020,649.90,BELLA VITA RESTAURANT,NOT LOCAL,PURCHASING CARD SUPPLIER
CCD0000978,NORTH HERTFORDSHIRE DISTRICT COUNCIL,CUSTOMER SERVICES,NHDC,PPE,11840004012,11/05/2020,97.67,BELLA VITA RESTAURANT,NOT LOCAL,PURCHASING CARD SUPPLIER
CCD0000985,NORTH HERTFORDSHIRE DISTRICT COUNCIL,CUSTOMER SERVICES,NHDC,PPE,11840014260,06/05/2020,974.85,ARCHANT COMMUNITY MEDI,NOT LOCAL,PURCHASING CARD SUPPLIER
CCD0000986,NORTH HERTFORDSHIRE DISTRICT COUNCIL,CUSTOMER SERVICES,NHDC,PPE,11840014260,06/05/2020,7.79,ARCHANT COMMUNITY MEDI,NOT LOCAL,PURCHASING CARD SUPPLIER
CCD0000987,NORTH HERTFORDSHIRE DISTRICT COUNCIL,WASTE SERVICES,NHDC,FUEL,12700003018,05/05/2020,60.80,SAINSBURYS SACAT 0426,NOT LOCAL,PURCHASING CARD SUPPLIER
CCD0000988,NORTH HERTFORDSHIRE DISTRICT COUNCIL,CARELINE,NHDC,CLEANING GOODS,43204704012,01/06/2020,9.54,SAINSBURYS SACAT 0426,NOT LOCAL,PURCHASING CARD SUPPLIER
CCD0000989,NORTH HERTFORDSHIRE DISTRICT COUNCIL,CARELINE,NHDC,CLEANING GOODS,43204704012,27/05/2020,7.87,MANAGEMENT LEARNING RE,NOT LOCAL,PURCHASING CARD SUPPLIER
CCD0000990,NORTH HERTFORDSHIRE DISTRICT COUNCIL,CARELINE,NHDC,BATTERIES,43204704012,02/06/2020,77.40,DYNASTY (UK) LIMITED,NOT LOCAL,PURCHASING CARD SUPPLIER
CCD0000995,NORTH HERTFORDSHIRE DISTRICT COUNCIL,CARELINE,NHDC,PPE,43204704038,07/05/2020,81.60,SAINSBURYS OPT 0235,NOT LOCAL,PURCHASING CARD SUPPLIER
CCD0000996,NORTH HERTFORDSHIRE DISTRICT COUNCIL,CARELINE,NHDC,PUBLIC NOTICES,43204704371,22/05/2020,432.00,ARCHANT COMMUNITY MEDI,NOT LOCAL,PURCHASING CARD SUPPLIER
CCD0000997,NORTH HERTFORDSHIRE DISTRICT COUNCIL,CARELINE,NHDC,ADVERTISING,43204704371,26/05/2020,21.06,ARCHANT COMMUNITY MEDI,NOT LOCAL,PURCHASING CARD SUPPLIER
CCD0000998,NORTH HERTFORDSHIRE DISTRICT COUNCIL,IT,NHDC,IT EQUIPMENT,11161674573,13/05/2020,102.60,THOMAS BROOKER & SONS,NOT LOCAL,PURCHASING CARD SUPPLIER
CCD0000999,NORTH HERTFORDSHIRE DISTRICT COUNCIL,COMMUNITY SAFETY,NHDC,FUEL,14604383018,12/05/2020,58.63,R&R SECURITY & HAR,LOCAL,PURCHASING CARD SUPPLIER
CCD0001000,NORTH HERTFORDSHIRE DISTRICT COUNCIL,COMMUNITY SAFETY,NHDC,FUEL,14604383018,22/05/2020,54.08,AMZNMktplace,NOT LOCAL,PURCHASING CARD SUPPLIER
CCD0001001,NORTH HERTFORDSHIRE DISTRICT COUNCIL,PROPERTY SERVICES,NHDC,GLOVES,11321874260,03/05/2020,12.48,AMZNMktplace,NOT LOCAL,PURCHASING CARD SUPPLIER
CCD0001009,NORTH HERTFORDSHIRE DISTRICT COUNCIL,PROPERTY SERVICES,NHDC,GLOVES,11321874260,03/05/2020,35.38,MEDISAVE,NOT LOCAL,PURCHASING CARD SUPPLIER
CCD0001010,NORTH HERTFORDSHIRE DISTRICT COUNCIL,PROPERTY SERVICES,NHDC,FACE MASKS,11840014260,07/05/2020,56.00,MEDISAVE,NOT LOCAL,PURCHASING CARD SUPPLIER
CCD0001011,NORTH HERTFORDSHIRE DISTRICT COUNCIL,PROPERTY SERVICES,NHDC,CLEANING GOODS,11321872752,11/05/2020,138.32,B&M RETAIL LTD,NOT LOCAL,PURCHASING CARD SUPPLIER
CCD0001012,NORTH HERTFORDSHIRE DISTRICT COUNCIL,PROPERTY SERVICES,NHDC,SNEEZE GUARDS,11321872010,06/05/2020,167.74,BP RUSH GREEN F/STN,NOT LOCAL,PURCHASING CARD SUPPLIER
CCD0001013,NORTH HERTFORDSHIRE DISTRICT COUNCIL,PROPERTY SERVICES,NHDC,FACE MASKS,11321874260,07/05/2020,274.95,MEDISAVE,NOT LOCAL,PURCHASING CARD SUPPLIER
CCD0001014,NORTH HERTFORDSHIRE DISTRICT COUNCIL,PROPERTY SERVICES,NHDC,BARRIERS,11321874012,28/05/2020,493.20,MEDISAVE,NOT LOCAL,PURCHASING CARD SUPPLIER
CCD0001015,NORTH HERTFORDSHIRE DISTRICT COUNCIL,PROPERTY SERVICES,NHDC,HAND SANITISER,11840014260,28/05/2020,239.99,AMZNMktplace,NOT LOCAL,PURCHASING CARD SUPPLIER
CCD0001016,NORTH HERTFORDSHIRE DISTRICT COUNCIL,PROPERTY SERVICES,NHDC,SANITISER STAND,11840014260,28/05/2020,119.99,AMZNMktplace,NOT LOCAL,PURCHASING CARD SUPPLIER
CCD0001017,NORTH HERTFORDSHIRE DISTRICT COUNCIL,ENVIRONMENTAL HEALTH,NHDC,PPE,14604304260,15/05/2020,79.00,AQL.COM,NOT LOCAL,PURCHASING CARD SUPPLIER
CCD0001018,NORTH HERTFORDSHIRE DISTRICT COUNCIL,ENVIRONMENTAL HEALTH,NHDC,PPE,14604304260,15/05/2020,429.60,THE CHEQUERS,NOT LOCAL,PURCHASING CARD SUPPLIER
CCD0001019,NORTH HERTFORDSHIRE DISTRICT COUNCIL,ENVIRONMENTAL HEALTH,NHDC,PPE,14604304260,15/05/2020,128.88,ESSO ICKNIELD WAY SERV,NOT LOCAL,PURCHASING CARD SUPPLIER
CCD0001020,NORTH HERTFORDSHIRE DISTRICT COUNCIL,ENVIRONMENTAL HEALTH,NHDC,SURGICAL MASKS,14604304260,01/05/2020,97.20,COMPANIES HOUSE,NOT LOCAL,PURCHASING CARD SUPPLIER
CCD0001024,NORTH HERTFORDSHIRE DISTRICT COUNCIL,GROUNDS MAINTENANCE,NHDC,PADLOCK,14310012016,05/05/2020,28.80,BELLA VITA RESTAURANT,NOT LOCAL,PURCHASING CARD SUPPLIER
CCD0001025,NORTH HERTFORDSHIRE DISTRICT COUNCIL,GROUNDS MAINTENANCE,NHDC,EQUIPMENT,14310002016,06/05/2020,86.11,SAINSBURYS OPT 0235,LOCAL,PURCHASING CARD SUPPLIER
CCD0001026,NORTH HERTFORDSHIRE DISTRICT COUNCIL,HR,NHDC,TRAINING ,11060034425,01/05/2020,672.50,ARCHANT COMMUNITY MEDI,NOT LOCAL,PURCHASING CARD SUPPLIER
CCD0001027,NORTH HERTFORDSHIRE DISTRICT COUNCIL,HR,NHDC,BUFFET,11020004150,13/05/2020,47.50,INST OF LIC,NOT LOCAL,PURCHASING CARD SUPPLIER
CCD0001028,NORTH HERTFORDSHIRE DISTRICT COUNCIL,HR,NHDC,LONG SERVICE AWARD,11820001744,13/05/2020,47.50,THE GATE HOTEL,NOT LOCAL,PURCHASING CARD SUPPLIER
CCD0001029,NORTH HERTFORDSHIRE DISTRICT COUNCIL,HR,NHDC,LONG SERVICE AWARD,14150001744,13/05/2020,47.50,MEDISAVE,NOT LOCAL,PURCHASING CARD SUPPLIER
CCD0001030,NORTH HERTFORDSHIRE DISTRICT COUNCIL,HR,NHDC,LONG SERVICE AWARD,12700001744,13/05/2020,47.50,AMZNMKTPLACE AMAZON.CO,NOT LOCAL,PURCHASING CARD SUPPLIER
CCD0001031,NORTH HERTFORDSHIRE DISTRICT COUNCIL,DEMOCRATIC SERVICES,NHDC,PUBLIC NOTICES,11800004371,21/05/2020,187.68,EMX DYNAMICS LIMITED,NOT LOCAL,PURCHASING CARD SUPPLIER
CCD0001032,NORTH HERTFORDSHIRE DISTRICT COUNCIL,DEMOCRATIC SERVICES,NHDC,PUBLIC NOTICES,11800004371,21/05/2020,279.84,WWW.PROAV.CO.UK,NOT LOCAL,PURCHASING CARD SUPPLIER
CCD0001033,NORTH HERTFORDSHIRE DISTRICT COUNCIL,DEMOCRATIC SERVICES,NHDC,BADGES,11800004012,28/05/2020,67.85,TEXTANYWHERE LTD,NOT LOCAL,PURCHASING CARD SUPPLIER
CCD0001034,NORTH HERTFORDSHIRE DISTRICT COUNCIL,PROPERTY SERVICES,NHDC,EQUIPMENT,14425009477,28/05/2020,7.99,ARCHANT COMMUNITY MEDI,NOT LOCAL,PURCHASING CARD SUPPLIER
CCD0001035,NORTH HERTFORDSHIRE DISTRICT COUNCIL,PROPERTY SERVICES,NHDC,MOUNTING BOARD,14425004012,01/05/2020,319.84,ARCHANT COMMUNITY MEDI,NOT LOCAL,PURCHASING CARD SUPPLIER
CCD0001036,NORTH HERTFORDSHIRE DISTRICT COUNCIL,PROPERTY SERVICES,NHDC,BLADES FOR CUTTER,14425004012,01/05/2020,22.20,THE CHEQUERS,NOT LOCAL,PURCHASING CARD SUPPLIER
CCD0001037,NORTH HERTFORDSHIRE DISTRICT COUNCIL,COMMUNITY SAFETY,NHDC,FUEL,14604383018,11/05/2020,36.00,AMZNMktplace,LOCAL,PURCHASING CARD SUPPLIER
CCD0001038,NORTH HERTFORDSHIRE DISTRICT COUNCIL,COMMUNITY SAFETY,NHDC,FUEL,14604383018,19/05/2020,45.00,AMZNMktplace,LOCAL,PURCHASING CARD SUPPLIER
CCD0001039,NORTH HERTFORDSHIRE DISTRICT COUNCIL,COMMUNITY SAFETY,NHDC,FUEL,14604383018,30/05/2020,40.00,AMZNMktplace,LOCAL,PURCHASING CARD SUPPLIER
CCD0001040,NORTH HERTFORDSHIRE DISTRICT COUNCIL,LEGAL SERVICES,NHDC,REGISTRATION,11430014435,03/05/2020,-12.00,AMZNMktplace,NOT LOCAL,PURCHASING CARD SUPPLIER
CCD0001041,NORTH HERTFORDSHIRE DISTRICT COUNCIL,LEGAL SERVICES,NHDC,REGISTRAION,11430014435,06/05/2020,12.00,THE CHEQUERS,NOT LOCAL,PURCHASING CARD SUPPLIER
CCD0001042,NORTH HERTFORDSHIRE DISTRICT COUNCIL,LEGAL SERVICES,NHDC,PUBLICATIONS,11430014012,22/05/2020,48.99,THE GATE HOTEL,NOT LOCAL,PURCHASING CARD SUPPLIER
CCD0001043,NORTH HERTFORDSHIRE DISTRICT COUNCIL,PLANNING,NHDC,PUBLIC NOTICES,12550014371,02/06/2020,671.62,AMZNMKTPLACE AMAZON.CO,NOT LOCAL,PURCHASING CARD SUPPLIER
CCD0001044,NORTH HERTFORDSHIRE DISTRICT COUNCIL,PLANNING,NHDC,PUBLIC NOTICES,12550014371,05/05/2020,587.66,WWW.SPAREROOM.CO.UK,NOT LOCAL,PURCHASING CARD SUPPLIER
CCD0001045,NORTH HERTFORDSHIRE DISTRICT COUNCIL,PLANNING,NHDC,PUBLIC NOTICES,12550014371,05/05/2020,357.60,ZOOM.GBP,NOT LOCAL,PURCHASING CARD SUPPLIER
CCD0001046,NORTH HERTFORDSHIRE DISTRICT COUNCIL,PLANNING,NHDC,PUBLIC NOTICES,12550014371,12/05/2020,559.68,RONTEC LETCHWORTH,NOT LOCAL,PURCHASING CARD SUPPLIER
CCD0001047,NORTH HERTFORDSHIRE DISTRICT COUNCIL,PLANNING,NHDC,PUBLIC NOTICES,12550014371,12/05/2020,357.60,THE GATE HOTEL,NOT LOCAL,PURCHASING CARD SUPPLIER
CCD0001048,NORTH HERTFORDSHIRE DISTRICT COUNCIL,PLANNING,NHDC,PUBLIC NOTICES,12550014371,19/05/2020,615.65,UnitedArtsGmbH,NOT LOCAL,PURCHASING CARD SUPPLIER
CCD0001049,NORTH HERTFORDSHIRE DISTRICT COUNCIL,PLANNING,NHDC,PUBLIC NOTICES,12550014371,26/05/2020,357.60,www.motivates.co.uk,NOT LOCAL,PURCHASING CARD SUPPLIER
CCD0001050,NORTH HERTFORDSHIRE DISTRICT COUNCIL,PLANNING,NHDC,PUBLIC NOTICES,12550014371,26/05/2020,671.62,www.motivates.co.uk,NOT LOCAL,PURCHASING CARD SUPPLIER
CCD0001051,NORTH HERTFORDSHIRE DISTRICT COUNCIL,PARKING SERVICES,NHDC,CABLE TIES,12207204012,26/05/2020,43.62,www.motivates.co.uk,NOT LOCAL,PURCHASING CARD SUPPLIER
CCD0001052,NORTH HERTFORDSHIRE DISTRICT COUNCIL,STRATEGIC HOUSING,NHDC,TRAINING,13130031860,01/06/2020,120.00,www.motivates.co.uk,NOT LOCAL,PURCHASING CARD SUPPLIER
CCD0001053,NORTH HERTFORDSHIRE DISTRICT COUNCIL,STRATEGIC HOUSING,NHDC,TRAINING,13130031860,01/06/2020,120.00,PAYPAL  ITINSTOCK,NOT LOCAL,PURCHASING CARD SUPPLIER
